{"text_format":"3","workbook":"xlsx","n_sheets":38,"sheets":["Obsah","I. Část 1","I. Část 1a","I. Část 2","I. Část 3","I. Část 3a","I. Část 3b","I. Část 4","I. Část 5","I. Část 5a","I. Část 5b","I. Část 6","I. Část 7","II. Část 1","II. Část 2","II. Část 3","III. Část 1","III. Část 2","IV. Část 1","IV. Část 1a","IV. Část 1b","IV. Část 1c","IV. Část 2","IV. Část 2a","IV. Část 2b","IV. Část 3","IV. Část 3a","IV. Část 3b","IV. Část 3c","IV. Část 3d","V. Část 1","V. Část 2","V. Část 3","V. Část 4","Číselník 1","Číselník 2","List1","úvěry a vklady"],"not_rendered":{"images":3,"defined_names":10},"read":"whole","date_system":"1900"}

{"sheet":"Obsah","index":0,"n_rows":62,"n_cols":4,"rows_kept":62,"merged":[[5,0,5,3],[6,3,8,3],[8,0,8,1],[21,0,21,2],[24,0,24,1],[28,0,28,2],[31,0,31,1],[34,0,34,2],[37,0,37,1],[50,0,50,2],[53,0,53,1],[58,0,58,2],[59,1,59,2],[60,1,60,2],[61,0,61,2]]}
[]
[null,"Raiffeisen stavební spořitelna a.s."]
[]
[null,"Údaje o spořitelně a výsledcích hospodaření k 31.3.2017"]
[]
["I. Seznam údajů o povinné osobě, složení společníků nebo členů, struktuře konsolidačního celku, jehož je součástí, o činnosti a finanční situaci - k příloze č. 10 k vyhlášce 163/2014 Sb. "]
["Datum uveřejnění informace",null,"2017-05-12","Povinná osoba výkaz vyplňuje: ANO/NE"]
["Informace platné k datu",null,"2017-03-31"]
[null,null,"frekvence vykazování"]
["I. Část 1","Údaje o povinné osobě ","čtvrtletně","ANO"]
["I. Část 1a","Organizační struktura povinné osoby","čtvrtletně","ANO"]
["I. Část 2","Údaje o složení společníků nebo členů povinné osoby","čtvrtletně","ANO"]
["I. Část 3","Údaje o struktuře konsolidačního celku, jehož je povinná osoba součástí","čtvrtletně","ANO"]
["I. Část 3a","Grafické znázornění konsolidačního celku, jehož členem je povinná osoba, z hlediska vlastnického uspořádání ","čtvrtletně","ANO"]
["I. Část 3b","Grafické znázornění konsolidačního celku, jehož členem je povinná osoba, z hlediska řízení","čtvrtletně","ANO"]
["I. Část 4","Údaje o činnosti povinné osoby","čtvrtletně","ANO"]
["I. Část 5","Údaje o finanční situaci povinné osoby","čtvrtletně","ANO"]
["I. Část 5a","Údaje o finanční situaci povinné osoby - deriváty ","čtvrtletně","NE"]
["I. Část 5b","Údaje o finanční situaci povinné osoby - informace povinné osoby, která je bankou nebo spořitelním a úvěrním družstvem o pohledávkách","čtvrtletně","ANO"]
["I. Část 6","Rozvaha povinné osoby podle výkazů předkládaných České národní bance","čtvrtletně","ANO"]
["I. Část 7","Výkaz zisku nebo ztráty povinné osoby podle výkazů předkládaných České národní bance","čtvrtletně","ANO"]
["II. Seznam údajů o majetkoprávních vztazích mezi členy konsolidačního celku a řídicím a kontrolním systému - k příloze č. 11 k vyhlášce 163/2014 Sb. "]
["Datum uveřejnění informace",null,"(dd/mm/rrrr)"]
["Informace platné k datu",null,"(dd/mm/rrrr)"]
[null,null,"frekvence vykazování"]
["II. Část 1","Obsah údajů o majetkoprávních vztazích mezi členy konsolidačního celku a řídicím a kontrolním systému I*","ročně","NE"]
["II. Část 2","Obsah údajů o majetkoprávních vztazích mezi členy konsolidačního celku a řídicím a kontrolním systému II*","ročně","NE"]
["II. Část 3","Obsah údajů o majetkoprávních vztazích mezi členy konsolidačního celku a řídicím a kontrolním systému III*","ročně","NE"]
["III. Seznam údajů o druzích a rozsahu poskytnutých investičních služeb - k příloze č. 12 k vyhlášce 163/2014 Sb. "]
["Datum uveřejnění informace",null,"(dd/mm/rrrr)"]
["Informace platné k datu",null,"(dd/mm/rrrr)"]
[null,null,"frekvence vykazování"]
["III. Část 1","Investiční služby poskytnuté obchodníkem s cennými papíry jiným než podle § 8a odst. 4 a 7 zákona o podnikání na kapitálovém trhu","čtvrtletně","NE"]
["III. Část 2","Investiční služby poskytnuté obchodníkem s cennými papíry podle § 8a odst. 4 a 7 zákona o podnikání na kapitálovém trhu","čtvrtletně","NE"]
["IV. Seznam údajů uveřejňovaných pobočkou banky z jiného než členského státu - k příloze č. 13 k vyhlášce 163/2014 Sb. "]
["Datum uveřejnění informace",null,"(dd/mm/rrrr)"]
["Informace platné k datu",null,"(dd/mm/rrrr)"]
[null,null,"frekvence vykazování"]
["IV. Část 1","Údaje o zahraniční bance z jiného než členského státu","čtvrtletně","NE"]
["IV. Část 1a","Údaje o složení společníků nebo členů zahraniční banky z jiného než členského státu","čtvrtletně","NE"]
["IV. Část 1b","Údaje o činnosti zahraniční banky z jiného než členského státu","čtvrtletně","NE"]
["IV. Část 1c","Výroční zpráva zahraniční banky z jiného než členského státu","čtvrtletně","NE"]
["IV. Část 2","Údaje o pobočce banky z jiného než členského státu I","čtvrtletně","NE"]
["IV. Část 2a","Údaje o pobočce banky z jiného než členského státu II","čtvrtletně","NE"]
["IV. Část 2b","Údaje o pobočce banky z jiného než členského státu III","čtvrtletně","NE"]
["IV. Část 3","Údaje o plnění obezřetnostních pravidel pobočky banky z jiného než členského státu ","čtvrtletně","NE"]
["IV. Část 3a","Údaje podle článku 437 odst. 1 písm. a) nařízení č. 575/2013 EU.s výjimkou úplného sesouhlasení položek, filtrů a odpočtů na rozvahu v rámci auditované účetní závěrky pobočky banky z jiného než členského státu","čtvrtletně","NE"]
["IV. Část 3b","Údaje o plnění obezřetnostních pravidel pobočky banky z jiného než členského státu podle článku 438 písm. c) až f) nařízení č. 575/2013 EU.","čtvrtletně","NE"]
["IV. Část 3c","Údaje o plnění obezřetnostních pravidel pobočky banky z jiného než členského státu - reálné a jmenovité hodnoty derivátů ","čtvrtletně","NE"]
["IV. Část 3d","Údaje o plnění obezřetnostních pravidel pobočky banky z jiného než členského státu - informace pobočky banky z jiného než členského státu o pohledávkách","čtvrtletně","NE"]
["V. Seznam údajů ověřovaných auditorem - k příloze č. 14 k vyhlášce 163/2014 Sb. "]
["Datum uveřejnění informace",null,"2017-04-28"]
["Informace platné k datu",null,"2016-12-31"]
[null,null,"frekvence vykazování"]
["V. Část 1","Údaje o kapitálu a kapitálových požadavcích podle článku 437 odst. 1 písm. a) nařízení č. 575/2013 EU","ročně","ANO"]
["V. Část 2","Údaje o kapitálu a kapitálových požadavcích podle článku 438 písm. c) až f) nařízení č. 575/2013 EU","ročně","ANO"]
["V. Část 3","Kapitálové poměry","ročně","ANO"]
["V. Část 4","Poměrové ukazatele ","ročně","ANO"]
["Číselníky"]
["Číselník 1","CZ-NACE (OKEČ) číselník"]
["Číselník 2","Kódy zemí"]
["* Tuto část uveřejňují pouze povinné osoby, kterým jsou stanoveny povinnosti na konsolidovaném základě."]

{"sheet":"I. Část 1","index":1,"n_rows":293,"n_cols":5,"rows_kept":293,"merged":[[0,0,0,3],[1,0,1,3],[2,0,2,4],[3,0,4,3],[3,4,4,4],[5,0,5,2],[6,0,6,2],[6,4,9,4],[7,0,7,2],[8,0,8,2],[9,0,9,2],[10,0,10,2],[10,4,12,4],[11,0,11,2],[12,0,12,2],[13,0,13,2],[14,0,14,2],[15,0,17,0],[15,1,15,2],[15,3,17,3],[15,4,17,4],[16,1,16,2],[17,1,17,2],[18,0,18,2],[19,0,28,0],[19,1,19,2],[19,4,28,4],[20,1,24,1],[20,3,22,3],[25,1,28,1],[29,0,30,0],[29,1,29,2],[29,4,30,4],[30,1,30,2],[31,0,31,4],[32,0,32,3],[32,4,54,4],[33,0,33,2],[34,0,36,1],[37,0,37,3],[39,0,39,3],[40,0,40,2],[41,0,43,1],[45,0,45,3],[46,0,46,2],[47,0,49,1],[50,0,50,3],[51,0,51,2],[52,0,54,1],[55,0,55,4],[56,0,56,3],[56,4,78,4],[57,0,57,2],[58,0,60,1],[61,0,61,3],[63,0,63,3],[64,0,64,2],[65,0,67,1],[69,0,69,3],[70,0,70,2],[71,0,73,1],[74,0,74,3],[75,0,75,2],[76,0,78,1],[79,0,79,4],[80,0,80,3],[80,4,86,4],[81,0,81,2],[82,0,84,1],[85,0,85,3],[87,0,87,4],[88,0,88,3],[88,4,124,4],[89,0,89,2],[90,0,92,1],[93,0,93,3],[95,0,95,3],[96,0,96,2],[97,0,99,1],[100,0,100,3],[101,0,101,2],[102,0,104,1],[105,0,105,3],[106,0,106,2],[107,0,109,1],[110,0,110,3],[111,0,111,2],[112,0,114,1],[115,0,115,3],[116,0,116,2],[117,0,119,1],[120,0,120,3],[121,0,121,2],[122,0,124,1],[125,0,125,4],[126,0,126,3],[126,4,143,4],[127,0,127,2],[128,0,130,1],[131,0,131,3],[133,0,133,3],[134,0,134,2],[135,0,137,1],[139,0,139,3],[140,0,140,2],[141,0,143,1],[144,0,144,4],[145,0,145,3],[145,4,151,4],[146,0,146,2],[147,0,149,1],[150,0,150,3],[152,0,152,4],[153,0,153,3],[153,4,159,4],[154,0,154,2],[155,0,157,1],[158,0,158,3],[160,0,160,4],[161,0,161,3],[161,4,167,4],[162,0,162,2],[163,0,165,1],[166,0,166,3],[168,0,168,4],[169,0,169,3],[169,4,180,4],[170,0,170,2],[171,0,173,1],[174,0,174,3],[176,0,176,3],[177,0,177,2],[178,0,180,1],[181,0,181,4],[182,0,182,3],[182,4,188,4],[183,0,183,2],[184,0,186,1],[187,0,187,3],[189,0,189,4],[190,0,190,3],[190,4,196,4],[191,0,191,2],[192,0,194,1],[195,0,195,3],[197,0,197,4],[198,0,198,3],[198,4,204,4],[199,0,199,2],[200,0,202,1],[203,0,203,3],[205,0,205,4],[206,0,206,3],[206,4,212,4],[207,0,207,2],[208,0,210,1],[211,0,211,3],[213,0,213,4],[214,0,214,3],[214,4,220,4],[215,0,215,2],[216,0,218,1],[219,0,219,3],[221,0,221,4],[222,0,222,3],[222,4,228,4],[223,0,223,2],[224,0,226,1],[227,0,227,3],[229,0,229,4],[230,0,230,3],[230,4,236,4],[231,0,231,2],[232,0,234,1],[235,0,235,3],[237,0,237,4],[238,0,238,3],[238,4,244,4],[239,0,239,2],[240,0,242,1],[243,0,243,3],[245,0,245,4],[246,0,246,3],[246,4,252,4],[247,0,247,2],[248,0,250,1],[251,0,251,3],[253,0,253,4],[254,0,254,3],[254,4,260,4],[255,0,255,2],[256,0,258,1],[259,0,259,3],[261,0,261,4],[262,0,262,3],[262,4,268,4],[263,0,263,2],[264,0,266,1],[267,0,267,3],[269,0,269,4],[270,0,270,3],[270,4,276,4],[271,0,271,2],[272,0,274,1],[275,0,275,3],[277,0,277,4],[278,0,278,3],[278,4,284,4],[279,0,279,2],[280,0,282,1],[283,0,283,3],[285,0,285,4],[286,0,286,3],[286,4,292,4],[287,0,287,2],[288,0,290,1],[291,0,291,3],[293,0,293,4]]}
["I. Část 1"]
["Údaje o povinné osobě"]
[]
["Údaje o povinné osobě",{"$nulls":3},"Vyhláška č.163/2014 Sb., příloha 10"]
[]
["Informace platné k datu:",null,null,{"$f":"Obsah!C8","v":"2017-03-31"}]
["Obchodní firma",null,null,"Raiffeisen stavební spořitelna a.s.","Bod 1 písm. a)"]
["Právní forma",null,null,"akciová společnost"]
["Adresa sídla",null,null,"Koněvova 2747/99, 130 45 Praha 3"]
["Identifikační číslo povinné osoby podle zápisu v obchodním rejstříku",null,null,"49241257"]
["Datum zápisu do obchodního rejstříku",null,null,"4. září 1993 u Městského soudu v Praze, oddíl B, vložka 2102","Bod 1 písm. b)"]
["Datum zápisu poslední změny do obchodního rejstříku",null,null,"25. března 2017"]
["Účel poslední změny zápisu do obchodního rejstříku",null,null,"změny v dozorčí radě"]
["Výše základního kapitálu zapsaného v obchodním rejstříku",null,null,{"v":650000000,"d":"650,000,000"},"Bod 1 písm. c)"]
["Výše splaceného základního kapitálu",null,null,{"v":650000000,"d":"650,000,000"},"Bod 1 písm. d)"]
["Akciová společnost","Druh, forma, podoba emitovaných akcií ",null,"6 500 kusů zaknihovaných akcií na jméno ve jmenovité hodnotě 100 000 Kč za jednu akcii","Bod 1 písm. e)"]
[null,"Počet emitovaných akcií "]
[null,"Jmenovitá hodnota akcií"]
["Údaje o nabytí vlastních akcií a zatímních listů a jiných kapitálových nástrojů, pokud povinná osoba je akciovou společností",null,null,"netýká se Raiffeisen stavební spořitelny a.s.","Bod 1 písm. f)"]
["Údaje o zvýšení základního kapitálu, pokud základní kapitál byl zvýšen od posledního uveřejnění","Navýšení základního kapitálu od posledního uveřejnění",null,"ne","Bod 1 písm. g)"]
[null,"Způsob a rozsah zvýšení základního kapitálu, jsou-li vydávány nové akcie","Druh, forma, podoba  emitovaných akcií "]
[null,null,"Počet emitovaných akcií "]
[null,null,"Jmenovitá hodnota akcií"]
[null,null,"Rozsah splacení nově upsaných akcií "]
[null,null,"Lhůta pro splacení nově upsaných akcií"]
[null,"Způsob a rozsah zvýšení základního kapitálu z vlastních zdrojů","Částka o níž se základní kapitál zvyšuje"]
[null,null,"Vlastní zdroje, z nichž se základní kapitál zvyšuje"]
[null,null,"Lhůta pro splacení nově upsaných akcií"]
[null,null,"Akciová společnost uvede, zda se zvyšuje jmenovitá hodnota akcií a o jakou částku"]
["Údaje o členech vedoucího orgánu a o osobách ve vrcholném vedení povinné osoby ","Souhrnná výše úvěrů poskytnutých povinnou osobou členům vedoucího orgánu, osobám ve vrcholném vedení povinné osoby",null,"7 803 tis. Kč","Bod 1 písm. i)"]
[null,"Souhrnná výše záruk vydaných povinnou osobou za členy vedoucího orgánu, osoby ve vrcholném vedení povinné osoby",null,0]
[]
["Údaje o členech vedoucího orgánu a o osobách ve vrcholném vedení povinné osoby ",{"$nulls":3},"Bod 1 písm. i)\n bod 4"]
["Jméno a příjmení, včetně titulů",null,null,"Mag. Hans Christian Vallant"]
["Označení orgánu a v něm vykonávané funkce nebo označení pozice ve vrcholném vedení, a datum, od kdy osoba vykonává příslušnou funkci nebo zastává danou pozici",null,"Orgán","dozorčí rada"]
[null,null,"Funkce/pozice","předseda dozorčí rady"]
[null,null,"Datum počátku výkonu funkce/pozice","23. listopadu 2015, člen dozorčí rady od 30. června 2014"]
["Dosavadní zkušenosti a kvalifikační předpoklady pro výkon dané funkce nebo zastávané pozice"]
[{"$nulls":3},"Univerzita Graz, obor podniková ekonomika"]
["Členství člena vedoucího orgánu povinné osoby v orgánech jiných právnických osob "]
["Jméno a příjmení, včetně titulů",null,null,"Mag. Hans Christian Vallant"]
["Název právnické osoby, označení orgánu a v něm vykonávané funkce ",null,"Název právnické osoby","Raiffeisen Bausparkasse GmbH, Vídeň"]
[null,null,"Orgán","vedení společnosti"]
[null,null,"Funkce","jednatel"]
[]
["Členství člena vedoucího orgánu povinné osoby v orgánech jiných právnických osob "]
["Jméno a příjmení, včetně titulů",null,null,"Mag. Hans Christian Vallant"]
["Název právnické osoby, označení orgánu a v něm vykonávané funkce ",null,"Název právnické osoby","Raiffeisen Bausparkassen Holding GmbH, Vídeň"]
[null,null,"Orgán","vedení společnosti"]
[null,null,"Funkce","jednatel"]
["Členství člena vedoucího orgánu povinné osoby v orgánech jiných právnických osob "]
["Jméno a příjmení, včetně titulů",null,null,"Mag. Hans Christian Vallant"]
["Název právnické osoby, označení orgánu a v něm vykonávané funkce ",null,"Název právnické osoby","Prvá stavebná sporiteľňa, Bratislava"]
[null,null,"Orgán","dozorčí rada"]
[null,null,"Funkce","člen"]
[]
["Údaje o členech vedoucího orgánu a o osobách ve vrcholném vedení povinné osoby ",{"$nulls":3},"Bod 1 písm. i)\n bod 4"]
["Jméno a příjmení, včetně titulů",null,null,"Mag. Manfred Url"]
["Označení orgánu a v něm vykonávané funkce nebo označení pozice ve vrcholném vedení, a datum, od kdy osoba vykonává příslušnou funkci nebo zastává danou pozici",null,"Orgán","dozorčí rada"]
[null,null,"Funkce/pozice","místopředseda dozorčí rady"]
[null,null,"Datum počátku výkonu funkce/pozice","23. listopadu 2015, člen dozorčí rady od 1. ledna 2011"]
["Dosavadní zkušenosti a kvalifikační předpoklady pro výkon dané funkce nebo zastávané pozice"]
[{"$nulls":3},"Hospodářská univerzita, Vídeň"]
["Členství člena vedoucího orgánu povinné osoby v orgánech jiných právnických osob "]
["Jméno a příjmení, včetně titulů",null,null,"Mag. Manfred Url"]
["Název právnické osoby, označení orgánu a v něm vykonávané funkce ",null,"Název právnické osoby","Raiffeisen Bausparkasse GmbH, Vídeň"]
[null,null,"Orgán","vedení společnosti"]
[null,null,"Funkce","jednatel"]
[]
["Členství člena vedoucího orgánu povinné osoby v orgánech jiných právnických osob "]
["Jméno a příjmení, včetně titulů",null,null,"Mag. Manfred Url"]
["Název právnické osoby, označení orgánu a v něm vykonávané funkce ",null,"Název právnické osoby","Raiffeisen Bausparkassen Holding GmbH, Vídeň"]
[null,null,"Orgán","vedení společnosti"]
[null,null,"Funkce","jednatel"]
["Členství člena vedoucího orgánu povinné osoby v orgánech jiných právnických osob "]
["Jméno a příjmení, včetně titulů",null,null,"Mag. Manfred Url"]
["Název právnické osoby, označení orgánu a v něm vykonávané funkce ",null,"Název právnické osoby","Prvá stavebná sporiteľňa, Bratislava"]
[null,null,"Orgán","dozorčí rada"]
[null,null,"Funkce","předseda"]
[]
["Údaje o členech vedoucího orgánu a o osobách ve vrcholném vedení povinné osoby ",{"$nulls":3},"Bod 1 písm. i)\n bod 4"]
["Jméno a příjmení, včetně titulů",null,null,"Mag. Christian Weidinger"]
["Označení orgánu a v něm vykonávané funkce nebo označení pozice ve vrcholném vedení, a datum, od kdy osoba vykonává příslušnou funkci nebo zastává danou pozici",null,"Orgán","dozorčí rada"]
[null,null,"Funkce/pozice","člen dozorčí rady"]
[null,null,"Datum počátku výkonu funkce/pozice","30. září 2015"]
["Dosavadní zkušenosti a kvalifikační předpoklady pro výkon dané funkce nebo zastávané pozice"]
[{"$nulls":3},"Univerzita, Vídeň, obor podniková ekonomika"]
[]
["Údaje o členech vedoucího orgánu a o osobách ve vrcholném vedení povinné osoby ",{"$nulls":3},"Bod 1 písm. i)\n bod 4"]
["Jméno a příjmení, včetně titulů",null,null,"Ing. Igor Vida"]
["Označení orgánu a v něm vykonávané funkce nebo označení pozice ve vrcholném vedení, a datum, od kdy osoba vykonává příslušnou funkci nebo zastává danou pozici",null,"Orgán","dozorčí rada"]
[null,null,"Funkce/pozice","člen dozorčí rady"]
[null,null,"Datum počátku výkonu funkce/pozice","15. prosince 2016"]
["Dosavadní zkušenosti a kvalifikační předpoklady pro výkon dané funkce nebo zastávané pozice"]
[{"$nulls":3},"Slovenská technická univerzita, Bratislava, Elektrotechnická fakulta"]
["Členství člena vedoucího orgánu povinné osoby v orgánech jiných právnických osob "]
["Jméno a příjmení, včetně titulů",null,null,"Ing. Igor Vida"]
["Název právnické osoby, označení orgánu a v něm vykonávané funkce ",null,"Název právnické osoby","Raiffeisenbank a.s."]
[null,null,"Orgán","představenstvo"]
[null,null,"Funkce","předseda"]
["Členství člena vedoucího orgánu povinné osoby v orgánech jiných právnických osob "]
["Jméno a příjmení, včetně titulů",null,null,"Ing. Igor Vida"]
["Název právnické osoby, označení orgánu a v něm vykonávané funkce ",null,"Název právnické osoby","Raiffeisen investiční společnost a.s."]
[null,null,"Orgán","dozorčí rada"]
[null,null,"Funkce","předseda"]
["Členství člena vedoucího orgánu povinné osoby v orgánech jiných právnických osob "]
["Jméno a příjmení, včetně titulů",null,null,"Ing. Igor Vida"]
["Název právnické osoby, označení orgánu a v něm vykonávané funkce ",null,"Název právnické osoby","Tatra banka, a.s."]
[null,null,"Orgán","dozorčí rada"]
[null,null,"Funkce","místopředseda"]
["Členství člena vedoucího orgánu povinné osoby v orgánech jiných právnických osob "]
["Jméno a příjmení, včetně titulů",null,null,"Ing. Igor Vida"]
["Název právnické osoby, označení orgánu a v něm vykonávané funkce ",null,"Název právnické osoby","Nadácia Tatra Banky"]
[null,null,"Orgán","správní rada"]
[null,null,"Funkce","předseda"]
["Členství člena vedoucího orgánu povinné osoby v orgánech jiných právnických osob "]
["Jméno a příjmení, včetně titulů",null,null,"Ing. Igor Vida"]
["Název právnické osoby, označení orgánu a v něm vykonávané funkce ",null,"Název právnické osoby","Česká bankovní asociace"]
[null,null,"Orgán","prezidium"]
[null,null,"Funkce","člen"]
["Členství člena vedoucího orgánu povinné osoby v orgánech jiných právnických osob "]
["Jméno a příjmení, včetně titulů",null,null,"Ing. Igor Vida"]
["Název právnické osoby, označení orgánu a v něm vykonávané funkce ",null,"Název právnické osoby","Raiffeisen Kapitalanlage-Gesellschaft m.b.H."]
[null,null,"Orgán","dozorčí rada"]
[null,null,"Funkce","člen"]
[]
["Údaje o členech vedoucího orgánu a o osobách ve vrcholném vedení povinné osoby ",{"$nulls":3},"Bod 1 písm. i)\n bod 4"]
["Jméno a příjmení, včetně titulů",null,null,"Ing. Jan Jeníček"]
["Označení orgánu a v něm vykonávané funkce nebo označení pozice ve vrcholném vedení, a datum, od kdy osoba vykonává příslušnou funkci nebo zastává danou pozici",null,"Orgán","představenstvo"]
[null,null,"Funkce/pozice","předseda představenstva"]
[null,null,"Datum počátku výkonu funkce/pozice","21. prosince 2007"]
["Dosavadní zkušenosti a kvalifikační předpoklady pro výkon dané funkce nebo zastávané pozice"]
[{"$nulls":3},"Vysoká škola ekonomická, Praha, Fakulta výrobně ekonomická"]
["Členství člena vedoucího orgánu povinné osoby v orgánech jiných právnických osob "]
["Jméno a příjmení, včetně titulů",null,null,"Ing. Jan Jeníček"]
["Název právnické osoby, označení orgánu a v něm vykonávané funkce ",null,"Název právnické osoby","Asociace českých stavebních spořitelen"]
[null,null,"Orgán","prezidium"]
[null,null,"Funkce","člen"]
[]
["Členství člena vedoucího orgánu povinné osoby v orgánech jiných právnických osob "]
["Jméno a příjmení, včetně titulů",null,null,"Ing. Jan Jeníček"]
["Název právnické osoby, označení orgánu a v něm vykonávané funkce ",null,"Název právnické osoby","Česká bankovní asociace"]
[null,null,"Orgán","dozorčí výbor"]
[null,null,"Funkce","člen"]
[]
["Údaje o členech vedoucího orgánu a o osobách ve vrcholném vedení povinné osoby ",{"$nulls":3},"Bod 1 písm. i)\n bod 4"]
["Jméno a příjmení, včetně titulů",null,null,"Dr. Ing. Pavel Chmelík"]
["Označení orgánu a v něm vykonávané funkce nebo označení pozice ve vrcholném vedení, a datum, od kdy osoba vykonává příslušnou funkci nebo zastává danou pozici",null,"Orgán","představenstvo"]
[null,null,"Funkce/pozice","místopředseda představenstva"]
[null,null,"Datum počátku výkonu funkce/pozice","1. července 2014"]
["Dosavadní zkušenosti a kvalifikační předpoklady pro výkon dané funkce nebo zastávané pozice"]
[{"$nulls":3},"Západočeská univerzita, Plzeň, Fakulta strojní"]
[]
["Údaje o členech vedoucího orgánu a o osobách ve vrcholném vedení povinné osoby ",{"$nulls":3},"Bod 1 písm. i)\n bod 4"]
["Jméno a příjmení, včetně titulů",null,null,"Mgr. Roman Hurych"]
["Označení orgánu a v něm vykonávané funkce nebo označení pozice ve vrcholném vedení, a datum, od kdy osoba vykonává příslušnou funkci nebo zastává danou pozici",null,"Orgán","představenstvo"]
[null,null,"Funkce/pozice","místopředseda představenstva"]
[null,null,"Datum počátku výkonu funkce/pozice","17. prosince 2010"]
["Dosavadní zkušenosti a kvalifikační předpoklady pro výkon dané funkce nebo zastávané pozice"]
[{"$nulls":3},"Univerzita Karlova, Praha, Matematicko-fyzikální fakulta"]
[]
["Údaje o členech vedoucího orgánu a o osobách ve vrcholném vedení povinné osoby ",{"$nulls":3},"Bod 1 písm. i)\n bod 4"]
["Jméno a příjmení, včetně titulů",null,null,"Eva Bártová, DiS."]
["Označení orgánu a v něm vykonávané funkce nebo označení pozice ve vrcholném vedení, a datum, od kdy osoba vykonává příslušnou funkci nebo zastává danou pozici",null,"Orgán","vrcholné vedení"]
[null,null,"Funkce/pozice","ředitelka odboru spoření a služeb klientům"]
[null,null,"Datum počátku výkonu funkce/pozice","1. května 2010"]
["Dosavadní zkušenosti a kvalifikační předpoklady pro výkon dané funkce nebo zastávané pozice"]
[{"$nulls":3},"Bankovní akademie – vyšší odborná škola, Praha"]
[]
["Údaje o členech vedoucího orgánu a o osobách ve vrcholném vedení povinné osoby ",{"$nulls":3},"Bod 1 písm. i)\n bod 4"]
["Jméno a příjmení, včetně titulů",null,null,"Tomáš Beránek"]
["Označení orgánu a v něm vykonávané funkce nebo označení pozice ve vrcholném vedení, a datum, od kdy osoba vykonává příslušnou funkci nebo zastává danou pozici",null,"Orgán","vrcholné vedení"]
[null,null,"Funkce/pozice","ředitel odboru všeobecné správy"]
[null,null,"Datum počátku výkonu funkce/pozice","1. května 2008"]
["Dosavadní zkušenosti a kvalifikační předpoklady pro výkon dané funkce nebo zastávané pozice"]
[{"$nulls":3},"Střední průmyslová škola stavební, Havlíčkův Brod, obor pozemní stavby"]
["Členství v orgánech jiných právnických osob "]
["Jméno a příjmení, včetně titulů",null,null,"Tomáš Beránek"]
["Název právnické osoby, označení orgánu a v něm vykonávané funkce ",null,"Název právnické osoby","KONEVOVA s.r.o., Praha"]
[null,null,"Orgán"]
[null,null,"Funkce","jednatel"]
[]
["Údaje o členech vedoucího orgánu a o osobách ve vrcholném vedení povinné osoby ",{"$nulls":3},"Bod 1 písm. i)\n bod 4"]
["Jméno a příjmení, včetně titulů",null,null,"Ing. Stanislav Bican"]
["Označení orgánu a v něm vykonávané funkce nebo označení pozice ve vrcholném vedení, a datum, od kdy osoba vykonává příslušnou funkci nebo zastává danou pozici",null,"Orgán","vrcholné vedení"]
[null,null,"Funkce/pozice","ředitel odboru řízení rizik"]
[null,null,"Datum počátku výkonu funkce/pozice","15. dubna 2013"]
["Dosavadní zkušenosti a kvalifikační předpoklady pro výkon dané funkce nebo zastávané pozice"]
[{"$nulls":3},"Vysoká škola finanční a správní, Praha, Řízení podniku a podnikové finance"]
[]
["Údaje o členech vedoucího orgánu a o osobách ve vrcholném vedení povinné osoby ",{"$nulls":3},"Bod 1 písm. i)\n bod 4"]
["Jméno a příjmení, včetně titulů",null,null,"Mgr. Lenka Brdlíková"]
["Označení orgánu a v něm vykonávané funkce nebo označení pozice ve vrcholném vedení, a datum, od kdy osoba vykonává příslušnou funkci nebo zastává danou pozici",null,"Orgán","vrcholné vedení"]
[null,null,"Funkce/pozice","ředitelka odboru řízení lidských zdrojů"]
[null,null,"Datum počátku výkonu funkce/pozice","18. listopadu 2003"]
["Dosavadní zkušenosti a kvalifikační předpoklady pro výkon dané funkce nebo zastávané pozice"]
[{"$nulls":3},"Univerzita Karlova, Praha, Pedagogická fakulta"]
[]
["Údaje o členech vedoucího orgánu a o osobách ve vrcholném vedení povinné osoby ",{"$nulls":3},"Bod 1 písm. i)\n bod 4"]
["Jméno a příjmení, včetně titulů",null,null,"Ing. Pavel Fischer"]
["Označení orgánu a v něm vykonávané funkce nebo označení pozice ve vrcholném vedení, a datum, od kdy osoba vykonává příslušnou funkci nebo zastává danou pozici",null,"Orgán","vrcholné vedení"]
[null,null,"Funkce/pozice","ředitel odboru zpracování úvěrů"]
[null,null,"Datum počátku výkonu funkce/pozice","1. dubna 2005"]
["Dosavadní zkušenosti a kvalifikační předpoklady pro výkon dané funkce nebo zastávané pozice"]
[{"$nulls":3},"Vysoká škola ekonomická, Praha, Fakulta národohospodářská"]
[]
["Údaje o členech vedoucího orgánu a o osobách ve vrcholném vedení povinné osoby ",{"$nulls":3},"Bod 1 písm. i)\n bod 4"]
["Jméno a příjmení, včetně titulů",null,null,"Ing. Tomáš Kaňkovský"]
["Označení orgánu a v něm vykonávané funkce nebo označení pozice ve vrcholném vedení, a datum, od kdy osoba vykonává příslušnou funkci nebo zastává danou pozici",null,"Orgán","vrcholné vedení"]
[null,null,"Funkce/pozice","ředitel odboru informačních technologií"]
[null,null,"Datum počátku výkonu funkce/pozice","1. ledna 1996"]
["Dosavadní zkušenosti a kvalifikační předpoklady pro výkon dané funkce nebo zastávané pozice"]
[{"$nulls":3},"Česká zemědělská univerzita, Praha, Ekonomická fakulta"]
[]
["Údaje o členech vedoucího orgánu a o osobách ve vrcholném vedení povinné osoby ",{"$nulls":3},"Bod 1 písm. i)\n bod 4"]
["Jméno a příjmení, včetně titulů",null,null,"Ing. Miroslav Knobloch"]
["Označení orgánu a v něm vykonávané funkce nebo označení pozice ve vrcholném vedení, a datum, od kdy osoba vykonává příslušnou funkci nebo zastává danou pozici",null,"Orgán","vrcholné vedení"]
[null,null,"Funkce/pozice","ředitel odboru analýzy a aplikačního vývoje"]
[null,null,"Datum počátku výkonu funkce/pozice","1. března 2009"]
["Dosavadní zkušenosti a kvalifikační předpoklady pro výkon dané funkce nebo zastávané pozice"]
[{"$nulls":3},"České vysoké učení technické, Praha, Fakulta elektrotechnická"]
[]
["Údaje o členech vedoucího orgánu a o osobách ve vrcholném vedení povinné osoby ",{"$nulls":3},"Bod 1 písm. i)\n bod 4"]
["Jméno a příjmení, včetně titulů",null,null,"Ing. Lukáš Kopecký"]
["Označení orgánu a v něm vykonávané funkce nebo označení pozice ve vrcholném vedení, a datum, od kdy osoba vykonává příslušnou funkci nebo zastává danou pozici",null,"Orgán","vrcholné vedení"]
[null,null,"Funkce/pozice","ředitel odboru PR a marketingu"]
[null,null,"Datum počátku výkonu funkce/pozice","2011-09-01"]
["Dosavadní zkušenosti a kvalifikační předpoklady pro výkon dané funkce nebo zastávané pozice"]
[{"$nulls":3},"Vysoká škola finanční a správní, Praha, Řízení podniku a podnikové finance"]
[]
["Údaje o členech vedoucího orgánu a o osobách ve vrcholném vedení povinné osoby ",{"$nulls":3},"Bod 1 písm. i)\n bod 4"]
["Jméno a příjmení, včetně titulů",null,null,"Pavel Kotáb, DiS."]
["Označení orgánu a v něm vykonávané funkce nebo označení pozice ve vrcholném vedení, a datum, od kdy osoba vykonává příslušnou funkci nebo zastává danou pozici",null,"Orgán","vrcholné vedení"]
[null,null,"Funkce/pozice","ředitel odboru compliance"]
[null,null,"Datum počátku výkonu funkce/pozice","1. července 2014"]
["Dosavadní zkušenosti a kvalifikační předpoklady pro výkon dané funkce nebo zastávané pozice"]
[{"$nulls":3},"Bankovní akademie při Česko-německé obchodní a průmyslové komoře – diplom bankovní obchodník"]
[]
["Údaje o členech vedoucího orgánu a o osobách ve vrcholném vedení povinné osoby ",{"$nulls":3},"Bod 1 písm. i)\n bod 4"]
["Jméno a příjmení, včetně titulů",null,null,"RNDr. Vladimír Liss"]
["Označení orgánu a v něm vykonávané funkce nebo označení pozice ve vrcholném vedení, a datum, od kdy osoba vykonává příslušnou funkci nebo zastává danou pozici",null,"Orgán","vrcholné vedení"]
[null,null,"Funkce/pozice","ředitel odboru interního auditu"]
[null,null,"Datum počátku výkonu funkce/pozice","1. července 2014"]
["Dosavadní zkušenosti a kvalifikační předpoklady pro výkon dané funkce nebo zastávané pozice"]
[{"$nulls":3},"Univerzita Karlova, Praha, Matematicko-fyzikální fakulta"]
[]
["Údaje o členech vedoucího orgánu a o osobách ve vrcholném vedení povinné osoby ",{"$nulls":3},"Bod 1 písm. i)\n bod 4"]
["Jméno a příjmení, včetně titulů",null,null,"Ing. Michal Noha"]
["Označení orgánu a v něm vykonávané funkce nebo označení pozice ve vrcholném vedení, a datum, od kdy osoba vykonává příslušnou funkci nebo zastává danou pozici",null,"Orgán","vrcholné vedení"]
[null,null,"Funkce/pozice","ředitel odboru podpory prodeje"]
[null,null,"Datum počátku výkonu funkce/pozice","2015-09-01"]
["Dosavadní zkušenosti a kvalifikační předpoklady pro výkon dané funkce nebo zastávané pozice"]
[{"$nulls":3},"Vysoká škola báňská - Technická univerzita Ostrava, Ekonomická fakulta"]
[]
["Údaje o členech vedoucího orgánu a o osobách ve vrcholném vedení povinné osoby ",{"$nulls":3},"Bod 1 písm. i)\n bod 4"]
["Jméno a příjmení, včetně titulů",null,null,"Ing. Daniela Ostašovová"]
["Označení orgánu a v něm vykonávané funkce nebo označení pozice ve vrcholném vedení, a datum, od kdy osoba vykonává příslušnou funkci nebo zastává danou pozici",null,"Orgán","vrcholné vedení"]
[null,null,"Funkce/pozice","ředitelka odboru organizačního"]
[null,null,"Datum počátku výkonu funkce/pozice","1. ledna 1996"]
["Dosavadní zkušenosti a kvalifikační předpoklady pro výkon dané funkce nebo zastávané pozice"]
[{"$nulls":3},"Leningradská státní univerzita, Leningrad, Ekonomická fakulta"]
[]
["Údaje o členech vedoucího orgánu a o osobách ve vrcholném vedení povinné osoby ",{"$nulls":3},"Bod 1 písm. i)\n bod 4"]
["Jméno a příjmení, včetně titulů",null,null,"Ing. Hana Paveleková"]
["Označení orgánu a v něm vykonávané funkce nebo označení pozice ve vrcholném vedení, a datum, od kdy osoba vykonává příslušnou funkci nebo zastává danou pozici",null,"Orgán","vrcholné vedení"]
[null,null,"Funkce/pozice","ředitelka odboru externího odbytu"]
[null,null,"Datum počátku výkonu funkce/pozice","9. ledna 2017"]
["Dosavadní zkušenosti a kvalifikační předpoklady pro výkon dané funkce nebo zastávané pozice"]
[{"$nulls":3},"Bankovní institut vysoká škola Praha "]
[]
["Údaje o členech vedoucího orgánu a o osobách ve vrcholném vedení povinné osoby ",{"$nulls":3},"Bod 1 písm. i)\n bod 4"]
["Jméno a příjmení, včetně titulů",null,null,"JUDr. Bohuslav Pavlík"]
["Označení orgánu a v něm vykonávané funkce nebo označení pozice ve vrcholném vedení, a datum, od kdy osoba vykonává příslušnou funkci nebo zastává danou pozici",null,"Orgán","vrcholné vedení"]
[null,null,"Funkce/pozice","ředitel odboru právního"]
[null,null,"Datum počátku výkonu funkce/pozice","1. října 1995"]
["Dosavadní zkušenosti a kvalifikační předpoklady pro výkon dané funkce nebo zastávané pozice"]
[{"$nulls":3},"Univerzita Karlova, Praha, Právnická fakulta"]
[]
["Údaje o členech vedoucího orgánu a o osobách ve vrcholném vedení povinné osoby ",{"$nulls":3},"Bod 1 písm. i)\n bod 4"]
["Jméno a příjmení, včetně titulů",null,null,"Bc. Pavel Vrzáček"]
["Označení orgánu a v něm vykonávané funkce nebo označení pozice ve vrcholném vedení, a datum, od kdy osoba vykonává příslušnou funkci nebo zastává danou pozici",null,"Orgán","vrcholné vedení"]
[null,null,"Funkce/pozice","ředitel odboru interního odbytu"]
[null,null,"Datum počátku výkonu funkce/pozice","1. března 2013"]
["Dosavadní zkušenosti a kvalifikační předpoklady pro výkon dané funkce nebo zastávané pozice"]
[{"$nulls":3},"Masarykova univerzita, Brno, Ekonomicko-správní fakulta"]
[]
["Údaje o členech vedoucího orgánu a o osobách ve vrcholném vedení povinné osoby ",{"$nulls":3},"Bod 1 písm. i)\n bod 4"]
["Jméno a příjmení, včetně titulů",null,null,"Ing. Petr Zaremba"]
["Označení orgánu a v něm vykonávané funkce nebo označení pozice ve vrcholném vedení, a datum, od kdy osoba vykonává příslušnou funkci nebo zastává danou pozici",null,"Orgán","vrcholné vedení"]
[null,null,"Funkce/pozice","ředitel odboru finančního"]
[null,null,"Datum počátku výkonu funkce/pozice","17. prosince 2010"]
["Dosavadní zkušenosti a kvalifikační předpoklady pro výkon dané funkce nebo zastávané pozice"]
[{"$nulls":3},"Vysoká škola ekonomická, Praha, Fakulta mezinárodních vztahů"]

{"sheet":"I. Část 1a","index":2,"n_rows":9,"n_cols":5,"rows_kept":9,"merged":[[2,0,2,4],[3,0,4,3],[3,4,4,4],[5,0,5,2],[6,0,6,2],[6,4,8,4],[7,0,7,2],[8,0,8,3]]}
["I. Část 1a"]
["Organizační struktura povinné osoby"]
[]
["Organizační struktura povinné osoby",{"$nulls":3},"Vyhláška č.163/2014 Sb., příloha 10"]
[]
["Informace platné k datu:",null,null,{"$f":"Obsah!C8","v":"2017-03-31"}]
["Počet obchodních míst ",null,null,180,"Bod 1 písm. h)"]
["Počet pracovníků (přepočtený stav)",null,null,267]
["Organizační struktura povinné osoby (znázorní se níže)"]

{"sheet":"I. Část 2","index":3,"n_rows":11,"n_cols":11,"rows_kept":11,"merged":[[0,0,0,1],[2,0,2,7],[3,0,4,9],[3,10,4,10],[5,0,5,2],[5,3,5,9],[6,0,6,9],[6,10,10,10],[7,0,7,7],[7,8,7,9]]}
["I. Část 2"]
["Údaje o složení společníků nebo členů povinné osoby"]
[]
["Údaje o složení společníků nebo členů povinné osoby",{"$nulls":9},"Vyhláška č.163/2014 Sb., příloha 10"]
[]
["Informace platné k datu:",null,null,{"$f":"Obsah!C8","v":"2017-03-31"}]
["Údaje o společnících nebo členech povinné osoby s kvalifikovanou účastí na povinné osobě ",{"$nulls":9},"Bod 2 \npísm. a), b)"]
["Společnící nebo členové, kteří jsou právnickými osobami",{"$nulls":7},"Společníci nebo členové, kteří jsou fyzickými osobami"]
["Číslo řádku","Obchodní firma","Právní forma","Adresa sídla","Adresa sídla (země)","Identifikační číslo, je-li přiděleno","Odvětvová klasifikace ekonomických činností","Výše podílu na hlasovacích právech (v %)","Jméno a příjmení ","Výše podílu na hlasovacích právech (v %)"]
[1,"Raiffeisen Bausparkassen Holding GmbH","GmbH (společnost s ručením omezeným)","Mooslackengasse 12, 1190 Vídeň, Rakousko","AT",null,"64","90%"]
[2,"Raiffeisenbank a.s.","akciová společnost","Hvězdova 1716/2b, 140 78 Praha 4","CZ","49240901","64","10%"]

{"sheet":"I. Část 3","index":4,"n_rows":81,"n_cols":22,"rows_kept":81,"merged":[[0,0,0,20],[1,0,1,20],[2,0,2,21],[3,0,4,20],[3,21,4,21],[5,0,5,2],[5,3,5,20],[6,0,7,0],[6,1,7,1],[6,2,7,2],[6,3,7,3],[6,4,7,4],[6,5,7,5],[6,6,7,6],[6,7,7,7],[6,8,7,8],[6,9,7,9],[6,10,7,10],[6,11,7,11],[6,12,7,12],[6,13,6,14],[6,15,6,16],[6,17,7,17],[6,18,7,18],[6,19,7,19],[6,20,7,20],[6,21,9,21],[11,21,40,21],[41,0,42,20],[41,21,42,21],[43,0,44,0],[43,1,44,1],[43,2,44,2],[43,3,44,3],[43,4,44,4],[43,5,44,5],[43,6,44,6],[43,7,44,7],[43,8,44,8],[43,9,44,9],[43,10,44,10],[43,11,44,11],[43,12,44,12],[43,13,43,14],[43,15,43,16],[43,17,44,17],[43,18,44,18],[43,19,44,19],[43,20,44,20],[43,21,45,21],[46,21,74,21]]}
["I. Část 3"]
["Údaje o struktuře konsolidačního celku, jehož je povinná osoba součástí"]
[]
["Informace o osobách, které jsou ve vztahu k povinné osobě ovládajícími osobami, popřípadě většinovým společníkem ",{"$nulls":20},"Vyhláška č.163/2014 Sb., příloha 10"]
[]
["Informace platné k datu:",null,null,{"$f":"Obsah!$C$8","v":"2017-03-31"}]
["Číslo řádku","Obchodní firma","Právní forma","Adresa sídla","Adresa sídla (země)","Identifikační číslo, je-li přiděleno","Odvětvová klasifikace ekonomických činností ","Jméno a příjmení (v případě fyzické osoby)","Přímý podíl na základním kapitálu povinné osoby (v %)","Nepřímý podíl na základním kapitálu povinné osoby (v %)","Přímý podíl na hlasovacích právech povinné osoby (v %)","Neřímý podíl na hlasovacích právech povinné osoby (v %)","Jiný způsob ovládání","Souhrnná výše dluhových nástrojů, které má povinná osoba v aktivech a které jsou závazkem těchto osob, \nv členění podle osob  (v tis. Kč)",null,"Souhrnná výše závazků povinné osoby vůči těmto osobám, \nv členění podle osob (v tis. Kč)",null,"Souhrnná výše kapitálových nástrojů, které má povinná osoba v aktivech a které jsou vlastním kapitálem těchto osob, v členění podle osob (v tis. Kč)","Souhrnná výše závazků povinné osoby z těchto kapitálových nástrojů, v členění podle osob (v tis. Kč)e","Souhrnná výše povinnou osobou vydaných záruk za těmito osobami, v členění podle osob (v tis. Kč)","Souhrnná výše povinnou osobou přijatých záruk od takových osob, v členění podle osob (v tis. Kč)","Bod 3 písm. a)"]
[{"$nulls":13},"Dluhové cenné papírya","Ostatní dluhové nástrojeb","Dluhové cenné papíryc","Ostatní dluhové nástrojed"]
[1,"Raiffeisen Bausparkassen Holding GmbH","GmbH (společnost s ručením omezeným)","Mooslackengasse 12, 1190 Vídeň, Rakousko","AT",null,64,null,{"v":0.9,"d":"90%"},null,{"v":0.9,"d":"90%"},null,null,0,0,0,0,0,0,0,0]
[2,"Raiffeisen Bausparkasse Gesellschaft m.b.H.","GmbH (společnost s ručením omezeným)","Mooslackengasse 12, 1190 Vídeň, Rakousko","AT",null,64,null,null,{"v":0.9,"d":"90%"},null,{"v":0.9,"d":"90%"},null,0,0,0,0,0,0,0,0]
[]
[{"$nulls":21},"Bod 3 písm. a)"]
{"$rows_empty":29}
[" Informace o osobách, které jsou ve vztahu k povinné osobě ovládanými osobami, popřípadě v nichž je povinná osoba většinovým společníkem",{"$nulls":20},"Vyhláška č.163/2014 Sb., příloha 10"]
[]
["Číslo řádku","Obchodní firma","Právní forma","Adresa sídla","Adresa sídla (země)","Identifikační číslo, je-li přiděleno","Odvětvová klasifikace ekonomických činností","Zahrnutí do obezřetnostní konsolidace (ano/ne)f","Přímý podíl povinné osoby na základním kapitálu (v %)","Nepřímý podíl povinné osoby na základním kapitálu (v %)","Přímý podíl povinné osoby na hlasovacích právech (v %)","Nepřímý podíl povinné osoby na hlasovacích právech (v %)","Jiný způsob ovládání","Souhrnná výše dluhových nástrojů, které má povinná osoba v aktivech a které jsou závazkem těchto osob, \nv členění podle osob  (v tis. Kč)",null,"Souhrnná výše závazků povinné osoby vůči těmto osobám, \nv členění podle osob (v tis. Kč)",null,"Souhrnná výše kapitálových nástrojů, které má povinná osoba v aktivech a které jsou vlastním kapitálem těchto osob, v členění podle osob v tis. Kč)","Souhrnná výše závazků povinné osoby z těchto kapitálových nástrojů, v členění podle osob (v tis. Kč)e","Souhrnná výše povinnou osobou vydaných záruk za takové osoby, v členění podle osob (v tis. Kč)","Souhrnná výše povinnou osobou přijatých záruk od takových osob, v členění podle osob (v tis. Kč)","Bod 3 písm. b)"]
[{"$nulls":13},"Dluhové cenné papírya","Ostatní dluhové nástrojeb","Dluhové cenné papíryc","Ostatní dluhové nástrojed"]
[1,"KONEVOVA s.r.o.","společnost s ručením omezeným","Koněvova 2747/99, 130 45 Praha 3","CZ",63994755,68,"ne",{"v":1,"d":"100%"},null,{"v":1,"d":"100%"},null,null,0,162467,0,0,0,0,0,0]
["…",{"$nulls":20},"Bod 3 písm. b)"]
["…"]
["…"]
["…"]
["…"]
["…"]
["…"]
["…"]
["…"]
["…"]
["…"]
["…"]
["…"]
["…"]
["…"]
["…"]
["…"]
["…"]
["…"]
["…"]
["…"]
["…"]
["…"]
["…"]
["…"]
["…"]
["…"]
["…"]
["…"]
["Pozn.:",{"$nulls":12}," a tj. dluhové cenné papíry držené povinnou osobou v aktivech a vydané ovládajícími nebo ovládanými osobami, popřípadě osobami, v nichž je povinná osoba většinovým společníkem"]
[{"$nulls":13}," b tj. ostatní pohledávky povinné osoby vůči ovládajícím nebo ovládaným osobám, popřípadě osobám, v nichž je povinná osoba většinovým společníkem"]
[{"$nulls":13}," c tj. dluhové cenné papíry vydané povinnou osobou a držené ovládajícími nebo ovládanými osobami v aktivech, popřípadě osobami, v nichž je povinná osoba většinovým společníkem"]
[{"$nulls":13}," d tj. ostatní závázky povinné osoby vůči ovládajícím nebo ovládaným osobám, popřípadě osobám, v nichž je povinná osoba většinovým společníkem"]
[{"$nulls":13}," e tj. závazky z krátkých prodejů"]
[{"$nulls":13}," f Grafické znázornění konsolidačního celku, jehož členem je povinná osoba, z hlediska vlastnického uspořádání  je znázorněno na listu I. Část 3a"]

{"sheet":"I. Část 3a","index":5,"n_rows":50,"n_cols":4,"rows_kept":50,"merged":[[0,0,0,2],[1,0,1,2],[2,0,2,3],[3,0,4,2],[3,3,4,3],[6,0,6,2],[7,0,7,3],[8,0,8,3],[9,0,9,3],[10,0,10,3],[11,0,11,3],[12,0,12,3]]}
["I. Část 3a"]
["Grafické znázornění konsolidačního celku, jehož členem je povinná osoba, z hlediska vlastnického uspořádání "]
[]
["Grafické údaje o struktuře konsolidačního celku, jehož je povinná osoba součástí",null,null,"Vyhláška č.163/2014 Sb., příloha 10"]
[]
["Informace platné k datu:",null,{"$f":"Obsah!C8","v":"2017-03-31"}]
["Grafické znázornění konsolidačního celku, jehož členem je povinná osoba, z hlediska vlastnického uspořádání s vyznačením osob, které jsou zahrnuty do obezřetnostní konsolidace, a uvedením důvodu pro nezahrnutí do obezřetnostní konsolidace u ostatních osob",null,null,"Bod 3 písm. c)"]
["U daného subjektu stačí uvést příslušné číslo odůvodnění:"]
["1 - není institucí, finanční institucí, podnikem pomocných služeb nebo společností spravující aktiva podle článku 18 odst. 8 nařízení č. 575/2013/EU"]
["2 - nezahrnutí subjektu z důvodu jeho velikosti, tj. subjekt splňuje podmínky podle článku 19 odst. 1 nařízení č. 575/2013/EU"]
["3 - subjekt není zahrnut z důvodů uvedených v článku 19 odst. 2 písm. a) nařízení č. 575/2013/EU"]
["4 - subjekt není zahrnut z důvodů uvedených v článku 19 odst. 2 písm. b) nařízení č. 575/2013/EU"]
["5 - subjekt není zahrnut z důvodů uvedených v článku 19 odst. 2 písm. c) nařízení č. 575/2013/EU"]
{"$rows_empty":36}
["Všechny uvedené společnosti jsou zahrnuty do obezřetnostní konsolidace Raiffeisen Bank International AG."]

{"sheet":"I. Část 3b","index":6,"n_rows":47,"n_cols":4,"rows_kept":47,"merged":[[0,0,0,2],[1,0,1,2],[2,0,2,3],[3,0,4,2],[3,3,4,3],[6,0,6,2],[7,0,7,3],[8,0,8,3],[9,0,9,3],[10,0,10,3],[11,0,11,3],[12,0,12,3]]}
["I. Část 3b"]
["Grafické znázornění konsolidačního celku, jehož členem je povinná osoba, z hlediska řízení"]
[]
["Grafické údaje o struktuře konsolidačního celku, jehož je povinná osoba součástí",null,null,"Vyhláška č.163/2014 Sb., příloha 10"]
[]
["Informace platné k datu:",null,{"$f":"Obsah!C8","v":"2017-03-31"}]
["Grafické znázornění konsolidačního celku, jehož členem je povinná osoba, z hlediska řízení s vyznačením osob, které jsou zahrnuty do obezřetnostní konsolidace, a uvedením důvodu pro nezahrnutí do obezřetnostní konsolidace u ostatních osob",null,null,"Bod 3 písm. d)"]
["U daného subjektu stačí uvést příslušné číslo odůvodnění:"]
["1 - není institucí, finanční institucí, podnikem pomocných služeb nebo společností spravující aktiva podle článku 18 odst. 8 nařízení č. 575/2013/EU"]
["2 - nezahrnutí subjektu z důvodu jeho velikosti, tj. subjekt splňuje podmínky podle článku 19 odst. 1 nařízení č. 575/2013/EU"]
["3 - subjekt není zahrnut z důvodů uvedených v článku 19 odst. 2 písm. a) nařízení č. 575/2013/EU"]
["4 - subjekt není zahrnut z důvodů uvedených v článku 19 odst. 2 písm. b) nařízení č. 575/2013/EU"]
["5 - subjekt není zahrnut z důvodů uvedených v článku 19 odst. 2 písm. c) nařízení č. 575/2013/EU"]
{"$rows_empty":33}
["Všechny uvedené společnosti jsou zahrnuty do obezřetnostní konsolidace Raiffeisen Bank International AG."]

{"sheet":"I. Část 4","index":7,"n_rows":20,"n_cols":4,"rows_kept":20,"merged":[[2,0,2,3],[3,0,3,3],[4,0,4,3],[5,0,5,1],[5,2,5,3],[6,0,7,0]]}
["I. Část 4"]
["Údaje o činnosti povinné osoby"]
[]
["Údaje o činnosti povinné osoby"]
["Vyhláška č.163/2014 Sb., příloha 10"]
["Informace platné k datu:",null,{"$f":"Obsah!C8","v":"2017-03-31"}]
["číslo řádku","Bod 4 písm. a)","Bod 4 písm. b)","Bod 4 písm. c)"]
[null,"Předmět podnikání (činnosti) zapsaný v obchodním rejstříku","Přehled činností skutečně vykonávaných podle licence udělené Českou národní bankou","Přehled činností, jejichž vykonávání nebo poskytování bylo Českou národní bankou omezeno nebo vyloučeno"]
[1,"přijímání vkladů od účastníků stavebního spoření","přijímání vkladů od účastníků stavebního spoření"]
[2,"poskytování úvěrů účastníkům stavebního spoření","poskytování úvěrů účastníkům stavebního spoření"]
[3,"poskytování příspěvku fyzickým osobám účastníkům stavebního spoření","poskytování příspěvku fyzickým osobám účastníkům stavebního spoření"]
[4,"poskytování úvěrů osobám, jejichž výrobky a poskytované služby jsou určeny pro uspokojování bytových potřeb","poskytování úvěrů osobám, jejichž výrobky a poskytované služby jsou určeny pro uspokojování bytových potřeb"]
[5,"přijímání vkladů od bank, zahraničních bank, poboček zahraničních bank, finančních institucí, zahraničních finančních institucí a poboček zahraničních finančních institucí","přijímání vkladů od bank, zahraničních bank, poboček zahraničních bank, finančních institucí, zahraničních finančních institucí a poboček zahraničních finančních institucí"]
[6,"poskytování záruk za úvěry ze stavebního spoření, za úvěry poskytnuté podle § 5 odst. 5 zákona o stavebním spoření a za úvěry uvedené v § 9 odst. 1 písm. a) zákona o stavebním spoření","poskytování záruk za úvěry ze stavebního spoření, za úvěry poskytnuté podle § 5 odst. 5 zákona o stavebním spoření a za úvěry uvedené v § 9 odst. 1 písm. a) zákona o stavebním spoření"]
[7,"obchodování na vlastní účet s hypotečními zástavními listy a s obdobnými produkty vydávanými členskými státy Organizace pro hospodářskou spolupráci a rozvoj","obchodování na vlastní účet s hypotečními zástavními listy a s obdobnými produkty vydávanými členskými státy Organizace pro hospodářskou spolupráci a rozvoj"]
[8,"obchodování na vlastní účet s dluhopisy vydávanými Českou republikou, s dluhopisy, za které převzala Česká republika záruku, a s dluhopisy vydávanými Českou národní bankou","obchodování na vlastní účet s dluhopisy vydávanými Českou republikou, s dluhopisy, za které převzala Česká republika záruku, a s dluhopisy vydávanými Českou národní bankou"]
[9,"obchodování na vlastní účet s dluhopisy vydávanými členskými státy Organizace pro hospodářskou spolupráci a rozvoj, centrálními bankami, finančními institucemi těchto států a bankami se sídlem v těchto státech, jakož i s dluhopisy, za které tyto státy převzaly záruku, a s dluhopisy vydávanými Evropskou investiční bankou, Nordic Investment Bank a Evropskou centrální bankou","obchodování na vlastní účet s dluhopisy vydávanými členskými státy Organizace pro hospodářskou spolupráci a rozvoj, centrálními bankami, finančními institucemi těchto států a bankami se sídlem v těchto státech, jakož i s dluhopisy, za které tyto státy převzaly záruku, a s dluhopisy vydávanými Evropskou investiční bankou, Nordic Investment Bank a Evropskou centrální bankou"]
[10,"provádění platebního styku a jeho zúčtování v souvislosti s činností stavební spořitelny","provádění platebního styku a jeho zúčtování v souvislosti s činností stavební spořitelny"]
[11,"poskytování bankovních informací","poskytování bankovních informací"]
[12,"výkon finančního makléřství","výkon finančního makléřství"]

{"sheet":"I. Část 5","index":8,"n_rows":24,"n_cols":8,"rows_kept":24,"merged":[[0,0,0,1],[1,0,1,1],[2,0,2,7],[3,0,4,6],[3,7,4,7],[5,0,5,2],[5,3,5,6],[6,0,7,2],[6,7,7,7],[8,0,9,1],[8,7,9,7],[10,0,12,0],[10,7,12,7],[13,0,17,0],[13,7,17,7],[18,0,23,0],[18,7,23,7]]}
["I. Část 5"]
["Údaje o finanční situaci povinné osoby "]
[]
["Údaje o finanční situaci povinné osoby",{"$nulls":6},"Vyhláška č.163/2014 Sb., příloha 10"]
[]
["Informace platné k datu:",null,null,{"$f":"Obsah!C8","v":"2017-03-31"}]
["(v tis. Kč / v  %)",null,null,"K ultimu vykazovaného období","K ultimu 1. předcházejícího období","K ultimu 2. předcházejícího období","K ultimu 3. předcházejícího období"]
[{"$nulls":3},"2017-03-31","2016-12-31","2016-09-30","2016-06-30"]
["Souhrnná výše pohledávek povinné osoby, která je bankou nebo spořitelním a úvěrním družstvem, z finančních činností, u nichž byla během účetního období provedena restrukturalizace (součet zůstatků účtů pohledávek k vykazovanému datu, a to pohledávek, u nichž byla během účetního období provedena restrukturalizace); pohledávky jsou uváděny bez opravných položek",null,"Pohledávky oceňované naběhlou hodnotou",{"v":6194,"d":"6,194"},{"v":33664,"d":"33,664"},{"v":27471,"d":"27,471"},{"v":19171,"d":"19,171"},"Bod 5 písm. e)"]
[null,null,"Pohledávky oceňované reálnou hodnotou",null,0,0,0]
["Kapitálové poměry","Kapitálový poměr pro kmenový kapitál tier 1",null,{"v":0.1624,"d":"16.24%"},{"v":0.1612,"d":"16.12%"},{"v":0.1633,"d":"16.33%"},{"v":0.1656,"d":"16.56%"},"Bod 5 písm. g)"]
[null,"Kapitálový poměr pro kapitál tier 1",null,{"v":0.1624,"d":"16.24%"},{"v":0.1612,"d":"16.12%"},{"v":0.1633,"d":"16.33%"},{"v":0.1656,"d":"16.56%"}]
[null,"Kapitálový poměr pro celkový kapitál",null,{"v":0.1624,"d":"16.24%"},{"v":0.1612,"d":"16.12%"},{"v":0.1633,"d":"16.33%"},{"v":0.1656,"d":"16.56%"}]
["Poměrové ukazatele povinné osoby, která je bankou nebo spořitelním a úvěrním družstvem","Rentabilita průměrných aktiv (ROAA)",null,{"v":0.005910761739811156,"d":"0.59%"},{"v":0.007605494062742938,"d":"0.76%"},{"v":0.006949644896732943,"d":"0.69%"},{"v":0.005939459029143283,"d":"0.59%"},"Bod 5 písm. h)"]
[null,"Rentabilita průměrného kapitálu tier 1 (ROAE)",null,{"v":0.09626061663123152,"d":"9.63%"},{"v":0.12745270548022483,"d":"12.75%"},{"v":0.11864412020265731,"d":"11.86%"},{"v":0.10545778808811984,"d":"10.55%"}]
[null,"Aktiva na jednoho pracovníka ","v tis. Kč",{"v":252965,"d":"252,965"},{"v":249973,"d":"249,973"},{"v":241088,"d":"241,088"},{"v":251844,"d":"251,844"}]
[null,"Správní náklady na jednoho pracovníka ","v tis. Kč",{"v":1722,"d":"1,722"},{"v":1781,"d":"1,781"},{"v":1938,"d":"1,938"},{"v":2070,"d":"2,070"}]
[null,"Zisk nebo ztráta po zdanění na jednoho pracovníka ","v tis. Kč",{"v":1490,"d":"1,490"},{"v":2000,"d":"2,000"},{"v":1864,"d":"1,864"},{"v":1661,"d":"1,661"}]
["Poměrové ukazatele povinné osoby, která je obchodníkem s cennými papíry","Zadluženost I (celkový dluh bez majetku klientů/aktiva bez majetku klientů)",{"$nulls":5},"Bod 5 písm. i)"]
[null,"Zadluženost II (celkový dluh bez majetku klientů/vlastní kapitál)"]
[null,"Rentabilita průměrných aktiv (ROAA, aktiva bez majetku klientů)"]
[null,"Rentabilita průměrného kapitálu tier 1 (ROAE)"]
[null,"Rentabilita tržeb (zisk po zdanění/výnosy z investičních služeb)"]
[null,"Správní náklady na jednoho pracovníka "]

{"sheet":"I. Část 5a","index":9,"n_rows":24,"n_cols":10,"rows_kept":24,"hidden":true,"merged":[[2,0,2,4],[3,0,4,8],[3,9,4,9],[5,1,5,2],[6,0,8,0],[6,1,6,2],[6,3,6,4],[6,5,6,6],[6,7,6,8],[6,9,14,9],[7,1,7,2],[7,3,7,4],[7,5,7,6],[7,7,7,8],[15,0,17,0],[15,1,15,2],[15,3,15,4],[15,5,15,6],[15,7,15,8],[15,9,23,9],[16,1,16,2],[16,3,16,4],[16,5,16,6],[16,7,16,8]]}
["I. Část 5a"]
["Údaje o finanční situaci povinné osoby - deriváty "]
[]
["Údaje o finanční situaci povinné osoby - deriváty ",{"$nulls":8},"Vyhláška č.163/2014 Sb., příloha 10"]
[]
["Informace platné k datu:",{"$f":"Obsah!C8","v":42825}]
["Reálné a jmenovité hodnoty derivátů (v tis. Kč) - aktiva","K ultimu vykazovaného období",null,"K ultimu 1. předcházejícího období",null,"K ultimu 2. předcházejícího období",null,"K ultimu 3. předcházejícího období",null,"Bod 5 písm. f)"]
[null,"(qq/rrrr)",null,"(qq/rrrr)",null,"(qq/rrrr)",null,"(qq/rrrr)"]
[null,"Jmenovitá hodnota","Reálná hodnota","Jmenovitá hodnota","Reálná hodnota","Jmenovitá hodnota","Reálná hodnota","Jmenovitá hodnota","Reálná hodnota"]
["Dělení derivátů dle účelu"]
["Souhrnně za deriváty sjednané za účelem zajišťování"]
["Souhrnně za deriváty sjednané za účelem obchodování nebo spekulace "]
["Dělení derivátů dle účetního hlediska"]
["Souhrnně za deriváty, u nichž povinná osoba uplatňuje zajišťovací účetnictví"]
["Souhrnně za deriváty ostatní"]
["Reálné a jmenovité hodnoty derivátů (v tis. Kč) - pasiva","K ultimu vykazovaného období",null,"K ultimu 1. předcházejícího období",null,"K ultimu 2. předcházejícího období",null,"K ultimu 3. předcházejícího období",null,"Bod 5 písm. f)"]
[null,"(qq/rrrr)",null,"(qq/rrrr)",null,"(qq/rrrr)",null,"(qq/rrrr)"]
[null,"Jmenovitá hodnota","Reálná hodnota","Jmenovitá hodnota","Reálná hodnota","Jmenovitá hodnota","Reálná hodnota","Jmenovitá hodnota","Reálná hodnota"]
["Dělení derivátů dle účelu"]
["Souhrnně za deriváty sjednané za účelem zajišťování"]
["Souhrnně za deriváty sjednané za účelem obchodování nebo spekulace "]
["Dělení derivátů dle účetního hlediska"]
["Souhrnně za deriváty, u nichž povinná osoba uplatňuje zajišťovací účetnictví"]
["Souhrnně za deriváty ostatní"]

{"sheet":"I. Část 5b","index":10,"n_rows":33,"n_cols":26,"rows_kept":33,"merged":[[2,0,2,25],[3,0,4,5],[3,25,4,25],[5,0,5,2],[5,5,5,6],[6,0,9,0],[6,1,6,6],[6,7,6,12],[6,13,6,18],[6,19,6,24],[6,25,26,25],[7,1,7,6],[7,7,7,12],[7,13,7,18],[7,19,7,24],[8,1,9,1],[8,2,9,2],[8,3,9,3],[8,4,9,4],[8,5,9,5],[8,6,9,6],[8,7,9,7],[8,8,9,8],[8,9,9,9],[8,10,9,10],[8,11,9,11],[8,12,9,12],[8,13,9,13],[8,14,9,14],[8,15,9,15],[8,16,9,16],[8,17,9,17],[8,18,9,18],[8,19,9,19],[8,20,9,20],[8,21,9,21],[8,22,9,22],[8,23,9,23],[8,24,9,24],[27,0,30,0],[27,1,27,6],[27,7,27,12],[27,13,27,18],[27,19,27,24],[27,25,32,25],[28,1,28,6],[28,7,28,12],[28,13,28,18],[28,19,28,24],[29,1,30,1],[29,2,30,2],[29,3,30,3],[29,4,30,4],[29,5,30,5],[29,6,30,6],[29,7,30,7],[29,8,30,8],[29,9,30,9],[29,10,30,10],[29,11,30,11],[29,12,30,12],[29,13,30,13],[29,14,30,14],[29,15,30,15],[29,16,30,16],[29,17,30,17],[29,18,30,18],[29,19,30,19],[29,20,30,20],[29,21,30,21],[29,22,30,22],[29,23,30,23],[29,24,30,24]]}
["I. Část 5b"]
["Údaje o finanční situaci povinné osoby - informace povinné osoby, která je bankou nebo spořitelním a úvěrním družstvem o pohledávkách"]
[]
["Údaje o finanční situaci povinné osoby - informace povinné osoby, která je bankou nebo spořitelním a úvěrním družstvem o pohledávkách",{"$nulls":24},"Vyhláška č.163/2014 Sb., \npříloha 10"]
[]
["Informace platné k datu:",{"$nulls":4},{"$f":"Obsah!C8","v":"2017-03-31"}]
["Pohledávky z finančních činností bez selhání a se selháním (v tis. Kč)","K ultimu vykazovaného období",{"$nulls":5},"K ultimu 1. předcházejícího období",{"$nulls":5},"K ultimu 2. předcházejícího období",{"$nulls":5},"K ultimu 3. předcházejícího období",{"$nulls":5},"Bod 5 písm. c)"]
[null,"2017-03-31",{"$nulls":5},"2016-12-31",{"$nulls":5},"2016-09-30",{"$nulls":5},"2016-06-30"]
[null,"Hodnota před znehodnocením","Účetní hodnota (netto)","Opravné položky k jednotlivým pohledávkám","Opravné položky k port. pohled. jednotlivě bez znehodnocení","Opravné položky k portfoliu jednotlivě nevýznam. pohledávek","Kumulovaná ztráta z ocenění reálnou hodnotou","Hodnota před znehodnocením","Účetní hodnota (netto)","Opravné položky k jednotlivým pohledávkám","Opravné položky k port. pohled. jednotlivě bez znehodnocení","Opravné položky k portfoliu jednotlivě nevýznam. pohledávek","Kumulovaná ztráta z ocenění reálnou hodnotou","Hodnota před znehodnocením","Účetní hodnota (netto)","Opravné položky k jednotlivým pohledávkám","Opravné položky k port. pohled. jednotlivě bez znehodnocení","Opravné položky k portfoliu jednotlivě nevýznam. pohledávek","Kumulovaná ztráta z ocenění reálnou hodnotou","Hodnota před znehodnocením","Účetní hodnota (netto)","Opravné položky k jednotlivým pohledávkám","Opravné položky k port. pohled. jednotlivě bez znehodnocení","Opravné položky k portfoliu jednotlivě nevýznam. pohledávek","Kumulovaná ztrata z oceneni realnou hodnotou"]
[]
["Pohledávky z finančních činností celkem",{"v":39643169,"d":"39,643,169"},{"v":38714195,"d":"38,714,195"},{"v":928974,"d":"928,974"},0,0,0,{"v":39402148,"d":"39,402,148"},{"v":38465725,"d":"38,465,725"},{"v":936423,"d":"936,423"},0,0,0,{"v":39212587,"d":"39,212,587"},{"v":38245094,"d":"38,245,094"},{"v":967493,"d":"967,493"},0,0,0,{"v":38863860,"d":"38,863,860"},{"v":37841283,"d":"37,841,283"},{"v":1022577,"d":"1,022,577"},0,0,0]
["   Pohledávky za úvěrovými institucemi",{"v":5167,"d":"5,167"},{"v":5167,"d":"5,167"},0,0,0,0,{"v":8371,"d":"8,371"},{"v":8371,"d":"8,371"},0,0,0,0,{"v":9365,"d":"9,365"},{"v":9365,"d":"9,365"},0,0,0,0,{"v":7506,"d":"7,506"},{"v":7506,"d":"7,506"},0,0,0,0]
["      Pohledávky za úvěrovými institucemi bez selhání",{"v":5167,"d":"5,167"},{"v":5167,"d":"5,167"},0,0,0,0,{"v":8371,"d":"8,371"},{"v":8371,"d":"8,371"},0,0,0,0,{"v":9365,"d":"9,365"},{"v":9365,"d":"9,365"},0,0,0,0,{"v":7506,"d":"7,506"},{"v":7506,"d":"7,506"},0,0,0,0]
["         Standardní pohledávky za úvěrovými institucemi",{"v":5167,"d":"5,167"},{"v":5167,"d":"5,167"},0,0,0,0,{"v":8371,"d":"8,371"},{"v":8371,"d":"8,371"},0,0,0,0,{"v":9365,"d":"9,365"},{"v":9365,"d":"9,365"},0,0,0,0,{"v":7506,"d":"7,506"},{"v":7506,"d":"7,506"},0,0,0,0]
["         Sledované pohledávky za úvěrovými institucemi",0,0,0,0,0,0,0,0,0,0,0,0,0,0,0,0,0,0,0,0,0,0,0,0]
["      Pohledávky za úvěrovými institucemi se selháním",0,0,0,0,0,0,0,0,0,0,0,0,0,0,0,0,0,0,0,0,0,0,0,0]
["         Nestandardní pohledávky za úvěrovými institucemi",0,0,0,0,0,0,0,0,0,0,0,0,0,0,0,0,0,0,0,0,0,0,0,0]
["         Pochybné pohledávky za úvěrovými institucemi",0,0,0,0,0,0,0,0,0,0,0,0,0,0,0,0,0,0,0,0,0,0,0,0]
["         Ztrátové pohledávky za úvěrovými institucemi",0,0,0,0,0,0,0,0,0,0,0,0,0,0,0,0,0,0,0,0,0,0,0,0]
["   Pohledávky za jinými osobami než úvěr.institucemi",{"v":39638002,"d":"39,638,002"},{"v":38709028,"d":"38,709,028"},{"v":928974,"d":"928,974"},0,0,0,{"v":39393777,"d":"39,393,777"},{"v":38457354,"d":"38,457,354"},{"v":936423,"d":"936,423"},0,0,0,{"v":39203222,"d":"39,203,222"},{"v":38235729,"d":"38,235,729"},{"v":967493,"d":"967,493"},0,0,0,{"v":38856354,"d":"38,856,354"},{"v":37833777,"d":"37,833,777"},{"v":1022577,"d":"1,022,577"},0,0,0]
["      Pohledávky za j. osobami než úvěr.institucemi bez selhání",{"v":38450267,"d":"38,450,267"},{"v":38440764,"d":"38,440,764"},{"v":9503,"d":"9,503"},0,0,0,{"v":38191736,"d":"38,191,736"},{"v":38183154,"d":"38,183,154"},{"v":8582,"d":"8,582"},0,0,0,{"v":37958448,"d":"37,958,448"},{"v":37949980,"d":"37,949,980"},{"v":8468,"d":"8,468"},0,0,0,{"v":37543022,"d":"37,543,022"},{"v":37533846,"d":"37,533,846"},{"v":9176,"d":"9,176"},0,0,0]
["         Standardní pohledávky za jinými osobami než úvěr.institucemi",{"v":38267173,"d":"38,267,173"},{"v":38267173,"d":"38,267,173"},null,0,0,0,{"v":38021512,"d":"38,021,512"},{"v":38021512,"d":"38,021,512"},null,0,0,0,{"v":37795235,"d":"37,795,235"},{"v":37795235,"d":"37,795,235"},null,0,0,0,{"v":37362536,"d":"37,362,536"},{"v":37362536,"d":"37,362,536"},null,0,0,0]
["         Sledované pohledávky za jin. osobami než úvěr.institucemi",{"v":183094,"d":"183,094"},{"v":173591,"d":"173,591"},{"v":9503,"d":"9,503"},0,0,0,{"v":170224,"d":"170,224"},{"v":161642,"d":"161,642"},{"v":8582,"d":"8,582"},0,0,0,{"v":163213,"d":"163,213"},{"v":154745,"d":"154,745"},{"v":8468,"d":"8,468"},0,0,0,{"v":180486,"d":"180,486"},{"v":171310,"d":"171,310"},{"v":9176,"d":"9,176"},0,0,0]
["      Pohledávky za jin. osobami než úvěr.institucemi se selháním",{"v":1187735,"d":"1,187,735"},{"v":268264,"d":"268,264"},{"v":919471,"d":"919,471"},0,0,0,{"v":1202041,"d":"1,202,041"},{"v":274200,"d":"274,200"},{"v":927841,"d":"927,841"},0,0,0,{"v":1244774,"d":"1,244,774"},{"v":285749,"d":"285,749"},{"v":959025,"d":"959,025"},0,0,0,{"v":1313332,"d":"1,313,332"},{"v":299931,"d":"299,931"},{"v":1013401,"d":"1,013,401"},0,0,0]
["         Nestandardní pohledávky za jin. osobami než úvěr.institucemi",{"v":220819,"d":"220,819"},{"v":188894,"d":"188,894"},{"v":31925,"d":"31,925"},0,0,0,{"v":220832,"d":"220,832"},{"v":187521,"d":"187,521"},{"v":33311,"d":"33,311"},0,0,0,{"v":230323,"d":"230,323"},{"v":195800,"d":"195,800"},{"v":34523,"d":"34,523"},0,0,0,{"v":233940,"d":"233,940"},{"v":199781,"d":"199,781"},{"v":34159,"d":"34,159"},0,0,0]
["         Pochybné pohledávky za jinými osobami než úvěr.institucemi",{"v":52938,"d":"52,938"},{"v":28866,"d":"28,866"},{"v":24072,"d":"24,072"},0,0,0,{"v":59946,"d":"59,946"},{"v":34794,"d":"34,794"},{"v":25152,"d":"25,152"},0,0,0,{"v":62571,"d":"62,571"},{"v":36916,"d":"36,916"},{"v":25655,"d":"25,655"},0,0,0,{"v":56444,"d":"56,444"},{"v":33825,"d":"33,825"},{"v":22619,"d":"22,619"},0,0,0]
["         Ztrátové pohledávky za jinými osobami než úvěr.institucemi",{"v":913978,"d":"913,978"},{"v":50504,"d":"50,504"},{"v":863474,"d":"863,474"},0,0,0,{"v":921263,"d":"921,263"},{"v":51885,"d":"51,885"},{"v":869378,"d":"869,378"},0,0,0,{"v":951880,"d":"951,880"},{"v":53033,"d":"53,033"},{"v":898847,"d":"898,847"},0,0,0,{"v":1022948,"d":"1,022,948"},{"v":66325,"d":"66,325"},{"v":956623,"d":"956,623"},0,0,0]
["Pohledávky z finančních činností bez znehodnocení a se znehodnocením \n(v tis. Kč)","K ultimu vykazovaného období",{"$nulls":5},"K ultimu 1. předcházejícího období",{"$nulls":5},"K ultimu 2. předcházejícího období",{"$nulls":5},"K ultimu 3. předcházejícího období",{"$nulls":5},"Bod 5 písm. d)"]
[null,{"$f":"B8","v":"2017-03-31"},{"$nulls":5},{"$f":"H8","v":"2016-12-31"},{"$nulls":5},{"$f":"N8","v":"2016-09-30"},{"$nulls":5},{"$f":"T8","v":"2016-06-30"}]
[null,"Hodnota před znehodnocením","Účetní hodnota (netto)","Opravné položky k jednotlivým pohledávkám","Opravné položky k port. pohled. jednotlivě bez znehodnocení","Opravné položky k portfoliu jednotlivě nevýznam. pohledávek","Kumulovaná ztrata z oceneni realnou hodnotou","Hodnota před znehodnocením","Účetní hodnota (netto)","Opravné položky k jednotlivým pohledávkám","Opravné položky k port. pohled. jednotlivě bez znehodnocení","Opravné položky k portfoliu jednotlivě nevýznam. pohledávek","Kumulovaná ztráta z ocenění reálnou hodnotou","Hodnota před znehodnocením","Účetní hodnota (netto)","Opravné položky k jednotlivým pohledávkám","Opravné položky k port. pohled. jednotlivě bez znehodnocení","Opravné položky k portfoliu jednotlivě nevýznam. pohledávek","Kumulovaná ztráta z ocenění reálnou hodnotou","Hodnota před znehodnocením","Účetní hodnota (netto)","Opravné položky k jednotlivým pohledávkám","Opravné položky k port. pohled. jednotlivě bez znehodnocení","Opravné položky k portfoliu jednotlivě nevýznam. pohledávek","Kumulovaná ztrata z oceneni realnou hodnotou"]
[]
["   Pohledávky bez znehodnocení",{"v":38970907,"d":"38,970,907"},{"v":38970907,"d":"38,970,907"},0,0,0,0,{"v":38640709,"d":"38,640,709"},{"v":38640709,"d":"38,640,709"},0,0,0,0,{"v":38705748,"d":"38,705,748"},{"v":38705748,"d":"38,705,748"},0,0,0,0,{"v":39875822,"d":"39,875,822"},{"v":39875822,"d":"39,875,822"},0,0,0,0]
["   Pohledávky se znehodnocením ",{"v":1381066,"d":"1,381,066"},{"v":443649,"d":"443,649"},{"v":937417,"d":"937,417"},0,0,0,{"v":1382502,"d":"1,382,502"},{"v":437636,"d":"437,636"},{"v":944865,"d":"944,865"},0,0,0,{"v":1417088,"d":"1,417,088"},{"v":444608,"d":"444,608"},{"v":972480,"d":"972,480"},0,0,0,{"v":1502918,"d":"1,502,918"},{"v":475356,"d":"475,356"},{"v":1027563,"d":"1,027,563"},0,0,0]

{"sheet":"I. Část 6","index":11,"n_rows":112,"n_cols":8,"rows_kept":112,"merged":[[0,1,0,7],[2,0,2,7],[3,0,4,3],[3,4,4,4],[3,5,4,5],[3,6,4,6],[3,7,4,7],[5,0,5,2],[5,3,5,6],[6,0,7,2],[6,7,111,7],[8,0,8,2],[9,0,9,2],[10,0,10,2],[11,0,11,2],[12,0,12,2],[13,0,13,2],[14,0,14,2],[15,0,15,2],[16,0,16,2],[17,0,17,2],[18,0,18,2],[19,0,19,2],[20,0,20,2],[21,0,21,2],[22,0,22,2],[23,0,23,2],[24,0,24,2],[25,0,25,2],[26,0,26,2],[27,0,27,2],[28,0,28,2],[29,0,29,2],[30,0,30,2],[31,0,31,2],[32,0,32,2],[33,0,33,2],[34,0,34,2],[35,0,35,2],[36,0,36,2],[37,0,37,2],[38,0,38,2],[39,0,39,2],[40,0,40,2],[41,0,41,2],[42,0,42,2],[43,0,43,2],[44,0,44,2],[45,0,45,2],[46,0,46,2],[47,0,47,2],[48,0,48,2],[49,0,49,2],[50,0,50,2],[51,0,51,2],[52,0,52,2],[53,0,53,2],[54,0,54,2],[55,0,55,2],[56,0,56,2],[57,0,57,2],[58,0,58,2],[59,0,59,2],[60,0,60,2],[61,0,61,2],[62,0,62,2],[63,0,63,2],[64,0,64,2],[65,0,65,2],[66,0,66,2],[67,0,67,2],[68,0,68,2],[69,0,69,2],[70,0,70,2],[71,0,71,2],[72,0,72,2],[73,0,73,2],[74,0,74,2],[75,0,75,2],[76,0,76,2],[77,0,77,2],[78,0,78,2],[79,0,79,2],[80,0,80,2],[81,0,81,2],[82,0,82,2],[83,0,83,2],[84,0,84,2],[85,0,85,2],[86,0,86,2],[87,0,87,2],[88,0,88,2],[89,0,89,2],[90,0,90,2],[91,0,91,2],[92,0,92,2],[93,0,93,2],[94,0,94,2],[95,0,95,2],[96,0,96,2],[97,0,97,2],[98,0,98,2],[99,0,99,2],[100,0,100,2],[101,0,101,2],[102,0,102,2],[103,0,103,2],[104,0,104,2],[105,0,105,2],[106,0,106,2],[107,0,107,2],[108,0,108,2],[109,0,109,2],[110,0,110,2],[111,0,111,2]]}
["I. Část 6","Prováděcí nařízení Komise (EU) č. 680/2014 ze dne 16. dubna 2014, kterým se stanoví prováděcí technické normy, pokud jde o podávání zpráv institucí pro účely dohledu podle nařízení Evropského parlamentu a Rady (EU) č.575/2013"]
["Rozvaha povinné osoby podle výkazů předkládaných České národní bance"]
[]
["Údaje o finanční situaci povinné osoby",{"$nulls":6},"Vyhláška č. 163/2014 Sb., příloha 10"]
[]
["Informace platné k datu:",null,null,{"$f":"Obsah!C8","v":"2017-03-31"}]
["Čtvrtletní rozvaha povinné osoby (v tis.Kč)",null,null,"K ultimu vykazovaného období","K ultimu 1. předcházejícího období","K ultimu 2. předcházejícího období","K ultimu 3. předcházejícího období","Bod 5 písm. a)"]
[{"$nulls":3},"2017-03-31","2016-12-31","2016-09-30","2016-06-30"]
["Aktiva celkem",null,null,{"v":67035632.287999995,"d":"67,035,632"},{"v":66242902.337,"d":"66,242,902"},{"v":63888277.462,"d":"63,888,277"},{"v":66738603.603,"d":"66,738,604"}]
["   Pokladní hotovost, hotovost u centrálních bank a ostatní vklady splatné na požádání",null,null,{"v":2788988.656,"d":"2,788,989"},{"v":2422770.8959999997,"d":"2,422,771"},{"v":845117.824,"d":"845,118"},{"v":3815474.03,"d":"3,815,474"}]
["      Pokladní hotovost",null,null,{"v":3902.252,"d":"3,902"},{"v":4480.871,"d":"4,481"},{"v":4326.429,"d":"4,326"},{"v":7274.14,"d":"7,274"}]
["      Hotovost u centrálních bank",null,null,{"v":2779919.325,"d":"2,779,919"},{"v":2409919.438,"d":"2,409,919"},{"v":831426.518,"d":"831,427"},{"v":3800693.993,"d":"3,800,694"}]
["      Ostatní vklady splatné na požádání",null,null,{"v":5167.079,"d":"5,167"},{"v":8370.587,"d":"8,371"},{"v":9364.877,"d":"9,365"},{"v":7505.897,"d":"7,506"}]
["   Finanční aktiva k obchodování "]
["      Deriváty k obchodování"]
["      Kapitálové nástroje k obchodování"]
["      Dluhové cenné papíry k obchodování"]
["      Úvěry a pohledávky k obchodování"]
["   Finanční aktiva v reálné hodnotě vykázané do zisku nebo ztráty"]
["      Kapitálové nástroje v reálné hodnotě vykázané do zisku nebo ztráty"]
["      Dluhové cenné papíry v reálné hodnotě vykázané do zisku nebo ztráty"]
["      Úvěry a pohledávky v reálné hodnotě vykázané do zisku nebo ztráty"]
["  Realizovatelná finanční aktiva",null,null,{"v":4687009.723,"d":"4,687,010"},{"v":4725507.872,"d":"4,725,508"},{"v":4707526.776,"d":"4,707,527"},{"v":4693716.889,"d":"4,693,717"}]
["      Kapitálové nástroje realizovatelné"]
["      Dluhové cenné papíry realizovatelné",null,null,{"v":4687009.723,"d":"4,687,010"},{"v":4725507.872,"d":"4,725,508"},{"v":4707526.776,"d":"4,707,527"},{"v":4693716.889,"d":"4,693,717"}]
["      Úvěry a pohledávky realizovatelné"]
["   Úvěry a jiné pohledávky",null,null,{"v":38728282.051,"d":"38,728,282"},{"v":38483524.859,"d":"38,483,525"},{"v":38272358.933,"d":"38,272,359"},{"v":37865346.181,"d":"37,865,346"}]
["      Dluhové cenné papíry neobchodovatelné"]
["      Úvěry a pohledávky",null,null,{"v":38728282.051,"d":"38,728,282"},{"v":38483524.859,"d":"38,483,525"},{"v":38272358.933,"d":"38,272,359"},{"v":37865346.181,"d":"37,865,346"}]
["   Finanční investice držené do splatnosti",null,null,{"v":19592918.528,"d":"19,592,919"},{"v":19327335.324,"d":"19,327,335"},{"v":19382974.488,"d":"19,382,974"},{"v":19744685.754,"d":"19,744,686"}]
["     Dluhové cenné papíry držené do splatnosti",null,null,{"v":19592918.528,"d":"19,592,919"},{"v":19327335.324,"d":"19,327,335"},{"v":19382974.488,"d":"19,382,974"},{"v":19744685.754,"d":"19,744,686"}]
["     Úvěry a pohledávky držené do splatnosti"]
["   Zajišťovací deriváty"]
["   Kladné změny reálné hodnoty portfolia zajišťovaných nástrojů"]
["   Účasti v dceřiných, společných a přidružených podnicích",null,null,{"v":256910.049,"d":"256,910"},{"v":256910.049,"d":"256,910"},{"v":256910.049,"d":"256,910"},{"v":256910.049,"d":"256,910"}]
["   Hmotný majetek",null,null,{"v":61432.285,"d":"61,432"},{"v":63592.016,"d":"63,592"},{"v":62278.185,"d":"62,278"},{"v":58146.227,"d":"58,146"}]
["      Pozemky, budovy a zařízení",null,null,{"v":61432.285,"d":"61,432"},{"v":63592.016,"d":"63,592"},{"v":62278.185,"d":"62,278"},{"v":58146.227,"d":"58,146"}]
["      Investiční nemovitosti"]
["  Nehmotný majetek",null,null,{"v":121910.187,"d":"121,910"},{"v":127470.14,"d":"127,470"},{"v":113212.146,"d":"113,212"},{"v":110413.184,"d":"110,413"}]
["      Goodwill"]
["      Ostatní nehmotný majetek",null,null,{"v":121910.187,"d":"121,910"},{"v":127470.14,"d":"127,470"},{"v":113212.146,"d":"113,212"},{"v":110413.184,"d":"110,413"}]
["   Daňové pohledávky",null,null,0,0,0,{"v":10616.41,"d":"10,616"}]
["      Pohledávky ze splatné daně",null,null,0,0,0,{"v":10616.41,"d":"10,616"}]
["      Pohledávky z odložené daně"]
["   Ostatní aktiva",null,null,{"v":798180.809,"d":"798,181"},{"v":835791.181,"d":"835,791"},{"v":247899.061,"d":"247,899"},{"v":183294.879,"d":"183,295"}]
["   Neoběžná aktiva a vyřazované skupiny určené k prodeji"]
["Závazky a vlastní kapitál v základním členění ",null,null,"K ultimu vykazovaného období","K ultimu 1. předcházejícího období","K ultimu 2. předcházejícího období","K ultimu 3. předcházejícího období"]
["Závazky a vlastní kapitál celkem",null,null,{"v":67035632.287999995,"d":"67,035,632"},{"v":66242902.337,"d":"66,242,902"},{"v":63888277.462,"d":"63,888,277"},{"v":66738603.603,"d":"66,738,604"}]
["   Závazky celkem",null,null,{"v":62210701.36399999,"d":"62,210,701"},{"v":61466021.712,"d":"61,466,022"},{"v":59265070.964,"d":"59,265,071"},{"v":62273252.365,"d":"62,273,252"}]
["      Finanční závazky k obchodování"]
["         Deriváty k obchodování"]
["         Závazky z krátkých prodejů"]
["         Vklady k obchodování"]
["         Emitované dluhové CP k obchodování"]
["         Ostatní finanční závazky k obchodování"]
["      Finanční závazky v reálné hodnotě vykázané do zisku nebo ztráty"]
["         Vklady v reálné hodnotě vykázané do zisku nebo ztráty"]
["         Emitované dluhové CP v reálné hodnotě vykázané do zisku nebo ztráty"]
["         Ostatní fin.závazky v reálné hodnotě vykázané do zisku nebo ztráty"]
["      Finanční závazky v naběhlé hodnotě",null,null,{"v":61442213.701,"d":"61,442,214"},{"v":60577540.975999996,"d":"60,577,541"},{"v":59089810.742,"d":"59,089,811"},{"v":62177129.16,"d":"62,177,129"}]
["         Vklady v naběhlé hodnotě",null,null,{"v":60973571.312,"d":"60,973,571"},{"v":60071693.687,"d":"60,071,694"},{"v":58513556.488,"d":"58,513,556"},{"v":58507763.959,"d":"58,507,764"}]
["         Emitované dluhové cenné papíry v naběhlé hodnotě"]
["         Ostatní finanční závazky v naběhlé hodnotě",null,null,{"v":468642.389,"d":"468,642"},{"v":505847.289,"d":"505,847"},{"v":576254.254,"d":"576,254"},{"v":3669365.201,"d":"3,669,365"}]
["      Zajišťovací deriváty"]
["      Záporné změny reálné hodnoty portfolia zajišťovaných nástrojů"]
["      Rezervy",null,null,{"v":50983.331999999995,"d":"50,983"},{"v":12742.332,"d":"12,742"},{"v":10344.203,"d":"10,344"},{"v":9405.453,"d":"9,405"}]
["         Rezervy na penze a ostatní definované požitky"]
["         Rezervy na ostatní dlouhodobé zaměstnanecké požitky"]
["         Rezervy na restrukturalizaci"]
["         Rezervy na právní problémy a daňové spory",null,null,{"v":8937.42,"d":"8,937"},{"v":8937.42,"d":"8,937"},{"v":9170.711,"d":"9,171"},{"v":9170.711,"d":"9,171"}]
["         Rezervy na poskytnuté přísliby a záruky"]
["         Ostatní rezervy",null,null,{"v":42045.912,"d":"42,046"},{"v":3804.912,"d":"3,805"},{"v":1173.492,"d":"1,173"},{"v":234.742,"d":"235"}]
["      Daňové závazky",null,null,{"v":78978.388,"d":"78,978"},{"v":88674.937,"d":"88,675"},{"v":72998.10399999999,"d":"72,998"},{"v":54014.538,"d":"54,015"}]
["         Závazky ze splatné daně",null,null,{"v":42125.75,"d":"42,126"},{"v":33476,"d":"33,476"},{"v":16675.64,"d":"16,676"}]
["         Závazky z odložené daně",null,null,{"v":36852.638,"d":"36,853"},{"v":55198.937,"d":"55,199"},{"v":56322.464,"d":"56,322"},{"v":54014.538,"d":"54,015"}]
["      Základní kapitál splatný na požádání"]
["      Ostatní závazky",null,null,{"v":638525.943,"d":"638,526"},{"v":787063.467,"d":"787,063"},{"v":91917.915,"d":"91,918"},{"v":32703.214,"d":"32,703"}]
["      Závazky spojené s vyřazovanými skupinami určenými k prodeji"]
["  Vlastní kapitál celkem",null,null,{"v":4824930.924,"d":"4,824,931"},{"v":4776880.625,"d":"4,776,881"},{"v":4623206.498,"d":"4,623,206"},{"v":4465351.238,"d":"4,465,351"}]
["      Základní kapitál",null,null,{"v":650000,"d":"650,000"},{"v":650000,"d":"650,000"},{"v":650000,"d":"650,000"},{"v":650000,"d":"650,000"}]
["         Splacený základní kapitál",null,null,{"v":650000,"d":"650,000"},{"v":650000,"d":"650,000"},{"v":650000,"d":"650,000"},{"v":650000,"d":"650,000"}]
["         Nesplacený základní kapitál"]
["      Emisní ážio"]
["      Vydané kapitálové nástroje jiné než základní kapitál"]
["         Kapitálová složka finančních nástrojů"]
["         Ostatní vydané kapitálové nástroje"]
["      Ostatní vlastní kapitál"]
["      Kumulovaný ostatní úplný výsledek hospodaření (OCI)",null,null,{"v":158063.376,"d":"158,063"},{"v":208628.77,"d":"208,629"},{"v":214279.356,"d":"214,279"},{"v":206754.928,"d":"206,755"}]
["         OCI z položek, které se nereklasifikují do zisku nebo ztráty"]
["            OCI z hmotného majetku"]
["            OCI z nehmotného majetku"]
["            OCI z penzijních plánů"]
["            OCI z neoběžných aktiv a ukončovaných skupin určených k prodeji, které se nereklasifikují do Z/Z"]
["            OCI z podílu na OCI dceřiných, společných a přidružených podniků, které se nereklasifikují do Z/Z"]
["         OCI z položek, které se reklasifikují do zisku nebo ztráty",null,null,{"v":158063.376,"d":"158,063"},{"v":208628.77,"d":"208,629"},{"v":214279.356,"d":"214,279"},{"v":206754.928,"d":"206,755"}]
["            OCI ze zajištění čistých investic do zahraničních jednotek (efektivní část)"]
["            OCI z kurzových rozdílů"]
["            OCI ze zajišťovacích derivátů k zajištění peněžních toků (efektivní část)"]
["            OCI z realizovatelných finančních aktiv",null,null,{"v":158063.376,"d":"158,063"},{"v":208628.77,"d":"208,629"},{"v":214279.356,"d":"214,279"},{"v":206754.928,"d":"206,755"}]
["            OCI z neoběžných aktiv a ukončovaných skupin určených k prodeji, které se reklasifikují do Z/Z"]
["            OCI z podílu na OCI dceřiných, společných a přidružených podniků, které se reklasifikují do Z/Z"]
["      Nerozdělený zisk nebo neuhrazená ztráta z předchozích období",null,null,{"v":529790.017,"d":"529,790"}]
["      Rozdíly z ocenění"]
["      Rezervní fondy",null,null,{"v":3388461.838,"d":"3,388,462"},{"v":3388461.838,"d":"3,388,462"},{"v":3388461.838,"d":"3,388,462"},{"v":3388461.838,"d":"3,388,462"}]
["         Podíl na změnách rezervních fondů, nerozděleného zisku a neuhrazené ztráty v dceřiných, společných a přidružených podnicích"]
["         Ostatní rezervní fondy",null,null,{"v":3388461.838,"d":"3,388,462"},{"v":3388461.838,"d":"3,388,462"},{"v":3388461.838,"d":"3,388,462"},{"v":3388461.838,"d":"3,388,462"}]
["    (-) Vlastní akcie"]
["     Zisk nebo ztráta za běžné účetní období",null,null,{"v":98615.693,"d":"98,616"},{"v":529790.017,"d":"529,790"},{"v":370465.304,"d":"370,465"},{"v":220134.472,"d":"220,134"}]
["    (-) Mezitímní dividendy",null,null,"XXX","XXX","XXX","XXX"]
["     Menšinové podíly",null,null,"XXX","XXX","XXX","XXX"]
["         Menšinové podíly na OCI (kumulovaného ostatního úplného výsledku hospodaření)",null,null,"XXX","XXX","XXX","XXX"]
["         Ostatní menšinové podíly",null,null,"XXX","XXX","XXX","XXX"]

{"sheet":"I. Část 7","index":12,"n_rows":77,"n_cols":8,"rows_kept":77,"merged":[[0,0,0,1],[0,2,1,7],[2,0,2,7],[3,0,4,3],[3,7,4,7],[5,0,5,2],[6,0,7,2],[6,7,76,7],[8,0,8,2],[9,0,9,2],[10,0,10,2],[11,0,11,2],[12,0,12,2],[13,0,13,2],[14,0,14,2],[15,0,15,2],[16,0,16,2],[17,0,17,2],[18,0,18,2],[19,0,19,2],[20,0,20,2],[21,0,21,2],[22,0,22,2],[23,0,23,2],[24,0,24,2],[25,0,25,2],[26,0,26,2],[27,0,27,2],[28,0,28,2],[29,0,29,2],[30,0,30,2],[31,0,31,2],[32,0,32,2],[33,0,33,2],[34,0,34,2],[35,0,35,2],[36,0,36,2],[37,0,37,2],[38,0,38,2],[39,0,39,2],[40,0,40,2],[41,0,41,2],[42,0,42,2],[43,0,43,2],[44,0,44,2],[45,0,45,2],[46,0,46,2],[47,0,47,2],[48,0,48,2],[49,0,49,2],[50,0,50,2],[51,0,51,2],[52,0,52,2],[53,0,53,2],[54,0,54,2],[55,0,55,2],[56,0,56,2],[57,0,57,2],[58,0,58,2],[59,0,59,2],[60,0,60,2],[61,0,61,2],[62,0,62,2],[63,0,63,2],[64,0,64,2],[65,0,65,2],[66,0,66,2],[67,0,67,2],[68,0,68,2],[69,0,69,2],[70,0,70,2],[71,0,71,2],[72,0,72,2],[73,0,73,2],[74,0,74,2],[75,0,75,2],[76,0,76,2]]}
["I. Část 7",null,"Prováděcí nařízení Komise (EU) č. 680/2014 ze dne 16. dubna 2014, kterým se stanoví prováděcí technické normy, pokud jde o podávání zpráv institucí pro účely dohledu podle nařízení Evropského parlamentu a Rady (EU) č.575/2013"]
["Výkaz zisku nebo ztráty povinné osoby podle výkazů předkládaných České národní bance"]
[]
["Údaje o finanční situaci povinné osoby",{"$nulls":6},"Vyhláška č.163/2014 Sb., příloha 10"]
[]
["Informace platné k datu:",null,null,{"$f":"Obsah!C8","v":"2017-03-31"}]
["Čtvrtletní výkaz zisku nebo ztráty povinné osoby (v tis.Kč)",null,null,"K ultimu vykazovaného období","K ultimu 1. předcházejícího období","K ultimu 2. předcházejícího období","K ultimu 3. předcházejícího období","Bod 5 písm. b)"]
[{"$nulls":3},"2017-03-31","2016-12-31","2016-09-30","2016-06-30"]
["Úrokové výnosy",null,null,{"v":441996.25100000005,"d":"441,996"},{"v":1886046.0999999999,"d":"1,886,046"},{"v":1426839.8439999998,"d":"1,426,840"},{"v":962307.822,"d":"962,308"}]
["   Úroky z finančních aktiv k obchodování"]
["   Úroky z finančních aktiv v reálné hodnotě vykázané do zisku nebo ztráty"]
["   Úroky z realizovatelných finančních aktiv",null,null,{"v":24778.262,"d":"24,778"},{"v":123015.231,"d":"123,015"},{"v":98058.103,"d":"98,058"},{"v":73362.632,"d":"73,363"}]
["   Úroky z úvěrů a jiných pohledávek",null,null,{"v":329166.623,"d":"329,167"},{"v":1396204.785,"d":"1,396,205"},{"v":1049450.076,"d":"1,049,450"},{"v":699060.908,"d":"699,061"}]
["   Úroky z finančních investic držených do splatnosti",null,null,{"v":87751.28,"d":"87,751"},{"v":365651.399,"d":"365,651"},{"v":278291.133,"d":"278,291"},{"v":188943.81,"d":"188,944"}]
["   Zisk ze zajišťovacích úrokových derivátů"]
["   Úroky z ostatních aktiv",null,null,{"v":300.086,"d":"300"},{"v":1174.685,"d":"1,175"},{"v":1040.532,"d":"1,041"},{"v":940.472,"d":"940"}]
["Úrokové náklady",null,null,{"v":225036.774,"d":"225,037"},{"v":1054466.247,"d":"1,054,466"},{"v":839106.07,"d":"839,106"},{"v":623264.875,"d":"623,265"}]
["   Úroky na finanční závazky k obchodování"]
["   Úroky na finanční závazky v reálné hodnotě vykázané do zisku nebo ztráty"]
["   Úroky na finanční závazky v naběhlé hodnotě",null,null,{"v":225036.774,"d":"225,037"},{"v":1054466.247,"d":"1,054,466"},{"v":839106.07,"d":"839,106"},{"v":623264.875,"d":"623,265"}]
["   Ztráta ze zajišťovacích úrokových derivátů"]
["   Úroky na ostatní závazky"]
["Náklady na základní kapitál splatný na požádání"]
["Výnosy z dividend",{"$nulls":3},{"v":5000,"d":"5,000"},{"v":5000,"d":"5,000"},{"v":5000,"d":"5,000"}]
["   Výnosy z dividend z finančních aktiv k obchodování"]
["   Výnosy z dividend z finančních aktiv v RH vykázané do zisku nebo ztráty"]
["   Výnosy z dividend z realizovatelných finančních aktiv",{"$nulls":3},{"v":5000,"d":"5,000"},{"v":5000,"d":"5,000"},{"v":5000,"d":"5,000"}]
["Výnosy z poplatků a provizí",null,null,{"v":86135.667,"d":"86,136"},{"v":356569.591,"d":"356,570"},{"v":275609.197,"d":"275,609"},{"v":190625.834,"d":"190,626"}]
["Náklady na poplatky a provize",null,null,{"v":29491.595,"d":"29,492"},{"v":177114.86099999998,"d":"177,115"},{"v":144340.283,"d":"144,340"},{"v":107253.554,"d":"107,254"}]
["Zisk nebo (-) ztráta z odúčtování finančních aktiv a závazků nevykázaných v RH do Z/Z",null,null,{"v":1702.887,"d":"1,703"},{"v":185354.168,"d":"185,354"},{"v":184355.59699999998,"d":"184,356"},{"v":134305.868,"d":"134,306"}]
["   Zisk nebo (-) ztráta z realizovatelných finančních aktiv",null,null,0,{"v":132311.724,"d":"132,312"},{"v":132311.724,"d":"132,312"},{"v":132311.724,"d":"132,312"}]
["   Zisk nebo (-) ztráta z úvěrů a jiných pohledávek",null,null,{"v":1702.887,"d":"1,703"},{"v":53042.444,"d":"53,042"},{"v":52043.873,"d":"52,044"},{"v":1994.144,"d":"1,994"}]
["   Zisk nebo (-) ztráta z finančních investic držených do splatnosti"]
["   Zisk nebo (-) ztráta z finančních závazků v naběhlé hodnotě"]
["   Zisk nebo (-) ztráta z ostatních finančních závazků"]
["Zisk nebo (-) ztráta z finančních aktiv a závazků k obchodování"]
["Zisk nebo (-) ztráta z finančních aktiv a závazků v RH vykázané do zisku nebo ztráty"]
["Zisk nebo (-) ztráta ze zajišťovacího účetnictví"]
["Kurzové rozdíly - zisk nebo (-) ztráta",null,null,{"v":-208.002,"d":"-208"},{"v":-521.801,"d":"-522"},{"v":-383.238,"d":"-383"},{"v":-256.273,"d":"-256"}]
["Zisk nebo (-) ztráta z odúčtování nefinančních aktiv",null,null,{"v":0.285,"d":"0"},{"v":188.735,"d":"189"},{"v":185.698,"d":"186"},{"v":-1.278,"d":"-1"}]
["Ostatní provozní výnosy",null,null,{"v":847.635,"d":"848"},{"v":4039.133,"d":"4,039"},{"v":3065.018,"d":"3,065"},{"v":2092.036,"d":"2,092"}]
["Ostatní provozní náklady",null,null,{"v":0.08,"d":"0"},{"v":75.08099999999831,"d":"75"},75,75]
["Zisk nebo (-) ztráta z provozní činnosti",null,null,{"v":275946.274,"d":"275,946"},{"v":1205019.737,"d":"1,205,020"},{"v":911150.7629999998,"d":"911,151"},{"v":563480.58,"d":"563,481"}]
["Správní náklady",null,null,{"v":152317.319,"d":"152,317"},{"v":471924.179,"d":"471,924"},{"v":385174.94700000004,"d":"385,175"},{"v":274320.26300000004,"d":"274,320"}]
["    Náklady na zaměstnance",null,null,{"v":59359.797,"d":"59,360"},{"v":228869.855,"d":"228,870"},{"v":171732.576,"d":"171,733"},{"v":115187.016,"d":"115,187"}]
["    Ostatní správní náklady",null,null,{"v":92957.522,"d":"92,958"},{"v":243054.324,"d":"243,054"},{"v":213442.371,"d":"213,442"},{"v":159133.247,"d":"159,133"}]
["Odpisy",null,null,{"v":10171.721000000001,"d":"10,172"},{"v":37951.632,"d":"37,952"},{"v":27186.75,"d":"27,187"},{"v":17519.672,"d":"17,520"}]
["  Odpisy pozemků, budov a zařízení",null,null,{"v":2804.282,"d":"2,804"},{"v":9704.153,"d":"9,704"},{"v":6654.392,"d":"6,654"},{"v":4240.961,"d":"4,241"}]
["   Odpisy investic do nemovitostí"]
["   Odpisy nehmotného majetku",null,null,{"v":7367.439,"d":"7,367"},{"v":28247.479,"d":"28,247"},{"v":20532.358,"d":"20,532"},{"v":13278.711,"d":"13,279"}]
["Tvorba rezerv nebo jejich (-) reverzování",null,null,0,{"v":865.1460000000001,"d":"865"},{"v":-1483.126,"d":"-1,483"},{"v":-2421.876,"d":"-2,422"}]
["   Rezervy na poskytnuté přísliby a záruky nebo jejich (-) reverzování"]
["   Ostatní rezervy nebo jejich (-) reverzování",null,null,0,{"v":865.1460000000001,"d":"865"},{"v":-1483.126,"d":"-1,483"},{"v":-2421.876,"d":"-2,422"}]
["Ztráty ze znehodnocení finan.aktiv nevykázaných v RH do Z/Z nebo jejich (-) reverzování",null,null,{"v":-5402.127,"d":"-5,402"},{"v":53838.366,"d":"53,838"},{"v":54237.968,"d":"54,238"},{"v":10553.227,"d":"10,553"}]
["   Ztráty ze znehodnocení finančních aktiv v pořizovací ceně nebo jejich (-) reverzování"]
["   Ztráty ze znehodnocení realizovatelných finančních aktiv nebo jejich (-) reverzování"]
["   Ztráty ze znehodnocení úvěrů a jiných pohledávek nebo jejich (-) reverzování",null,null,{"v":-5402.127,"d":"-5,402"},{"v":53838.366,"d":"53,838"},{"v":54237.968,"d":"54,238"},{"v":10553.227,"d":"10,553"}]
["   Ztráty ze znehodnocení finan.investic držených do splatnosti nebo jejich (-) reverzování"]
["Ztráty ze znehodnocení investic v dceřiných, společných a přidružených podnicích nebo jejich (-) reverzování"]
["Ztráty ze znehodnocení nefinančních aktiv nebo jejich (-) reverzování"]
["   Ztráty ze znehodnocení pozemků, budov a zařízení nebo jejich (-) reverzování"]
["   Ztráty ze znehodnocení z investic do nemovitostí nebo jejich (-) reverzování"]
["   Ztráty ze znehodnocení goodwillu nebo jejich (-) reverzování"]
["   Ztráty ze znehodnocení nehmotného majetku nebo jejich (-) reverzování"]
["   Ztráty ze znehodnocení ostatních nefinančních aktiv nebo jejich (-) reverzování"]
["Negativní goodwill účtovaný do výkazu zisku nebo ztráty"]
["Podíl na zisku nebo (-) ztrátě dceřiných, společných a přidružených podniků"]
["Zisk nebo (-) ztráta z neoběžných aktiv a vyřazovaných skupin"]
["Zisk nebo (-) ztráta z pokračujících činností před zdaněním",null,null,{"v":118859.36099999998,"d":"118,859"},{"v":640440.414,"d":"640,440"},{"v":446034.22399999975,"d":"446,034"},{"v":263509.2939999999,"d":"263,509"}]
["Náklady nebo (-) výnosy na daň z příjmů z pokračujících činností",null,null,{"v":20243.669,"d":"20,244"},{"v":110650.397,"d":"110,650"},{"v":75568.918,"d":"75,569"},{"v":43374.821,"d":"43,375"}]
["Zisk nebo (-) ztráta z pokračujících činností po zdanění",null,null,{"v":98615.69199999998,"d":"98,616"},{"v":529790.017,"d":"529,790"},{"v":370465.30599999975,"d":"370,465"},{"v":220134.47299999988,"d":"220,134"}]
["Zisk nebo (-) ztráta z ukončovaných činností po zdanění",null,null,0]
["   Zisk nebo (-) ztráta z ukončovaných činností před zdaněním"]
["   Náklady nebo (-) výnosy na daň z příjmů z ukončovaných činností"]
["Zisk nebo (-) ztráta běžného roku po zdanění",null,null,{"v":98615.69199999998,"d":"98,616"},{"v":529790.017,"d":"529,790"},{"v":370465.30599999975,"d":"370,465"},{"v":220134.47299999988,"d":"220,134"}]
["   Menšinové podíly na zisku nebo (-) ztrátě",null,null,"XXX","XXX","XXX","XXX"]
["   Zisk nebo (-) ztráta mateřského podniku bez menšinových podílů",null,null,"XXX","XXX","XXX","XXX"]

{"sheet":"II. Část 1","index":13,"n_rows":30,"n_cols":5,"rows_kept":30,"hidden":true,"merged":[[0,0,0,3],[1,0,1,3],[2,0,2,4],[3,0,4,3],[3,4,4,4],[5,0,5,2],[6,0,6,2],[6,4,10,4],[7,0,7,2],[8,0,8,2],[9,0,9,2],[10,0,10,2],[11,0,11,3],[11,4,16,4],[12,0,12,3],[13,0,13,3],[14,0,14,3],[15,0,15,3],[16,0,16,3],[17,0,17,3],[17,4,27,4],[18,0,18,3],[19,0,19,3],[20,0,20,3],[21,0,21,3],[22,0,22,3],[23,0,23,3],[24,0,24,3],[25,0,25,3],[26,0,26,3],[27,0,27,3],[28,0,28,3],[28,4,29,4],[29,0,29,3]]}
["II. Část 1"]
["Obsah údajů o majetkoprávních vztazích mezi členy konsolidačního celku a řídicím a kontrolním systému I"]
[" Tuto část uveřejňují pouze povinné osoby, kterým jsou stanoveny povinnosti na konsolidovaném základě."]
["Údaje o osobách, které jsou ve vztahu k povinné osobě v úzkém propojení",{"$nulls":3},"Vyhláška č.163/2014 Sb., příloha 11"]
[]
["Informace platné k datu:",null,null,{"$f":"Obsah!C8","v":42825}]
["Obchodní firma",{"$nulls":3},"Bod 1 písm. a)"]
["Právní forma"]
["Adresa sídla"]
["Identifikační číslo povinné osoby, je-li přiděleno"]
["Odvětvová klasifikace ekonomických činností"]
["Stručné shrnutí hlavních činností",{"$nulls":3},"Bod 1 písm. b)"]
["…"]
["…"]
["…"]
["…"]
["…"]
[{"$nulls":4},"Bod 1 písm. b)"]
{"$rows_empty":10}
["Klasifikace úzkého propojení vyjádřená písmeny a), b) nebo c) podle článku 4 odst. 1 bodu 38 nařízení č. 575/2013/EU",{"$nulls":3},"Bod 1 písm. c)"]
["…"]

{"sheet":"II. Část 2","index":14,"n_rows":98,"n_cols":5,"rows_kept":98,"hidden":true,"merged":[[0,0,0,3],[1,0,1,3],[2,0,2,4],[3,0,4,3],[3,4,4,4],[5,0,5,2],[6,0,6,3],[6,4,11,4],[7,0,7,3],[8,0,8,3],[9,0,9,3],[10,0,10,3],[11,0,11,3],[12,0,12,3],[12,4,27,4],[13,0,13,3],[14,0,14,3],[15,0,15,3],[16,0,16,3],[17,0,17,3],[18,0,18,3],[19,0,19,3],[20,0,20,3],[21,0,21,3],[22,0,22,3],[23,0,23,3],[24,0,24,3],[25,0,25,3],[26,0,26,3],[27,0,27,3],[28,0,28,3],[28,4,33,4],[29,0,29,3],[30,0,30,3],[31,0,31,3],[32,0,32,3],[33,0,33,3],[34,0,34,3],[34,4,48,4],[35,0,35,3],[36,0,36,3],[37,0,37,3],[38,0,38,3],[39,0,39,3],[40,0,40,3],[41,0,41,3],[42,0,42,3],[43,0,43,3],[44,0,44,3],[45,0,45,3],[46,0,46,3],[47,0,47,3],[48,0,48,3],[49,0,49,3],[49,4,54,4],[50,0,50,3],[51,0,51,3],[52,0,52,3],[53,0,53,3],[54,0,54,3],[55,0,55,3],[55,4,69,4],[56,0,56,3],[57,0,57,3],[58,0,58,3],[59,0,59,3],[60,0,60,3],[61,0,61,3],[62,0,62,3],[63,0,63,3],[64,0,64,3],[65,0,65,3],[66,0,66,3],[67,0,67,3],[68,0,68,3],[69,0,69,3],[70,0,70,3],[70,4,75,4],[71,0,71,3],[72,0,72,3],[73,0,73,3],[74,0,74,3],[75,0,75,3],[76,0,76,3],[76,4,90,4],[77,0,77,3],[78,0,78,3],[79,0,79,3],[80,0,80,3],[81,0,81,3],[82,0,82,3],[83,0,83,3],[84,0,84,3],[85,0,85,3],[86,0,86,3],[87,0,87,3],[88,0,88,3],[89,0,89,3],[90,0,90,3],[91,0,91,3],[91,4,96,4],[92,0,92,3],[93,0,93,3],[94,0,94,3],[95,0,95,3],[96,0,96,3],[97,0,97,3],[97,4,111,4],[98,0,98,3],[99,0,99,3],[100,0,100,3],[101,0,101,3],[102,0,102,3],[103,0,103,3],[104,0,104,3],[105,0,105,3],[106,0,106,3],[107,0,107,3],[108,0,108,3],[109,0,109,3],[110,0,110,3],[111,0,111,3]]}
["II. Část 2"]
["Obsah údajů o majetkoprávních vztazích mezi členy konsolidačního celku a řídicím a kontrolním systému II"]
[" Tuto část uveřejňují pouze povinné osoby, kterým jsou stanoveny povinnosti na konsolidovaném základě."]
["Údaje o řídicím a kontrolním systému",{"$nulls":3},"Vyhláška č.163/2014 Sb., příloha 11"]
[]
["Informace platné k datu:",null,null,{"$f":"Obsah!C8","v":42825}]
["Stručné shrnutí uspořádání, zásad a postupů správy a řízení",{"$nulls":3},"Bod 2 písm. a)"]
["…"]
["…"]
["…"]
["…"]
["…"]
[{"$nulls":4},"Bod 2 písm. a)"]
{"$rows_empty":15}
["Stručné shrnutí uspořádání, zásad a postupů systému řízení rizik",{"$nulls":3},"Bod 2 písm. b)"]
["…"]
["…"]
["…"]
["…"]
["…"]
[{"$nulls":4},"Bod 2 písm. b)"]
{"$rows_empty":14}
["Stručné shrnutí uspořádání, zásad a postupů systému vnitřní kontroly",{"$nulls":3},"Bod 2 písm. c)"]
["…"]
["…"]
["…"]
["…"]
["…"]
[{"$nulls":4},"Bod 2 písm. c)"]
{"$rows_empty":14}
["Stručné shrnutí přístupu k zajišťování důvěryhodnosti, odborné způsobilosti a zkušenosti členů vedoucího orgánu, osob ve vrcholném vedení a osob v klíčových funkcích",{"$nulls":3},"Bod 2 písm. d)"]
["…"]
["…"]
["…"]
["…"]
["…"]
[{"$nulls":4},"Bod 2 písm. d)"]
{"$rows_empty":14}
["Stručné shrnutí přístupu k ověřování a hodnocení účinnosti, ucelenosti a přiměřenosti řídicího a kontrolního systému",{"$nulls":3},"Bod 2 písm. e)"]
["…"]
["…"]
["…"]
["…"]
["…"]
[{"$nulls":4},"Bod 2 písm. e)"]

{"sheet":"II. Část 3","index":15,"n_rows":209,"n_cols":5,"rows_kept":209,"hidden":true,"merged":[[0,0,0,3],[1,0,1,3],[2,0,2,4],[3,0,4,3],[3,4,4,4],[5,0,5,2],[6,0,6,1],[6,2,6,3],[7,0,7,3],[7,4,12,4],[8,0,8,3],[9,0,9,3],[10,0,10,3],[11,0,11,3],[12,0,12,3],[13,0,13,3],[13,4,27,4],[14,0,14,3],[15,0,15,3],[16,0,16,3],[17,0,17,3],[18,0,18,3],[19,0,19,3],[20,0,20,3],[21,0,21,3],[22,0,22,3],[23,0,23,3],[24,0,24,3],[25,0,25,3],[26,0,26,3],[27,0,27,3],[28,0,28,4],[29,0,29,3],[29,4,55,4],[30,0,30,2],[31,0,33,1],[34,0,34,3],[35,0,35,3],[36,0,36,3],[37,0,37,3],[38,0,38,3],[39,0,39,3],[40,0,40,3],[41,0,41,3],[42,0,42,3],[43,0,43,3],[44,0,44,3],[45,0,45,3],[46,0,46,3],[47,0,47,3],[48,0,48,3],[49,0,49,3],[50,0,50,3],[51,0,51,3],[52,0,52,3],[53,0,53,3],[54,0,54,3],[55,0,55,3],[56,0,56,3],[57,0,57,2],[58,0,60,1],[61,0,61,4],[62,0,62,3],[63,0,63,2],[64,0,66,1],[67,0,67,3],[68,0,68,2],[69,0,71,1],[72,0,72,3],[73,0,73,2],[74,0,76,1],[77,0,77,4],[78,0,78,3],[78,4,104,4],[79,0,79,2],[80,0,82,1],[83,0,83,3],[84,0,84,3],[85,0,85,3],[86,0,86,3],[87,0,87,3],[88,0,88,3],[89,0,89,3],[90,0,90,3],[91,0,91,3],[92,0,92,3],[93,0,93,3],[94,0,94,3],[95,0,95,3],[96,0,96,3],[97,0,97,3],[98,0,98,3],[99,0,99,3],[100,0,100,3],[101,0,101,3],[102,0,102,3],[103,0,103,3],[104,0,104,3],[105,0,105,3],[106,0,106,2],[107,0,109,1],[110,0,110,4],[111,0,111,3],[111,4,137,4],[112,0,112,2],[113,0,115,1],[116,0,116,3],[117,0,117,3],[118,0,118,3],[119,0,119,3],[120,0,120,3],[121,0,121,3],[122,0,122,3],[123,0,123,3],[124,0,124,3],[125,0,125,3],[126,0,126,3],[127,0,127,3],[128,0,128,3],[129,0,129,3],[130,0,130,3],[131,0,131,3],[132,0,132,3],[133,0,133,3],[134,0,134,3],[135,0,135,3],[136,0,136,3],[137,0,137,3],[138,0,138,3],[139,0,139,2],[140,0,142,1],[143,0,143,4],[144,0,144,3],[144,4,170,4],[145,0,145,2],[146,0,148,1],[149,0,149,3],[150,0,150,3],[151,0,151,3],[152,0,152,3],[153,0,153,3],[154,0,154,3],[155,0,155,3],[156,0,156,3],[157,0,157,3],[158,0,158,3],[159,0,159,3],[160,0,160,3],[161,0,161,3],[162,0,162,3],[163,0,163,3],[164,0,164,3],[165,0,165,3],[166,0,166,3],[167,0,167,3],[168,0,168,3],[169,0,169,3],[170,0,170,3],[171,0,171,3],[172,0,172,2],[173,0,175,1],[176,0,176,4],[177,0,177,3],[177,4,203,4],[178,0,178,2],[179,0,181,1],[182,0,182,3],[183,0,183,3],[184,0,184,3],[185,0,185,3],[186,0,186,3],[187,0,187,3],[188,0,188,3],[189,0,189,3],[190,0,190,3],[191,0,191,3],[192,0,192,3],[193,0,193,3],[194,0,194,3],[195,0,195,3],[196,0,196,3],[197,0,197,3],[198,0,198,3],[199,0,199,3],[200,0,200,3],[201,0,201,3],[202,0,202,3],[203,0,203,3],[204,0,204,3],[205,0,205,2],[206,0,208,1],[209,0,209,4]]}
["II. Část 3"]
["Obsah údajů o majetkoprávních vztazích mezi členy konsolidačního celku a řídicím a kontrolním systému III"]
["Tuto část uveřejňují pouze povinné osoby, kterým jsou stanoveny povinnosti na konsolidovaném základě."]
["Údaje o výborech zřízených povinnou osobou",{"$nulls":3},"Vyhláška č.163/2014 Sb., příloha 11"]
[]
["Informace platné k datu:",null,null,{"$f":"Obsah!C8","v":42825}]
["Označení výboru",{"$nulls":3},"Bod 3 písm. a)"]
["Stručné shrnutí působnosti, pravomoci, způsobu jednání a rozhodování a začlenění výboru do organizačního uspořádání a informačních toků povinné osoby",{"$nulls":3},"Bod 3 písm. b)"]
["…"]
["…"]
["…"]
["…"]
["…"]
[{"$nulls":4},"Bod 3 písm. b)"]
{"$rows_empty":15}
["Údaje o členech jednotlivých výborů",{"$nulls":3},"Bod 3 písm. c)"]
["Jméno a příjmení, včetně titulů"]
["Označení výboru, funkce, datum, od kdy osoba příslušnou funkci člena výboru vykonává",null,"Označení výboru"]
[null,null,"Funkce"]
[null,null,"Datum počátku výkonu funkce"]
["Dosavadní zkušenosti a kvalifikační předpoklady pro výkon funkce člena výboru"]
["…"]
["…"]
{"$rows_empty":19}
["Členství člena výboru v orgánech povinné osoby nebo jiných právnických osob "]
["Jméno a příjmení, včetně titulů"]
["Název právnické osoby, označení orgánu a v něm vykonávané funkce ",null,"Název právnické osoby"]
[null,null,"Orgán"]
[null,null,"Funkce"]
[]
["Členství člena výboru v orgánech povinné osoby nebo jiných právnických osob "]
["Jméno a příjmení, včetně titulů"]
["Název právnické osoby, označení orgánu a v něm vykonávané funkce ",null,"Název právnické osoby"]
[null,null,"Orgán"]
[null,null,"Funkce"]
["Členství člena výboru v orgánech povinné osoby nebo jiných právnických osob "]
["Jméno a příjmení, včetně titulů"]
["Název právnické osoby, označení orgánu a v něm vykonávané funkce ",null,"Název právnické osoby"]
[null,null,"Orgán"]
[null,null,"Funkce"]
["Členství člena výboru v orgánech povinné osoby nebo jiných právnických osob "]
["Jméno a příjmení, včetně titulů"]
["Název právnické osoby, označení orgánu a v něm vykonávané funkce ",null,"Název právnické osoby"]
[null,null,"Orgán"]
[null,null,"Funkce"]
[]
["Údaje o členech jednotlivých výborů",{"$nulls":3},"Bod 3 písm. c)"]
["Jméno a příjmení, včetně titulů"]
["Označení výboru, funkce, datum, od kdy osoba příslušnou funkci člena výboru vykonává",null,"Označení výboru"]
[null,null,"Funkce"]
[null,null,"Datum počátku výkonu funkce"]
["Dosavadní zkušenosti a kvalifikační předpoklady pro výkon funkce člena výboru"]
["…"]
["…"]
{"$rows_empty":19}
["Členství člena výboru v orgánech povinné osoby nebo jiných právnických osob "]
["Jméno a příjmení, včetně titulů"]
["Název právnické osoby, označení orgánu a v něm vykonávané funkce ",null,"Název právnické osoby"]
[null,null,"Orgán"]
[null,null,"Funkce"]
[]
["Údaje o členech jednotlivých výborů",{"$nulls":3},"Bod 3 písm. c)"]
["Jméno a příjmení, včetně titulů"]
["Označení výboru, funkce, datum, od kdy osoba příslušnou funkci člena výboru vykonává",null,"Označení výboru"]
[null,null,"Funkce"]
[null,null,"Datum počátku výkonu funkce"]
["Dosavadní zkušenosti a kvalifikační předpoklady pro výkon funkce člena výboru"]
["…"]
["…"]
{"$rows_empty":19}
["Členství člena výboru v orgánech povinné osoby nebo jiných právnických osob "]
["Jméno a příjmení, včetně titulů"]
["Název právnické osoby, označení orgánu a v něm vykonávané funkce ",null,"Název právnické osoby"]
[null,null,"Orgán"]
[null,null,"Funkce"]
[]
["Údaje o členech jednotlivých výborů",{"$nulls":3},"Bod 3 písm. c)"]
["Jméno a příjmení, včetně titulů"]
["Označení výboru, funkce, datum, od kdy osoba příslušnou funkci člena výboru vykonává",null,"Označení výboru"]
[null,null,"Funkce"]
[null,null,"Datum počátku výkonu funkce"]
["Dosavadní zkušenosti a kvalifikační předpoklady pro výkon funkce člena výboru"]
["…"]
["…"]
{"$rows_empty":19}
["Členství člena výboru v orgánech povinné osoby nebo jiných právnických osob "]
["Jméno a příjmení, včetně titulů"]
["Název právnické osoby, označení orgánu a v něm vykonávané funkce ",null,"Název právnické osoby"]
[null,null,"Orgán"]
[null,null,"Funkce"]
[]
["Údaje o členech jednotlivých výborů",{"$nulls":3},"Bod 3 písm. c)"]
["Jméno a příjmení, včetně titulů"]
["Označení výboru, funkce, datum, od kdy osoba příslušnou funkci člena výboru vykonává",null,"Označení výboru"]
[null,null,"Funkce"]
[null,null,"Datum počátku výkonu funkce"]
["Dosavadní zkušenosti a kvalifikační předpoklady pro výkon funkce člena výboru"]
["…"]
["…"]
{"$rows_empty":19}
["Členství člena výboru v orgánech povinné osoby nebo jiných právnických osob "]
["Jméno a příjmení, včetně titulů"]
["Název právnické osoby, označení orgánu a v něm vykonávané funkce ",null,"Název právnické osoby"]
[null,null,"Orgán"]
[null,null,"Funkce"]

{"sheet":"III. Část 1","index":16,"n_rows":41,"n_cols":8,"rows_kept":41,"hidden":true,"merged":[[2,0,2,7],[3,0,4,6],[3,7,4,7],[5,0,5,2],[6,0,7,2],[6,7,17,7],[8,0,17,0],[8,1,12,1],[13,1,17,1],[18,0,22,0],[18,1,18,2],[18,7,22,7],[19,1,19,2],[20,1,20,2],[21,1,21,2],[22,1,22,2],[23,0,34,0],[23,1,28,1],[23,7,34,7],[29,1,34,1],[35,0,40,0],[35,1,35,2],[35,7,40,7],[36,1,36,2],[37,1,37,2],[38,1,38,2],[39,1,39,2],[40,1,40,2]]}
["III. Část 1"]
["Investiční služby poskytnuté obchodníkem s cennými papíry jiným než podle § 8a odst. 4 a 7 zákona o podnikání na kapitálovém trhu"]
[]
["Investiční služby poskytnuté obchodníkem s cennými papíry jiným než podle § 8a odst. 4 a 7 zákona o podnikání na kapitálovém trhu",{"$nulls":6},"Vyhláška č.163/2014 Sb., příloha 12"]
[]
["Informace platné k datu:",null,null,{"$f":"Obsah!C31","v":"(dd/mm/rrrr)"}]
["v tis. Kč",null,null,"K ultimu vykazovaného období","K ultimu 1. předcházejícího období","K ultimu 2. předcházejícího období","K ultimu 3. předcházejícího období","Bod 1 \npísm. a)"]
[{"$nulls":3},"(qq/rrrr)","(qq/rrrr)","(qq/rrrr)","(qq/rrrr)"]
["Objem obchodů s cennými papíry pro klienty","Obchody pro klienty v rámci obhospodařování majetku","Investiční cenné papíry - akcie a obdobné cenné papíry "]
[null,null,"Investiční cenné papíry - dluhopisy a obdobné cenné papíry "]
[null,null,"Investiční cenné papíry - ostatní "]
[null,null,"Cenné papíry kolektivního investování "]
[null,null,"Nástroje peněžního trhu "]
[null,"Ostatní obchody pro klienty","Investiční cenné papíry - akcie a obdobné cenné papíry "]
[null,null,"Investiční cenné papíry - dluhopisy a obdobné cenné papíry "]
[null,null,"Investiční cenné papíry - ostatní "]
[null,null,"Cenné papíry kolektivního investování "]
[null,null,"Nástroje peněžního trhu "]
["Objem obchodů s cennými papíry  na vlastní účet","Investiční cenné papíry - akcie a obdobné cenné papíry ",{"$nulls":5},"Bod 1 \npísm. b)"]
[null,"Investiční cenné papíry - dluhopisy a obdobné cenné papíry "]
[null,"Investiční cenné papíry - ostatní "]
[null,"Cenné papíry kolektivního investování "]
[null,"Nástroje peněžního trhu "]
["Objem obchodů s deriváty pro klienty","Obchody pro klienty v rámci obhospodařování majetku","Akciové deriváty",{"$nulls":4},"Bod 1 \npísm. c)"]
[null,null,"Úrokové deriváty"]
[null,null,"Měnové deriváty"]
[null,null,"Komoditní deriváty"]
[null,null,"Úvěrové deriváty"]
[null,null,"Ostatní deriváty"]
[null,"Ostatní obchody pro klienty","Akciové deriváty"]
[null,null,"Úrokové deriváty"]
[null,null,"Měnové deriváty"]
[null,null,"Komoditní deriváty"]
[null,null,"Úvěrové deriváty"]
[null,null,"Ostatní deriváty"]
["Objem obchodů s deriváty na vlastní účet","Akciové deriváty",{"$nulls":5},"Bod 1 \npísm. d)"]
[null,"Úrokové deriváty"]
[null,"Měnové deriváty"]
[null,"Komoditní deriváty"]
[null,"Úvěrové deriváty"]
[null,"Ostatní deriváty"]

{"sheet":"III. Část 2","index":17,"n_rows":15,"n_cols":7,"rows_kept":15,"hidden":true,"merged":[[2,0,2,6],[3,0,4,5],[3,6,4,6],[6,0,7,1],[6,6,10,6],[8,0,10,0],[11,0,14,0],[11,6,14,6]]}
["III. Část 2"]
["Investiční služby poskytnuté obchodníkem s cennými papíry podle § 8a odst. 4 a 7 zákona o podnikání na kapitálovém trhu"]
[]
["Investiční služby poskytnuté obchodníkem s cennými papíry podle § 8a odst. 4 a 7 zákona o podnikání na kapitálovém trhu",{"$nulls":5},"Vyhláška č.163/2014 Sb., příloha 12"]
[]
["Informace platné k datu:",null,{"$f":"Obsah!C31","v":"(dd/mm/rrrr)"}]
["V jednotkách",null,"K ultimu vykazovaného období","K ultimu 1. předcházejícího období","K ultimu 2. předcházejícího období","K ultimu 3. předcházejícího období","Bod 2 písm. a)"]
[null,null,"(qq/rrrr)","(qq/rrrr)","(qq/rrrr)","(qq/rrrr)"]
["Počet smluv o poskytování investiční služby ","Přijímání a předávání pokynů"]
[null,"Poskytování investičního poradenství"]
[null,"Obhospodařování majetku"]
["Počet a objem přijatých pokynů za dané čtvrtletí","K nákupu investičních cenných papírů",{"$nulls":4},"Bod 2 písm. b)"]
[null,"K prodeji investičních cenných papírů"]
[null,"K nákupu cenných papírů kolektivního investování"]
[null,"K prodeji cenných papírů kolektivního investování"]

{"sheet":"IV. Část 1","index":18,"n_rows":9,"n_cols":5,"rows_kept":9,"hidden":true,"merged":[[0,0,0,3],[1,0,1,3],[2,0,2,4],[3,0,4,3],[3,4,4,4],[5,0,5,2],[6,0,6,2],[6,4,7,4],[7,0,7,2],[8,0,8,2]]}
["IV.Část 1"]
["Údaje o zahraniční bance z jiného než členského státu"]
[]
["Údaje o zahraniční bance z jiného než členského státu",{"$nulls":3},"Vyhláška č.163/2014 Sb., příloha 13"]
[]
["Informace platné k datu:",null,null,{"$f":"Obsah!C37","v":"(dd/mm/rrrr)"}]
["Obchodní firma",{"$nulls":3},"Bod 1 písm. a)"]
["Adresa sídla zahraniční banky z jiného než členského státu, která je zřizovatelem pobočky banky z jiného než členského státu"]
["Označení a adresa sídla orgánu, který vykonává dohled nad zahraniční bankou z jiného než členského státu",{"$nulls":3},"Bod 1 písm. b)"]

{"sheet":"IV. Část 1a","index":19,"n_rows":276,"n_cols":5,"rows_kept":276,"hidden":true,"merged":[[2,0,2,4],[3,0,4,3],[3,4,4,4],[5,0,5,2],[6,0,11,0],[6,1,11,1],[6,4,11,4],[12,0,17,0],[12,1,17,1],[12,4,17,4],[18,0,23,0],[18,1,23,1],[18,4,23,4],[24,0,29,0],[24,1,29,1],[24,4,29,4],[30,0,35,0],[30,1,35,1],[30,4,35,4],[36,0,41,0],[36,1,41,1],[36,4,41,4],[42,0,47,0],[42,1,47,1],[42,4,47,4],[48,0,53,0],[48,1,53,1],[48,4,53,4],[54,0,59,0],[54,1,59,1],[54,4,59,4],[60,0,65,0],[60,1,65,1],[60,4,65,4],[66,0,71,0],[66,1,71,1],[66,4,71,4],[72,0,77,0],[72,1,77,1],[72,4,77,4],[78,0,83,0],[78,1,83,1],[78,4,83,4],[84,0,89,0],[84,1,89,1],[84,4,89,4],[90,0,95,0],[90,1,95,1],[90,4,95,4],[96,0,101,0],[96,1,101,1],[96,4,101,4],[102,0,107,0],[102,1,107,1],[102,4,107,4],[108,0,113,0],[108,1,113,1],[108,4,113,4],[114,0,119,0],[114,1,119,1],[114,4,119,4],[120,0,125,0],[120,1,125,1],[120,4,125,4],[126,0,131,0],[126,1,131,1],[126,4,131,4],[132,0,137,0],[132,1,137,1],[132,4,137,4],[138,0,143,0],[138,1,143,1],[138,4,143,4],[144,0,149,0],[144,1,149,1],[144,4,149,4],[150,0,155,0],[150,1,155,1],[150,4,155,4],[156,0,161,0],[156,1,161,1],[156,4,161,4],[162,0,167,0],[162,1,167,1],[162,4,167,4],[168,0,173,0],[168,1,173,1],[168,4,173,4],[174,0,179,0],[174,1,179,1],[174,4,179,4],[180,0,185,0],[180,1,185,1],[180,4,185,4],[186,0,188,0],[186,1,188,1],[186,4,188,4],[189,0,191,0],[189,1,191,1],[189,4,191,4],[192,0,194,0],[192,1,194,1],[192,4,194,4],[195,0,197,0],[195,1,197,1],[195,4,197,4],[198,0,200,0],[198,1,200,1],[198,4,200,4],[201,0,203,0],[201,1,203,1],[201,4,203,4],[204,0,206,0],[204,1,206,1],[204,4,206,4],[207,0,209,0],[207,1,209,1],[207,4,209,4],[210,0,212,0],[210,1,212,1],[210,4,212,4],[213,0,215,0],[213,1,215,1],[213,4,215,4],[216,0,218,0],[216,1,218,1],[216,4,218,4],[219,0,221,0],[219,1,221,1],[219,4,221,4],[222,0,224,0],[222,1,224,1],[222,4,224,4],[225,0,227,0],[225,1,227,1],[225,4,227,4],[228,0,230,0],[228,1,230,1],[228,4,230,4],[231,0,233,0],[231,1,233,1],[231,4,233,4],[234,0,236,0],[234,1,236,1],[234,4,236,4],[237,0,239,0],[237,1,239,1],[237,4,239,4],[240,0,242,0],[240,1,242,1],[240,4,242,4],[243,0,245,0],[243,1,245,1],[243,4,245,4],[246,0,248,0],[246,1,248,1],[246,4,248,4],[249,0,251,0],[249,1,251,1],[249,4,251,4],[252,0,254,0],[252,1,254,1],[252,4,254,4],[255,0,257,0],[255,1,257,1],[255,4,257,4],[258,0,260,0],[258,1,260,1],[258,4,260,4],[261,0,263,0],[261,1,263,1],[261,4,263,4],[264,0,266,0],[264,1,266,1],[264,4,266,4],[267,0,269,0],[267,1,269,1],[267,4,269,4],[270,0,272,0],[270,1,272,1],[270,4,272,4],[273,0,275,0],[273,1,275,1],[273,4,275,4]]}
["IV. Část 1a"]
["Údaje o složení společníků nebo členů zahraniční banky z jiného než členského státu"]
[]
["Údaje o složení společníků nebo členů zahraniční banky z jiného než členského státu",{"$nulls":3},"Vyhláška č.163/2014 Sb., příloha 13"]
[]
["Informace platné k datu:",null,null,{"$f":"Obsah!C37","v":"(dd/mm/rrrr)"}]
["Údaje o společnících nebo členech s kvalifikovanou účastí na zahraniční bance z jiného než členského státu ","Společnící nebo členové, kteří jsou právnickými osobami","Obchodní firma",null,"Bod 1 písm. c), bod 1"]
[null,null,"Adresa sídla"]
[null,null,"Identifikační číslo, je-li přiděleno"]
[null,null,"Odvětvová klasifikace ekonomických činností"]
[null,null,"Výše podílu na hlasovacích právech v procentech"]
[null,null,"Výše podílu na kapitálu v procentech"]
["Údaje o společnících nebo členech s kvalifikovanou účastí na zahraniční bance z jiného než členského státu ","Společnící nebo členové, kteří jsou právnickými osobami","Obchodní firma",null,"Bod 1 písm. c)"]
[null,null,"Adresa sídla"]
[null,null,"Identifikační číslo, je-li přiděleno"]
[null,null,"Odvětvová klasifikace ekonomických činností"]
[null,null,"Výše podílu na hlasovacích právech v procentech"]
[null,null,"Výše podílu na kapitálu v procentech"]
["Údaje o společnících nebo členech s kvalifikovanou účastí na zahraniční bance z jiného než členského státu ","Společnící nebo členové, kteří jsou právnickými osobami","Obchodní firma",null,"Bod 1 písm. c)"]
[null,null,"Adresa sídla"]
[null,null,"Identifikační číslo, je-li přiděleno"]
[null,null,"Odvětvová klasifikace ekonomických činností"]
[null,null,"Výše podílu na hlasovacích právech v procentech"]
[null,null,"Výše podílu na kapitálu v procentech"]
["Údaje o společnících nebo členech s kvalifikovanou účastí na zahraniční bance z jiného než členského státu ","Společnící nebo členové, kteří jsou právnickými osobami","Obchodní firma",null,"Bod 1 písm. c)"]
[null,null,"Adresa sídla"]
[null,null,"Identifikační číslo, je-li přiděleno"]
[null,null,"Odvětvová klasifikace ekonomických činností"]
[null,null,"Výše podílu na hlasovacích právech v procentech"]
[null,null,"Výše podílu na kapitálu v procentech"]
["Údaje o společnících nebo členech s kvalifikovanou účastí na zahraniční bance z jiného než členského státu ","Společnící nebo členové, kteří jsou právnickými osobami","Obchodní firma",null,"Bod 1 písm. c)"]
[null,null,"Adresa sídla"]
[null,null,"Identifikační číslo, je-li přiděleno"]
[null,null,"Odvětvová klasifikace ekonomických činností"]
[null,null,"Výše podílu na hlasovacích právech v procentech"]
[null,null,"Výše podílu na kapitálu v procentech"]
["Údaje o společnících nebo členech s kvalifikovanou účastí na zahraniční bance z jiného než členského státu ","Společnící nebo členové, kteří jsou právnickými osobami","Obchodní firma",null,"Bod 1 písm. c)"]
[null,null,"Adresa sídla"]
[null,null,"Identifikační číslo, je-li přiděleno"]
[null,null,"Odvětvová klasifikace ekonomických činností"]
[null,null,"Výše podílu na hlasovacích právech v procentech"]
[null,null,"Výše podílu na kapitálu v procentech"]
["Údaje o společnících nebo členech s kvalifikovanou účastí na zahraniční bance z jiného než členského státu ","Společnící nebo členové, kteří jsou právnickými osobami","Obchodní firma",null,"Bod 1 písm. c)"]
[null,null,"Adresa sídla"]
[null,null,"Identifikační číslo, je-li přiděleno"]
[null,null,"Odvětvová klasifikace ekonomických činností"]
[null,null,"Výše podílu na hlasovacích právech v procentech"]
[null,null,"Výše podílu na kapitálu v procentech"]
["Údaje o společnících nebo členech s kvalifikovanou účastí na zahraniční bance z jiného než členského státu ","Společnící nebo členové, kteří jsou právnickými osobami","Obchodní firma",null,"Bod 1 písm. c)"]
[null,null,"Adresa sídla"]
[null,null,"Identifikační číslo, je-li přiděleno"]
[null,null,"Odvětvová klasifikace ekonomických činností"]
[null,null,"Výše podílu na hlasovacích právech v procentech"]
[null,null,"Výše podílu na kapitálu v procentech"]
["Údaje o společnících nebo členech s kvalifikovanou účastí na zahraniční bance z jiného než členského státu ","Společnící nebo členové, kteří jsou právnickými osobami","Obchodní firma",null,"Bod 1 písm. c)"]
[null,null,"Adresa sídla"]
[null,null,"Identifikační číslo, je-li přiděleno"]
[null,null,"Odvětvová klasifikace ekonomických činností"]
[null,null,"Výše podílu na hlasovacích právech v procentech"]
[null,null,"Výše podílu na kapitálu v procentech"]
["Údaje o společnících nebo členech s kvalifikovanou účastí na zahraniční bance z jiného než členského státu ","Společnící nebo členové, kteří jsou právnickými osobami","Obchodní firma",null,"Bod 1 písm. c)"]
[null,null,"Adresa sídla"]
[null,null,"Identifikační číslo, je-li přiděleno"]
[null,null,"Odvětvová klasifikace ekonomických činností"]
[null,null,"Výše podílu na hlasovacích právech v procentech"]
[null,null,"Výše podílu na kapitálu v procentech"]
["Údaje o společnících nebo členech s kvalifikovanou účastí na zahraniční bance z jiného než členského státu ","Společnící nebo členové, kteří jsou právnickými osobami","Obchodní firma",null,"Bod 1 písm. c)"]
[null,null,"Adresa sídla"]
[null,null,"Identifikační číslo, je-li přiděleno"]
[null,null,"Odvětvová klasifikace ekonomických činností"]
[null,null,"Výše podílu na hlasovacích právech v procentech"]
[null,null,"Výše podílu na kapitálu v procentech"]
["Údaje o společnících nebo členech s kvalifikovanou účastí na zahraniční bance z jiného než členského státu ","Společnící nebo členové, kteří jsou právnickými osobami","Obchodní firma",null,"Bod 1 písm. c)"]
[null,null,"Adresa sídla"]
[null,null,"Identifikační číslo, je-li přiděleno"]
[null,null,"Odvětvová klasifikace ekonomických činností"]
[null,null,"Výše podílu na hlasovacích právech v procentech"]
[null,null,"Výše podílu na kapitálu v procentech"]
["Údaje o společnících nebo členech s kvalifikovanou účastí na zahraniční bance z jiného než členského státu ","Společnící nebo členové, kteří jsou právnickými osobami","Obchodní firma",null,"Bod 1 písm. c)"]
[null,null,"Adresa sídla"]
[null,null,"Identifikační číslo, je-li přiděleno"]
[null,null,"Odvětvová klasifikace ekonomických činností"]
[null,null,"Výše podílu na hlasovacích právech v procentech"]
[null,null,"Výše podílu na kapitálu v procentech"]
["Údaje o společnících nebo členech s kvalifikovanou účastí na zahraniční bance z jiného než členského státu ","Společnící nebo členové, kteří jsou právnickými osobami","Obchodní firma",null,"Bod 1 písm. c)"]
[null,null,"Adresa sídla"]
[null,null,"Identifikační číslo, je-li přiděleno"]
[null,null,"Odvětvová klasifikace ekonomických činností"]
[null,null,"Výše podílu na hlasovacích právech v procentech"]
[null,null,"Výše podílu na kapitálu v procentech"]
["Údaje o společnících nebo členech s kvalifikovanou účastí na zahraniční bance z jiného než členského státu ","Společnící nebo členové, kteří jsou právnickými osobami","Obchodní firma",null,"Bod 1 písm. c)"]
[null,null,"Adresa sídla"]
[null,null,"Identifikační číslo, je-li přiděleno"]
[null,null,"Odvětvová klasifikace ekonomických činností"]
[null,null,"Výše podílu na hlasovacích právech v procentech"]
[null,null,"Výše podílu na kapitálu v procentech"]
["Údaje o společnících nebo členech s kvalifikovanou účastí na zahraniční bance z jiného než členského státu ","Společnící nebo členové, kteří jsou právnickými osobami","Obchodní firma",null,"Bod 1 písm. c)"]
[null,null,"Adresa sídla"]
[null,null,"Identifikační číslo, je-li přiděleno"]
[null,null,"Odvětvová klasifikace ekonomických činností"]
[null,null,"Výše podílu na hlasovacích právech v procentech"]
[null,null,"Výše podílu na kapitálu v procentech"]
["Údaje o společnících nebo členech s kvalifikovanou účastí na zahraniční bance z jiného než členského státu ","Společnící nebo členové, kteří jsou právnickými osobami","Obchodní firma",null,"Bod 1 písm. c)"]
[null,null,"Adresa sídla"]
[null,null,"Identifikační číslo, je-li přiděleno"]
[null,null,"Odvětvová klasifikace ekonomických činností"]
[null,null,"Výše podílu na hlasovacích právech v procentech"]
[null,null,"Výše podílu na kapitálu v procentech"]
["Údaje o společnících nebo členech s kvalifikovanou účastí na zahraniční bance z jiného než členského státu ","Společnící nebo členové, kteří jsou právnickými osobami","Obchodní firma",null,"Bod 1 písm. c)"]
[null,null,"Adresa sídla"]
[null,null,"Identifikační číslo, je-li přiděleno"]
[null,null,"Odvětvová klasifikace ekonomických činností"]
[null,null,"Výše podílu na hlasovacích právech v procentech"]
[null,null,"Výše podílu na kapitálu v procentech"]
["Údaje o společnících nebo členech s kvalifikovanou účastí na zahraniční bance z jiného než členského státu ","Společnící nebo členové, kteří jsou právnickými osobami","Obchodní firma",null,"Bod 1 písm. c)"]
[null,null,"Adresa sídla"]
[null,null,"Identifikační číslo, je-li přiděleno"]
[null,null,"Odvětvová klasifikace ekonomických činností"]
[null,null,"Výše podílu na hlasovacích právech v procentech"]
[null,null,"Výše podílu na kapitálu v procentech"]
["Údaje o společnících nebo členech s kvalifikovanou účastí na zahraniční bance z jiného než členského státu ","Společnící nebo členové, kteří jsou právnickými osobami","Obchodní firma",null,"Bod 1 písm. c)"]
[null,null,"Adresa sídla"]
[null,null,"Identifikační číslo, je-li přiděleno"]
[null,null,"Odvětvová klasifikace ekonomických činností"]
[null,null,"Výše podílu na hlasovacích právech v procentech"]
[null,null,"Výše podílu na kapitálu v procentech"]
["Údaje o společnících nebo členech s kvalifikovanou účastí na zahraniční bance z jiného než členského státu ","Společnící nebo členové, kteří jsou právnickými osobami","Obchodní firma",null,"Bod 1 písm. c)"]
[null,null,"Adresa sídla"]
[null,null,"Identifikační číslo, je-li přiděleno"]
[null,null,"Odvětvová klasifikace ekonomických činností"]
[null,null,"Výše podílu na hlasovacích právech v procentech"]
[null,null,"Výše podílu na kapitálu v procentech"]
["Údaje o společnících nebo členech s kvalifikovanou účastí na zahraniční bance z jiného než členského státu ","Společnící nebo členové, kteří jsou právnickými osobami","Obchodní firma",null,"Bod 1 písm. c)"]
[null,null,"Adresa sídla"]
[null,null,"Identifikační číslo, je-li přiděleno"]
[null,null,"Odvětvová klasifikace ekonomických činností"]
[null,null,"Výše podílu na hlasovacích právech v procentech"]
[null,null,"Výše podílu na kapitálu v procentech"]
["Údaje o společnících nebo členech s kvalifikovanou účastí na zahraniční bance z jiného než členského státu ","Společnící nebo členové, kteří jsou právnickými osobami","Obchodní firma",null,"Bod 1 písm. c)"]
[null,null,"Adresa sídla"]
[null,null,"Identifikační číslo, je-li přiděleno"]
[null,null,"Odvětvová klasifikace ekonomických činností"]
[null,null,"Výše podílu na hlasovacích právech v procentech"]
[null,null,"Výše podílu na kapitálu v procentech"]
["Údaje o společnících nebo členech s kvalifikovanou účastí na zahraniční bance z jiného než členského státu ","Společnící nebo členové, kteří jsou právnickými osobami","Obchodní firma",null,"Bod 1 písm. c)"]
[null,null,"Adresa sídla"]
[null,null,"Identifikační číslo, je-li přiděleno"]
[null,null,"Odvětvová klasifikace ekonomických činností"]
[null,null,"Výše podílu na hlasovacích právech v procentech"]
[null,null,"Výše podílu na kapitálu v procentech"]
["Údaje o společnících nebo členech s kvalifikovanou účastí na zahraniční bance z jiného než členského státu ","Společnící nebo členové, kteří jsou právnickými osobami","Obchodní firma",null,"Bod 1 písm. c)"]
[null,null,"Adresa sídla"]
[null,null,"Identifikační číslo, je-li přiděleno"]
[null,null,"Odvětvová klasifikace ekonomických činností"]
[null,null,"Výše podílu na hlasovacích právech v procentech"]
[null,null,"Výše podílu na kapitálu v procentech"]
["Údaje o společnících nebo členech s kvalifikovanou účastí na zahraniční bance z jiného než členského státu ","Společnící nebo členové, kteří jsou právnickými osobami","Obchodní firma",null,"Bod 1 písm. c)"]
[null,null,"Adresa sídla"]
[null,null,"Identifikační číslo, je-li přiděleno"]
[null,null,"Odvětvová klasifikace ekonomických činností"]
[null,null,"Výše podílu na hlasovacích právech v procentech"]
[null,null,"Výše podílu na kapitálu v procentech"]
["Údaje o společnících nebo členech s kvalifikovanou účastí na zahraniční bance z jiného než členského státu ","Společnící nebo členové, kteří jsou právnickými osobami","Obchodní firma",null,"Bod 1 písm. c)"]
[null,null,"Adresa sídla"]
[null,null,"Identifikační číslo, je-li přiděleno"]
[null,null,"Odvětvová klasifikace ekonomických činností"]
[null,null,"Výše podílu na hlasovacích právech v procentech"]
[null,null,"Výše podílu na kapitálu v procentech"]
["Údaje o společnících nebo členech s kvalifikovanou účastí na zahraniční bance z jiného než členského státu ","Společnící nebo členové, kteří jsou právnickými osobami","Obchodní firma",null,"Bod 1 písm. c)"]
[null,null,"Adresa sídla"]
[null,null,"Identifikační číslo, je-li přiděleno"]
[null,null,"Odvětvová klasifikace ekonomických činností"]
[null,null,"Výše podílu na hlasovacích právech v procentech"]
[null,null,"Výše podílu na kapitálu v procentech"]
["Údaje o společnících nebo členech s kvalifikovanou účastí na zahraniční bance z jiného než členského státu ","Společnící nebo členové, kteří jsou právnickými osobami","Obchodní firma",null,"Bod 1 písm. c)"]
[null,null,"Adresa sídla"]
[null,null,"Identifikační číslo, je-li přiděleno"]
[null,null,"Odvětvová klasifikace ekonomických činností"]
[null,null,"Výše podílu na hlasovacích právech v procentech"]
[null,null,"Výše podílu na kapitálu v procentech"]
["Údaje o společnících nebo členech s kvalifikovanou účastí na zahraniční bance z jiného než členského státu ","Společnící nebo členové, kteří jsou právnickými osobami","Obchodní firma",null,"Bod 1 písm. c)"]
[null,null,"Adresa sídla"]
[null,null,"Identifikační číslo, je-li přiděleno"]
[null,null,"Odvětvová klasifikace ekonomických činností"]
[null,null,"Výše podílu na hlasovacích právech v procentech"]
[null,null,"Výše podílu na kapitálu v procentech"]
["Údaje o společnících nebo členech s kvalifikovanou účastí na zahraniční bance z jiného než členského státu ","Společníci nebo členové, kteří jsou fyzickými osobami","Jméno a příjmení ",null,"Bod 1 písm. c), bod 2"]
[null,null,"Výše podílu na kapitálu v procentech"]
[null,null,"Výše podílu na hlasovacích právech v procentech"]
["Údaje o společnících nebo členech povinné osoby s kvalifikovanou účastí na povinné osobě ","Společníci nebo členové, kteří jsou fyzickými osobami","Jméno a příjmení ",null,"Bod 1 písm. c)"]
[null,null,"Výše podílu na kapitálu v procentech"]
[null,null,"Výše podílu na hlasovacích právech v procentech"]
["Údaje o společnících nebo členech povinné osoby s kvalifikovanou účastí na povinné osobě ","Společníci nebo členové, kteří jsou fyzickými osobami","Jméno a příjmení ",null,"Bod 1 písm. c)"]
[null,null,"Výše podílu na kapitálu v procentech"]
[null,null,"Výše podílu na hlasovacích právech v procentech"]
["Údaje o společnících nebo členech povinné osoby s kvalifikovanou účastí na povinné osobě ","Společníci nebo členové, kteří jsou fyzickými osobami","Jméno a příjmení ",null,"Bod 1 písm. c)"]
[null,null,"Výše podílu na kapitálu v procentech"]
[null,null,"Výše podílu na hlasovacích právech v procentech"]
["Údaje o společnících nebo členech povinné osoby s kvalifikovanou účastí na povinné osobě ","Společníci nebo členové, kteří jsou fyzickými osobami","Jméno a příjmení ",null,"Bod 1 písm. c)"]
[null,null,"Výše podílu na kapitálu v procentech"]
[null,null,"Výše podílu na hlasovacích právech v procentech"]
["Údaje o společnících nebo členech povinné osoby s kvalifikovanou účastí na povinné osobě ","Společníci nebo členové, kteří jsou fyzickými osobami","Jméno a příjmení ",null,"Bod 1 písm. c)"]
[null,null,"Výše podílu na kapitálu v procentech"]
[null,null,"Výše podílu na hlasovacích právech v procentech"]
["Údaje o společnících nebo členech povinné osoby s kvalifikovanou účastí na povinné osobě ","Společníci nebo členové, kteří jsou fyzickými osobami","Jméno a příjmení ",null,"Bod 1 písm. c)"]
[null,null,"Výše podílu na kapitálu v procentech"]
[null,null,"Výše podílu na hlasovacích právech v procentech"]
["Údaje o společnících nebo členech povinné osoby s kvalifikovanou účastí na povinné osobě ","Společníci nebo členové, kteří jsou fyzickými osobami","Jméno a příjmení ",null,"Bod 1 písm. c)"]
[null,null,"Výše podílu na kapitálu v procentech"]
[null,null,"Výše podílu na hlasovacích právech v procentech"]
["Údaje o společnících nebo členech povinné osoby s kvalifikovanou účastí na povinné osobě ","Společníci nebo členové, kteří jsou fyzickými osobami","Jméno a příjmení ",null,"Bod 1 písm. c)"]
[null,null,"Výše podílu na kapitálu v procentech"]
[null,null,"Výše podílu na hlasovacích právech v procentech"]
["Údaje o společnících nebo členech povinné osoby s kvalifikovanou účastí na povinné osobě ","Společníci nebo členové, kteří jsou fyzickými osobami","Jméno a příjmení ",null,"Bod 1 písm. c)"]
[null,null,"Výše podílu na kapitálu v procentech"]
[null,null,"Výše podílu na hlasovacích právech v procentech"]
["Údaje o společnících nebo členech povinné osoby s kvalifikovanou účastí na povinné osobě ","Společníci nebo členové, kteří jsou fyzickými osobami","Jméno a příjmení ",null,"Bod 1 písm. c)"]
[null,null,"Výše podílu na kapitálu v procentech"]
[null,null,"Výše podílu na hlasovacích právech v procentech"]
["Údaje o společnících nebo členech povinné osoby s kvalifikovanou účastí na povinné osobě ","Společníci nebo členové, kteří jsou fyzickými osobami","Jméno a příjmení ",null,"Bod 1 písm. c)"]
[null,null,"Výše podílu na kapitálu v procentech"]
[null,null,"Výše podílu na hlasovacích právech v procentech"]
["Údaje o společnících nebo členech povinné osoby s kvalifikovanou účastí na povinné osobě ","Společníci nebo členové, kteří jsou fyzickými osobami","Jméno a příjmení ",null,"Bod 1 písm. c)"]
[null,null,"Výše podílu na kapitálu v procentech"]
[null,null,"Výše podílu na hlasovacích právech v procentech"]
["Údaje o společnících nebo členech povinné osoby s kvalifikovanou účastí na povinné osobě ","Společníci nebo členové, kteří jsou fyzickými osobami","Jméno a příjmení ",null,"Bod 1 písm. c)"]
[null,null,"Výše podílu na kapitálu v procentech"]
[null,null,"Výše podílu na hlasovacích právech v procentech"]
["Údaje o společnících nebo členech povinné osoby s kvalifikovanou účastí na povinné osobě ","Společníci nebo členové, kteří jsou fyzickými osobami","Jméno a příjmení ",null,"Bod 1 písm. c)"]
[null,null,"Výše podílu na kapitálu v procentech"]
[null,null,"Výše podílu na hlasovacích právech v procentech"]
["Údaje o společnících nebo členech povinné osoby s kvalifikovanou účastí na povinné osobě ","Společníci nebo členové, kteří jsou fyzickými osobami","Jméno a příjmení ",null,"Bod 1 písm. c)"]
[null,null,"Výše podílu na kapitálu v procentech"]
[null,null,"Výše podílu na hlasovacích právech v procentech"]
["Údaje o společnících nebo členech povinné osoby s kvalifikovanou účastí na povinné osobě ","Společníci nebo členové, kteří jsou fyzickými osobami","Jméno a příjmení ",null,"Bod 1 písm. c)"]
[null,null,"Výše podílu na kapitálu v procentech"]
[null,null,"Výše podílu na hlasovacích právech v procentech"]
["Údaje o společnících nebo členech povinné osoby s kvalifikovanou účastí na povinné osobě ","Společníci nebo členové, kteří jsou fyzickými osobami","Jméno a příjmení ",null,"Bod 1 písm. c)"]
[null,null,"Výše podílu na kapitálu v procentech"]
[null,null,"Výše podílu na hlasovacích právech v procentech"]
["Údaje o společnících nebo členech povinné osoby s kvalifikovanou účastí na povinné osobě ","Společníci nebo členové, kteří jsou fyzickými osobami","Jméno a příjmení ",null,"Bod 1 písm. c)"]
[null,null,"Výše podílu na kapitálu v procentech"]
[null,null,"Výše podílu na hlasovacích právech v procentech"]
["Údaje o společnících nebo členech povinné osoby s kvalifikovanou účastí na povinné osobě ","Společníci nebo členové, kteří jsou fyzickými osobami","Jméno a příjmení ",null,"Bod 1 písm. c)"]
[null,null,"Výše podílu na kapitálu v procentech"]
[null,null,"Výše podílu na hlasovacích právech v procentech"]
["Údaje o společnících nebo členech povinné osoby s kvalifikovanou účastí na povinné osobě ","Společníci nebo členové, kteří jsou fyzickými osobami","Jméno a příjmení ",null,"Bod 1 písm. c)"]
[null,null,"Výše podílu na kapitálu v procentech"]
[null,null,"Výše podílu na hlasovacích právech v procentech"]
["Údaje o společnících nebo členech povinné osoby s kvalifikovanou účastí na povinné osobě ","Společníci nebo členové, kteří jsou fyzickými osobami","Jméno a příjmení ",null,"Bod 1 písm. c)"]
[null,null,"Výše podílu na kapitálu v procentech"]
[null,null,"Výše podílu na hlasovacích právech v procentech"]
["Údaje o společnících nebo členech povinné osoby s kvalifikovanou účastí na povinné osobě ","Společníci nebo členové, kteří jsou fyzickými osobami","Jméno a příjmení ",null,"Bod 1 písm. c)"]
[null,null,"Výše podílu na kapitálu v procentech"]
[null,null,"Výše podílu na hlasovacích právech v procentech"]
["Údaje o společnících nebo členech povinné osoby s kvalifikovanou účastí na povinné osobě ","Společníci nebo členové, kteří jsou fyzickými osobami","Jméno a příjmení ",null,"Bod 1 písm. c)"]
[null,null,"Výše podílu na kapitálu v procentech"]
[null,null,"Výše podílu na hlasovacích právech v procentech"]
["Údaje o společnících nebo členech povinné osoby s kvalifikovanou účastí na povinné osobě ","Společníci nebo členové, kteří jsou fyzickými osobami","Jméno a příjmení ",null,"Bod 1 písm. c)"]
[null,null,"Výše podílu na kapitálu v procentech"]
[null,null,"Výše podílu na hlasovacích právech v procentech"]
["Údaje o společnících nebo členech povinné osoby s kvalifikovanou účastí na povinné osobě ","Společníci nebo členové, kteří jsou fyzickými osobami","Jméno a příjmení ",null,"Bod 1 písm. c)"]
[null,null,"Výše podílu na kapitálu v procentech"]
[null,null,"Výše podílu na hlasovacích právech v procentech"]
["Údaje o společnících nebo členech povinné osoby s kvalifikovanou účastí na povinné osobě ","Společníci nebo členové, kteří jsou fyzickými osobami","Jméno a příjmení ",null,"Bod 1 písm. c)"]
[null,null,"Výše podílu na kapitálu v procentech"]
[null,null,"Výše podílu na hlasovacích právech v procentech"]
["Údaje o společnících nebo členech povinné osoby s kvalifikovanou účastí na povinné osobě ","Společníci nebo členové, kteří jsou fyzickými osobami","Jméno a příjmení ",null,"Bod 1 písm. c)"]
[null,null,"Výše podílu na kapitálu v procentech"]
[null,null,"Výše podílu na hlasovacích právech v procentech"]
["Údaje o společnících nebo členech povinné osoby s kvalifikovanou účastí na povinné osobě ","Společníci nebo členové, kteří jsou fyzickými osobami","Jméno a příjmení ",null,"Bod 1 písm. c)"]
[null,null,"Výše podílu na kapitálu v procentech"]
[null,null,"Výše podílu na hlasovacích právech v procentech"]
["Údaje o společnících nebo členech povinné osoby s kvalifikovanou účastí na povinné osobě ","Společníci nebo členové, kteří jsou fyzickými osobami","Jméno a příjmení ",null,"Bod 1 písm. c)"]
[null,null,"Výše podílu na kapitálu v procentech"]
[null,null,"Výše podílu na hlasovacích právech v procentech"]

{"sheet":"IV. Část 1b","index":20,"n_rows":12,"n_cols":4,"rows_kept":12,"hidden":true,"merged":[[2,0,2,3],[3,0,3,3],[4,0,4,3],[5,0,5,1],[6,0,7,0]]}
["IV. Část 1b"]
["Údaje o činnosti zahraniční banky z jiného než členského státu"]
[]
["Údaje o činnosti zahraniční banky z jiného než členského státu"]
["Vyhláška č.163/2014 Sb., příloha 13"]
["Informace platné k datu:",null,{"$f":"Obsah!C37","v":"(dd/mm/rrrr)"}]
["číslo řádku","Bod 1 písm. d)","Bod 1 písm. e)","Bod 1 písm. f)"]
[null,"Předmět podnikání (činnosti) zahraniční banky z jiného než členského státu","Přehled činností zahraniční bankou z jiného než členského státu skutečně vykonávaných podle udělené licence","Přehled činností zahraniční banky z jiného než členského státu, jejichž vykonávání nebo poskytování bylo příslušným orgánem dohledu omezeno, nebo vyloučeno"]
[1]
[2]
[3]
["…"]

{"sheet":"IV. Část 1c","index":21,"n_rows":8,"n_cols":7,"rows_kept":8,"hidden":true,"merged":[[0,0,0,1],[1,0,1,1],[2,0,2,6],[3,0,4,2],[3,3,4,3],[3,4,4,4],[3,5,4,5],[3,6,4,6],[5,0,5,1],[5,3,5,6],[6,0,6,5],[6,6,7,6],[7,0,7,5]]}
["IV. Část 1c"]
["Výroční zpráva zahraniční banky z jiného než členského státu"]
[]
["Výroční zpráva zahraniční banky z jiného než členského státu",{"$nulls":5},"Vyhláška č.163/2014 Sb., příloha 13"]
[]
["Informace platné k datu:",null,{"$f":"Obsah!C37","v":"(dd/mm/rrrr)"}]
["Výroční zpráva zahraniční banky z jiného než členského státu a účetní závěrka zahraniční banky z jiného než členského státu, není-li součástí výroční zprávy, alespoň za poslední účetní období, nebo internetová adresa, na které jsou tyto informace k dispozici",{"$nulls":5},"Bod 1 písm. g)"]
["(znázorní se níže)"]

{"sheet":"IV. Část 2","index":22,"n_rows":306,"n_cols":5,"rows_kept":306,"hidden":true,"merged":[[0,0,0,3],[1,0,1,3],[2,0,2,4],[3,0,4,3],[3,4,4,4],[5,0,5,2],[6,0,6,2],[6,4,8,4],[7,0,7,2],[8,0,8,2],[9,0,9,2],[9,4,11,4],[10,0,10,2],[11,0,11,2],[12,0,17,0],[12,1,12,2],[12,4,17,4],[13,1,13,2],[14,1,14,2],[15,1,15,2],[16,1,16,2],[17,1,17,2],[18,0,23,0],[18,1,18,2],[18,4,23,4],[19,1,19,2],[20,1,20,2],[21,1,21,2],[22,1,22,2],[23,1,23,2],[24,0,29,0],[24,1,24,2],[24,4,29,4],[25,1,25,2],[26,1,26,2],[27,1,27,2],[28,1,28,2],[29,1,29,2],[30,0,35,0],[30,1,30,2],[30,4,35,4],[31,1,31,2],[32,1,32,2],[33,1,33,2],[34,1,34,2],[35,1,35,2],[36,0,41,0],[36,1,36,2],[36,4,41,4],[37,1,37,2],[38,1,38,2],[39,1,39,2],[40,1,40,2],[41,1,41,2],[42,0,47,0],[42,1,42,2],[42,4,47,4],[43,1,43,2],[44,1,44,2],[45,1,45,2],[46,1,46,2],[47,1,47,2],[48,0,53,0],[48,1,48,2],[48,4,53,4],[49,1,49,2],[50,1,50,2],[51,1,51,2],[52,1,52,2],[53,1,53,2],[54,0,59,0],[54,1,54,2],[54,4,59,4],[55,1,55,2],[56,1,56,2],[57,1,57,2],[58,1,58,2],[59,1,59,2],[60,0,65,0],[60,1,60,2],[60,4,65,4],[61,1,61,2],[62,1,62,2],[63,1,63,2],[64,1,64,2],[65,1,65,2],[66,0,71,0],[66,1,66,2],[66,4,71,4],[67,1,67,2],[68,1,68,2],[69,1,69,2],[70,1,70,2],[71,1,71,2],[72,0,77,0],[72,1,72,2],[72,4,77,4],[73,1,73,2],[74,1,74,2],[75,1,75,2],[76,1,76,2],[77,1,77,2],[78,0,83,0],[78,1,78,2],[78,4,83,4],[79,1,79,2],[80,1,80,2],[81,1,81,2],[82,1,82,2],[83,1,83,2],[84,0,89,0],[84,1,84,2],[84,4,89,4],[85,1,85,2],[86,1,86,2],[87,1,87,2],[88,1,88,2],[89,1,89,2],[90,0,95,0],[90,1,90,2],[90,4,95,4],[91,1,91,2],[92,1,92,2],[93,1,93,2],[94,1,94,2],[95,1,95,2],[96,0,101,0],[96,1,96,2],[96,4,101,4],[97,1,97,2],[98,1,98,2],[99,1,99,2],[100,1,100,2],[101,1,101,2],[102,0,107,0],[102,1,102,2],[102,4,107,4],[103,1,103,2],[104,1,104,2],[105,1,105,2],[106,1,106,2],[107,1,107,2],[108,0,113,0],[108,1,108,2],[108,4,113,4],[109,1,109,2],[110,1,110,2],[111,1,111,2],[112,1,112,2],[113,1,113,2],[114,0,119,0],[114,1,114,2],[114,4,119,4],[115,1,115,2],[116,1,116,2],[117,1,117,2],[118,1,118,2],[119,1,119,2],[120,0,125,0],[120,1,120,2],[120,4,125,4],[121,1,121,2],[122,1,122,2],[123,1,123,2],[124,1,124,2],[125,1,125,2],[126,0,131,0],[126,1,126,2],[126,4,131,4],[127,1,127,2],[128,1,128,2],[129,1,129,2],[130,1,130,2],[131,1,131,2],[132,0,137,0],[132,1,132,2],[132,4,137,4],[133,1,133,2],[134,1,134,2],[135,1,135,2],[136,1,136,2],[137,1,137,2],[138,0,143,0],[138,1,138,2],[138,4,143,4],[139,1,139,2],[140,1,140,2],[141,1,141,2],[142,1,142,2],[143,1,143,2],[144,0,149,0],[144,1,144,2],[144,4,149,4],[145,1,145,2],[146,1,146,2],[147,1,147,2],[148,1,148,2],[149,1,149,2],[150,0,155,0],[150,1,150,2],[150,4,155,4],[151,1,151,2],[152,1,152,2],[153,1,153,2],[154,1,154,2],[155,1,155,2],[156,0,161,0],[156,1,156,2],[156,4,161,4],[157,1,157,2],[158,1,158,2],[159,1,159,2],[160,1,160,2],[161,1,161,2],[162,0,167,0],[162,1,162,2],[162,4,167,4],[163,1,163,2],[164,1,164,2],[165,1,165,2],[166,1,166,2],[167,1,167,2],[168,0,173,0],[168,1,168,2],[168,4,173,4],[169,1,169,2],[170,1,170,2],[171,1,171,2],[172,1,172,2],[173,1,173,2],[174,0,179,0],[174,1,174,2],[174,4,179,4],[175,1,175,2],[176,1,176,2],[177,1,177,2],[178,1,178,2],[179,1,179,2],[180,0,185,0],[180,1,180,2],[180,4,185,4],[181,1,181,2],[182,1,182,2],[183,1,183,2],[184,1,184,2],[185,1,185,2],[186,0,191,0],[186,1,186,2],[186,4,191,4],[187,1,187,2],[188,1,188,2],[189,1,189,2],[190,1,190,2],[191,1,191,2],[192,0,197,0],[192,1,192,2],[192,4,197,4],[193,1,193,2],[194,1,194,2],[195,1,195,2],[196,1,196,2],[197,1,197,2],[198,0,203,0],[198,1,198,2],[198,4,203,4],[199,1,199,2],[200,1,200,2],[201,1,201,2],[202,1,202,2],[203,1,203,2],[204,0,209,0],[204,1,204,2],[204,4,209,4],[205,1,205,2],[206,1,206,2],[207,1,207,2],[208,1,208,2],[209,1,209,2],[210,0,215,0],[210,1,210,2],[210,4,215,4],[211,1,211,2],[212,1,212,2],[213,1,213,2],[214,1,214,2],[215,1,215,2],[216,0,221,0],[216,1,216,2],[216,4,221,4],[217,1,217,2],[218,1,218,2],[219,1,219,2],[220,1,220,2],[221,1,221,2],[222,0,227,0],[222,1,222,2],[222,4,227,4],[223,1,223,2],[224,1,224,2],[225,1,225,2],[226,1,226,2],[227,1,227,2],[228,0,233,0],[228,1,228,2],[228,4,233,4],[229,1,229,2],[230,1,230,2],[231,1,231,2],[232,1,232,2],[233,1,233,2],[234,0,239,0],[234,1,234,2],[234,4,239,4],[235,1,235,2],[236,1,236,2],[237,1,237,2],[238,1,238,2],[239,1,239,2],[240,0,245,0],[240,1,240,2],[240,4,245,4],[241,1,241,2],[242,1,242,2],[243,1,243,2],[244,1,244,2],[245,1,245,2],[246,0,251,0],[246,1,246,2],[246,4,251,4],[247,1,247,2],[248,1,248,2],[249,1,249,2],[250,1,250,2],[251,1,251,2],[252,0,257,0],[252,1,252,2],[252,4,257,4],[253,1,253,2],[254,1,254,2],[255,1,255,2],[256,1,256,2],[257,1,257,2],[258,0,263,0],[258,1,258,2],[258,4,263,4],[259,1,259,2],[260,1,260,2],[261,1,261,2],[262,1,262,2],[263,1,263,2],[264,0,269,0],[264,1,264,2],[264,4,269,4],[265,1,265,2],[266,1,266,2],[267,1,267,2],[268,1,268,2],[269,1,269,2],[270,0,275,0],[270,1,270,2],[270,4,275,4],[271,1,271,2],[272,1,272,2],[273,1,273,2],[274,1,274,2],[275,1,275,2],[276,0,281,0],[276,1,276,2],[276,4,281,4],[277,1,277,2],[278,1,278,2],[279,1,279,2],[280,1,280,2],[281,1,281,2],[282,0,287,0],[282,1,282,2],[282,4,287,4],[283,1,283,2],[284,1,284,2],[285,1,285,2],[286,1,286,2],[287,1,287,2],[288,0,293,0],[288,1,288,2],[288,4,293,4],[289,1,289,2],[290,1,290,2],[291,1,291,2],[292,1,292,2],[293,1,293,2],[294,0,299,0],[294,1,294,2],[294,4,299,4],[295,1,295,2],[296,1,296,2],[297,1,297,2],[298,1,298,2],[299,1,299,2],[300,0,305,0],[300,1,300,2],[300,4,305,4],[301,1,301,2],[302,1,302,2],[303,1,303,2],[304,1,304,2],[305,1,305,2]]}
["IV.Část 2"]
["Údaje o pobočce banky z jiného než členského státu I"]
[]
["Údaje o pobočce banky z jiného než členského státu",{"$nulls":3},"Vyhláška č.163/2014 Sb., příloha 13"]
[]
["Informace platné k datu:",null,null,{"$f":"Obsah!C37","v":"(dd/mm/rrrr)"}]
["Označení pobočky banky z jiného než členského státu podle zápisu v obchodním rejstříku",{"$nulls":3},"Bod 2 písm. a)"]
["Identifikační číslo pobočky banky z jiného než členského státu "]
["Adresa sídla pobočky banky z jiného než členského státu podle zápisu v obchodním rejstříku"]
["Datum zápisu do obchodního rejstříku",{"$nulls":3},"Bod 2 písm. b)"]
["Datum zápisu poslední změny do obchodního rejstříku"]
["Účel poslední změny zápisu do obchodního rejstříku"]
["Údaje o vedoucím pobočky banky z jiného členského státu a dalších osobách ve vedení této pobočky v tomto rozsahu ","Jméno a příjmení, včetně titulů",null,null,"Bod 2 písm. g)"]
[null,"Funkce a datum, od kdy osoba příslušnou funkci vykonává"]
[null,"Dosavadní zkušenosti a kvalifikační předpoklady pro výkon funkce"]
[null,"Členství v orgánech jiných právnických osob"]
[null,"Souhrnná výše úvěrů poskytnutých pobočkou banky z jiného než členského státu vedoucímu této pobočky a osobám ve vedení této pobočky"]
[null,"Souhrnná výše záruk vydaných pobočkou banky z jiného než členského státu za vedoucího této pobočky a další osoby ve vedení této pobočky"]
["Údaje o vedoucím pobočky banky z jiného členského státu a dalších osobách ve vedení pobočky banky z jiného než členského státu ","Jméno a příjmení, včetně titulů",null,null,"Bod 2 písm. g)"]
[null,"Funkce a datum, od kdy osoba příslušnou funkci vykonává"]
[null,"Dosavadní zkušenosti a kvalifikační předpoklady pro výkon funkce"]
[null,"Členství v orgánech jiných právnických osob"]
[null,"Souhrnná výše úvěrů poskytnutých pobočkou banky z jiného než členského státu vedoucímu této pobočky a osobám ve vedení této pobočky"]
[null,"Souhrnná výše záruk vydaných pobočkou banky z jiného než členského státu za vedoucího této pobočky a další osoby ve vedení této pobočky"]
["Údaje o vedoucím pobočky banky z jiného členského státu a dalších osobách ve vedení pobočky banky z jiného než členského státu ","Jméno a příjmení, včetně titulů",null,null,"Bod 2 písm. g)"]
[null,"Funkce a datum, od kdy osoba příslušnou funkci vykonává"]
[null,"Dosavadní zkušenosti a kvalifikační předpoklady pro výkon funkce"]
[null,"Členství v orgánech jiných právnických osob"]
[null,"Souhrnná výše úvěrů poskytnutých pobočkou banky z jiného než členského státu vedoucímu této pobočky a osobám ve vedení této pobočky"]
[null,"Souhrnná výše záruk vydaných pobočkou banky z jiného než členského státu za vedoucího této pobočky a další osoby ve vedení této pobočky"]
["Údaje o vedoucím pobočky banky z jiného členského státu a dalších osobách ve vedení pobočky banky z jiného než členského státu ","Jméno a příjmení, včetně titulů",null,null,"Bod 2 písm. g)"]
[null,"Funkce a datum, od kdy osoba příslušnou funkci vykonává"]
[null,"Dosavadní zkušenosti a kvalifikační předpoklady pro výkon funkce"]
[null,"Členství v orgánech jiných právnických osob"]
[null,"Souhrnná výše úvěrů poskytnutých pobočkou banky z jiného než členského státu vedoucímu této pobočky a osobám ve vedení této pobočky"]
[null,"Souhrnná výše záruk vydaných pobočkou banky z jiného než členského státu za vedoucího této pobočky a další osoby ve vedení této pobočky"]
["Údaje o vedoucím pobočky banky z jiného členského státu a dalších osobách ve vedení pobočky banky z jiného než členského státu ","Jméno a příjmení, včetně titulů",null,null,"Bod 2 písm. g)"]
[null,"Funkce a datum, od kdy osoba příslušnou funkci vykonává"]
[null,"Dosavadní zkušenosti a kvalifikační předpoklady pro výkon funkce"]
[null,"Členství v orgánech jiných právnických osob"]
[null,"Souhrnná výše úvěrů poskytnutých pobočkou banky z jiného než členského státu vedoucímu této pobočky a osobám ve vedení této pobočky"]
[null,"Souhrnná výše záruk vydaných pobočkou banky z jiného než členského státu za vedoucího této pobočky a další osoby ve vedení této pobočky"]
["Údaje o vedoucím pobočky banky z jiného členského státu a dalších osobách ve vedení pobočky banky z jiného než členského státu ","Jméno a příjmení, včetně titulů",null,null,"Bod 2 písm. g)"]
[null,"Funkce a datum, od kdy osoba příslušnou funkci vykonává"]
[null,"Dosavadní zkušenosti a kvalifikační předpoklady pro výkon funkce"]
[null,"Členství v orgánech jiných právnických osob"]
[null,"Souhrnná výše úvěrů poskytnutých pobočkou banky z jiného než členského státu vedoucímu této pobočky a osobám ve vedení této pobočky"]
[null,"Souhrnná výše záruk vydaných pobočkou banky z jiného než členského státu za vedoucího této pobočky a další osoby ve vedení této pobočky"]
["Údaje o vedoucím pobočky banky z jiného členského státu a dalších osobách ve vedení pobočky banky z jiného než členského státu ","Jméno a příjmení, včetně titulů",null,null,"Bod 2 písm. g)"]
[null,"Funkce a datum, od kdy osoba příslušnou funkci vykonává"]
[null,"Dosavadní zkušenosti a kvalifikační předpoklady pro výkon funkce"]
[null,"Členství v orgánech jiných právnických osob"]
[null,"Souhrnná výše úvěrů poskytnutých pobočkou banky z jiného než členského státu vedoucímu této pobočky a osobám ve vedení této pobočky"]
[null,"Souhrnná výše záruk vydaných pobočkou banky z jiného než členského státu za vedoucího této pobočky a další osoby ve vedení této pobočky"]
["Údaje o vedoucím pobočky banky z jiného členského státu a dalších osobách ve vedení pobočky banky z jiného než členského státu ","Jméno a příjmení, včetně titulů",null,null,"Bod 2 písm. g)"]
[null,"Funkce a datum, od kdy osoba příslušnou funkci vykonává"]
[null,"Dosavadní zkušenosti a kvalifikační předpoklady pro výkon funkce"]
[null,"Členství v orgánech jiných právnických osob"]
[null,"Souhrnná výše úvěrů poskytnutých pobočkou banky z jiného než členského státu vedoucímu této pobočky a osobám ve vedení této pobočky"]
[null,"Souhrnná výše záruk vydaných pobočkou banky z jiného než členského státu za vedoucího této pobočky a další osoby ve vedení této pobočky"]
["Údaje o vedoucím pobočky banky z jiného členského státu a dalších osobách ve vedení pobočky banky z jiného než členského státu ","Jméno a příjmení, včetně titulů",null,null,"Bod 2 písm. g)"]
[null,"Funkce a datum, od kdy osoba příslušnou funkci vykonává"]
[null,"Dosavadní zkušenosti a kvalifikační předpoklady pro výkon funkce"]
[null,"Členství v orgánech jiných právnických osob"]
[null,"Souhrnná výše úvěrů poskytnutých pobočkou banky z jiného než členského státu vedoucímu této pobočky a osobám ve vedení této pobočky"]
[null,"Souhrnná výše záruk vydaných pobočkou banky z jiného než členského státu za vedoucího této pobočky a další osoby ve vedení této pobočky"]
["Údaje o vedoucím pobočky banky z jiného členského státu a dalších osobách ve vedení pobočky banky z jiného než členského státu ","Jméno a příjmení, včetně titulů",null,null,"Bod 2 písm. g)"]
[null,"Funkce a datum, od kdy osoba příslušnou funkci vykonává"]
[null,"Dosavadní zkušenosti a kvalifikační předpoklady pro výkon funkce"]
[null,"Členství v orgánech jiných právnických osob"]
[null,"Souhrnná výše úvěrů poskytnutých pobočkou banky z jiného než členského státu vedoucímu této pobočky a osobám ve vedení této pobočky"]
[null,"Souhrnná výše záruk vydaných pobočkou banky z jiného než členského státu za vedoucího této pobočky a další osoby ve vedení této pobočky"]
["Údaje o vedoucím pobočky banky z jiného členského státu a dalších osobách ve vedení pobočky banky z jiného než členského státu ","Jméno a příjmení, včetně titulů",null,null,"Bod 2 písm. g)"]
[null,"Funkce a datum, od kdy osoba příslušnou funkci vykonává"]
[null,"Dosavadní zkušenosti a kvalifikační předpoklady pro výkon funkce"]
[null,"Členství v orgánech jiných právnických osob"]
[null,"Souhrnná výše úvěrů poskytnutých pobočkou banky z jiného než členského státu vedoucímu této pobočky a osobám ve vedení této pobočky"]
[null,"Souhrnná výše záruk vydaných pobočkou banky z jiného než členského státu za vedoucího této pobočky a další osoby ve vedení této pobočky"]
["Údaje o vedoucím pobočky banky z jiného členského státu a dalších osobách ve vedení pobočky banky z jiného než členského státu ","Jméno a příjmení, včetně titulů",null,null,"Bod 2 písm. g)"]
[null,"Funkce a datum, od kdy osoba příslušnou funkci vykonává"]
[null,"Dosavadní zkušenosti a kvalifikační předpoklady pro výkon funkce"]
[null,"Členství v orgánech jiných právnických osob"]
[null,"Souhrnná výše úvěrů poskytnutých pobočkou banky z jiného než členského státu vedoucímu této pobočky a osobám ve vedení této pobočky"]
[null,"Souhrnná výše záruk vydaných pobočkou banky z jiného než členského státu za vedoucího této pobočky a další osoby ve vedení této pobočky"]
["Údaje o vedoucím pobočky banky z jiného členského státu a dalších osobách ve vedení pobočky banky z jiného než členského státu ","Jméno a příjmení, včetně titulů",null,null,"Bod 2 písm. g)"]
[null,"Funkce a datum, od kdy osoba příslušnou funkci vykonává"]
[null,"Dosavadní zkušenosti a kvalifikační předpoklady pro výkon funkce"]
[null,"Členství v orgánech jiných právnických osob"]
[null,"Souhrnná výše úvěrů poskytnutých pobočkou banky z jiného než členského státu vedoucímu této pobočky a osobám ve vedení této pobočky"]
[null,"Souhrnná výše záruk vydaných pobočkou banky z jiného než členského státu za vedoucího této pobočky a další osoby ve vedení této pobočky"]
["Údaje o vedoucím pobočky banky z jiného členského státu a dalších osobách ve vedení pobočky banky z jiného než členského státu ","Jméno a příjmení, včetně titulů",null,null,"Bod 2 písm. g)"]
[null,"Funkce a datum, od kdy osoba příslušnou funkci vykonává"]
[null,"Dosavadní zkušenosti a kvalifikační předpoklady pro výkon funkce"]
[null,"Členství v orgánech jiných právnických osob"]
[null,"Souhrnná výše úvěrů poskytnutých pobočkou banky z jiného než členského státu vedoucímu této pobočky a osobám ve vedení této pobočky"]
[null,"Souhrnná výše záruk vydaných pobočkou banky z jiného než členského státu za vedoucího této pobočky a další osoby ve vedení této pobočky"]
["Údaje o vedoucím pobočky banky z jiného členského státu a dalších osobách ve vedení pobočky banky z jiného než členského státu ","Jméno a příjmení, včetně titulů",null,null,"Bod 2 písm. g)"]
[null,"Funkce a datum, od kdy osoba příslušnou funkci vykonává"]
[null,"Dosavadní zkušenosti a kvalifikační předpoklady pro výkon funkce"]
[null,"Členství v orgánech jiných právnických osob"]
[null,"Souhrnná výše úvěrů poskytnutých pobočkou banky z jiného než členského státu vedoucímu této pobočky a osobám ve vedení této pobočky"]
[null,"Souhrnná výše záruk vydaných pobočkou banky z jiného než členského státu za vedoucího této pobočky a další osoby ve vedení této pobočky"]
["Údaje o vedoucím pobočky banky z jiného členského státu a dalších osobách ve vedení pobočky banky z jiného než členského státu ","Jméno a příjmení, včetně titulů",null,null,"Bod 2 písm. g)"]
[null,"Funkce a datum, od kdy osoba příslušnou funkci vykonává"]
[null,"Dosavadní zkušenosti a kvalifikační předpoklady pro výkon funkce"]
[null,"Členství v orgánech jiných právnických osob"]
[null,"Souhrnná výše úvěrů poskytnutých pobočkou banky z jiného než členského státu vedoucímu této pobočky a osobám ve vedení této pobočky"]
[null,"Souhrnná výše záruk vydaných pobočkou banky z jiného než členského státu za vedoucího této pobočky a další osoby ve vedení této pobočky"]
["Údaje o vedoucím pobočky banky z jiného členského státu a dalších osobách ve vedení pobočky banky z jiného než členského státu ","Jméno a příjmení, včetně titulů",null,null,"Bod 2 písm. g)"]
[null,"Funkce a datum, od kdy osoba příslušnou funkci vykonává"]
[null,"Dosavadní zkušenosti a kvalifikační předpoklady pro výkon funkce"]
[null,"Členství v orgánech jiných právnických osob"]
[null,"Souhrnná výše úvěrů poskytnutých pobočkou banky z jiného než členského státu vedoucímu této pobočky a osobám ve vedení této pobočky"]
[null,"Souhrnná výše záruk vydaných pobočkou banky z jiného než členského státu za vedoucího této pobočky a další osoby ve vedení této pobočky"]
["Údaje o vedoucím pobočky banky z jiného členského státu a dalších osobách ve vedení pobočky banky z jiného než členského státu ","Jméno a příjmení, včetně titulů",null,null,"Bod 2 písm. g)"]
[null,"Funkce a datum, od kdy osoba příslušnou funkci vykonává"]
[null,"Dosavadní zkušenosti a kvalifikační předpoklady pro výkon funkce"]
[null,"Členství v orgánech jiných právnických osob"]
[null,"Souhrnná výše úvěrů poskytnutých pobočkou banky z jiného než členského státu vedoucímu této pobočky a osobám ve vedení této pobočky"]
[null,"Souhrnná výše záruk vydaných pobočkou banky z jiného než členského státu za vedoucího této pobočky a další osoby ve vedení této pobočky"]
["Údaje o vedoucím pobočky banky z jiného členského státu a dalších osobách ve vedení pobočky banky z jiného než členského státu ","Jméno a příjmení, včetně titulů",null,null,"Bod 2 písm. g)"]
[null,"Funkce a datum, od kdy osoba příslušnou funkci vykonává"]
[null,"Dosavadní zkušenosti a kvalifikační předpoklady pro výkon funkce"]
[null,"Členství v orgánech jiných právnických osob"]
[null,"Souhrnná výše úvěrů poskytnutých pobočkou banky z jiného než členského státu vedoucímu této pobočky a osobám ve vedení této pobočky"]
[null,"Souhrnná výše záruk vydaných pobočkou banky z jiného než členského státu za vedoucího této pobočky a další osoby ve vedení této pobočky"]
["Údaje o vedoucím pobočky banky z jiného členského státu a dalších osobách ve vedení pobočky banky z jiného než členského státu ","Jméno a příjmení, včetně titulů",null,null,"Bod 2 písm. g)"]
[null,"Funkce a datum, od kdy osoba příslušnou funkci vykonává"]
[null,"Dosavadní zkušenosti a kvalifikační předpoklady pro výkon funkce"]
[null,"Členství v orgánech jiných právnických osob"]
[null,"Souhrnná výše úvěrů poskytnutých pobočkou banky z jiného než členského státu vedoucímu této pobočky a osobám ve vedení této pobočky"]
[null,"Souhrnná výše záruk vydaných pobočkou banky z jiného než členského státu za vedoucího této pobočky a další osoby ve vedení této pobočky"]
["Údaje o vedoucím pobočky banky z jiného členského státu a dalších osobách ve vedení pobočky banky z jiného než členského státu ","Jméno a příjmení, včetně titulů",null,null,"Bod 2 písm. g)"]
[null,"Funkce a datum, od kdy osoba příslušnou funkci vykonává"]
[null,"Dosavadní zkušenosti a kvalifikační předpoklady pro výkon funkce"]
[null,"Členství v orgánech jiných právnických osob"]
[null,"Souhrnná výše úvěrů poskytnutých pobočkou banky z jiného než členského státu vedoucímu této pobočky a osobám ve vedení této pobočky"]
[null,"Souhrnná výše záruk vydaných pobočkou banky z jiného než členského státu za vedoucího této pobočky a další osoby ve vedení této pobočky"]
["Údaje o vedoucím pobočky banky z jiného členského státu a dalších osobách ve vedení pobočky banky z jiného než členského státu ","Jméno a příjmení, včetně titulů",null,null,"Bod 2 písm. g)"]
[null,"Funkce a datum, od kdy osoba příslušnou funkci vykonává"]
[null,"Dosavadní zkušenosti a kvalifikační předpoklady pro výkon funkce"]
[null,"Členství v orgánech jiných právnických osob"]
[null,"Souhrnná výše úvěrů poskytnutých pobočkou banky z jiného než členského státu vedoucímu této pobočky a osobám ve vedení této pobočky"]
[null,"Souhrnná výše záruk vydaných pobočkou banky z jiného než členského státu za vedoucího této pobočky a další osoby ve vedení této pobočky"]
["Údaje o vedoucím pobočky banky z jiného členského státu a dalších osobách ve vedení pobočky banky z jiného než členského státu ","Jméno a příjmení, včetně titulů",null,null,"Bod 2 písm. g)"]
[null,"Funkce a datum, od kdy osoba příslušnou funkci vykonává"]
[null,"Dosavadní zkušenosti a kvalifikační předpoklady pro výkon funkce"]
[null,"Členství v orgánech jiných právnických osob"]
[null,"Souhrnná výše úvěrů poskytnutých pobočkou banky z jiného než členského státu vedoucímu této pobočky a osobám ve vedení této pobočky"]
[null,"Souhrnná výše záruk vydaných pobočkou banky z jiného než členského státu za vedoucího této pobočky a další osoby ve vedení této pobočky"]
["Údaje o vedoucím pobočky banky z jiného členského státu a dalších osobách ve vedení pobočky banky z jiného než členského státu ","Jméno a příjmení, včetně titulů",null,null,"Bod 2 písm. g)"]
[null,"Funkce a datum, od kdy osoba příslušnou funkci vykonává"]
[null,"Dosavadní zkušenosti a kvalifikační předpoklady pro výkon funkce"]
[null,"Členství v orgánech jiných právnických osob"]
[null,"Souhrnná výše úvěrů poskytnutých pobočkou banky z jiného než členského státu vedoucímu této pobočky a osobám ve vedení této pobočky"]
[null,"Souhrnná výše záruk vydaných pobočkou banky z jiného než členského státu za vedoucího této pobočky a další osoby ve vedení této pobočky"]
["Údaje o vedoucím pobočky banky z jiného členského státu a dalších osobách ve vedení pobočky banky z jiného než členského státu ","Jméno a příjmení, včetně titulů",null,null,"Bod 2 písm. g)"]
[null,"Funkce a datum, od kdy osoba příslušnou funkci vykonává"]
[null,"Dosavadní zkušenosti a kvalifikační předpoklady pro výkon funkce"]
[null,"Členství v orgánech jiných právnických osob"]
[null,"Souhrnná výše úvěrů poskytnutých pobočkou banky z jiného než členského státu vedoucímu této pobočky a osobám ve vedení této pobočky"]
[null,"Souhrnná výše záruk vydaných pobočkou banky z jiného než členského státu za vedoucího této pobočky a další osoby ve vedení této pobočky"]
["Údaje o vedoucím pobočky banky z jiného členského státu a dalších osobách ve vedení pobočky banky z jiného než členského státu ","Jméno a příjmení, včetně titulů",null,null,"Bod 2 písm. g)"]
[null,"Funkce a datum, od kdy osoba příslušnou funkci vykonává"]
[null,"Dosavadní zkušenosti a kvalifikační předpoklady pro výkon funkce"]
[null,"Členství v orgánech jiných právnických osob"]
[null,"Souhrnná výše úvěrů poskytnutých pobočkou banky z jiného než členského státu vedoucímu této pobočky a osobám ve vedení této pobočky"]
[null,"Souhrnná výše záruk vydaných pobočkou banky z jiného než členského státu za vedoucího této pobočky a další osoby ve vedení této pobočky"]
["Údaje o vedoucím pobočky banky z jiného členského státu a dalších osobách ve vedení pobočky banky z jiného než členského státu ","Jméno a příjmení, včetně titulů",null,null,"Bod 2 písm. g)"]
[null,"Funkce a datum, od kdy osoba příslušnou funkci vykonává"]
[null,"Dosavadní zkušenosti a kvalifikační předpoklady pro výkon funkce"]
[null,"Členství v orgánech jiných právnických osob"]
[null,"Souhrnná výše úvěrů poskytnutých pobočkou banky z jiného než členského státu vedoucímu této pobočky a osobám ve vedení této pobočky"]
[null,"Souhrnná výše záruk vydaných pobočkou banky z jiného než členského státu za vedoucího této pobočky a další osoby ve vedení této pobočky"]
["Údaje o vedoucím pobočky banky z jiného členského státu a dalších osobách ve vedení pobočky banky z jiného než členského státu ","Jméno a příjmení, včetně titulů",null,null,"Bod 2 písm. g)"]
[null,"Funkce a datum, od kdy osoba příslušnou funkci vykonává"]
[null,"Dosavadní zkušenosti a kvalifikační předpoklady pro výkon funkce"]
[null,"Členství v orgánech jiných právnických osob"]
[null,"Souhrnná výše úvěrů poskytnutých pobočkou banky z jiného než členského státu vedoucímu této pobočky a osobám ve vedení této pobočky"]
[null,"Souhrnná výše záruk vydaných pobočkou banky z jiného než členského státu za vedoucího této pobočky a další osoby ve vedení této pobočky"]
["Údaje o vedoucím pobočky banky z jiného členského státu a dalších osobách ve vedení pobočky banky z jiného než členského státu ","Jméno a příjmení, včetně titulů",null,null,"Bod 2 písm. g)"]
[null,"Funkce a datum, od kdy osoba příslušnou funkci vykonává"]
[null,"Dosavadní zkušenosti a kvalifikační předpoklady pro výkon funkce"]
[null,"Členství v orgánech jiných právnických osob"]
[null,"Souhrnná výše úvěrů poskytnutých pobočkou banky z jiného než členského státu vedoucímu této pobočky a osobám ve vedení této pobočky"]
[null,"Souhrnná výše záruk vydaných pobočkou banky z jiného než členského státu za vedoucího této pobočky a další osoby ve vedení této pobočky"]
["Údaje o vedoucím pobočky banky z jiného členského státu a dalších osobách ve vedení pobočky banky z jiného než členského státu ","Jméno a příjmení, včetně titulů",null,null,"Bod 2 písm. g)"]
[null,"Funkce a datum, od kdy osoba příslušnou funkci vykonává"]
[null,"Dosavadní zkušenosti a kvalifikační předpoklady pro výkon funkce"]
[null,"Členství v orgánech jiných právnických osob"]
[null,"Souhrnná výše úvěrů poskytnutých pobočkou banky z jiného než členského státu vedoucímu této pobočky a osobám ve vedení této pobočky"]
[null,"Souhrnná výše záruk vydaných pobočkou banky z jiného než členského státu za vedoucího této pobočky a další osoby ve vedení této pobočky"]
["Údaje o vedoucím pobočky banky z jiného členského státu a dalších osobách ve vedení pobočky banky z jiného než členského státu ","Jméno a příjmení, včetně titulů",null,null,"Bod 2 písm. g)"]
[null,"Funkce a datum, od kdy osoba příslušnou funkci vykonává"]
[null,"Dosavadní zkušenosti a kvalifikační předpoklady pro výkon funkce"]
[null,"Členství v orgánech jiných právnických osob"]
[null,"Souhrnná výše úvěrů poskytnutých pobočkou banky z jiného než členského státu vedoucímu této pobočky a osobám ve vedení této pobočky"]
[null,"Souhrnná výše záruk vydaných pobočkou banky z jiného než členského státu za vedoucího této pobočky a další osoby ve vedení této pobočky"]
["Údaje o vedoucím pobočky banky z jiného členského státu a dalších osobách ve vedení pobočky banky z jiného než členského státu ","Jméno a příjmení, včetně titulů",null,null,"Bod 2 písm. g)"]
[null,"Funkce a datum, od kdy osoba příslušnou funkci vykonává"]
[null,"Dosavadní zkušenosti a kvalifikační předpoklady pro výkon funkce"]
[null,"Členství v orgánech jiných právnických osob"]
[null,"Souhrnná výše úvěrů poskytnutých pobočkou banky z jiného než členského státu vedoucímu této pobočky a osobám ve vedení této pobočky"]
[null,"Souhrnná výše záruk vydaných pobočkou banky z jiného než členského státu za vedoucího této pobočky a další osoby ve vedení této pobočky"]
["Údaje o vedoucím pobočky banky z jiného členského státu a dalších osobách ve vedení pobočky banky z jiného než členského státu ","Jméno a příjmení, včetně titulů",null,null,"Bod 2 písm. g)"]
[null,"Funkce a datum, od kdy osoba příslušnou funkci vykonává"]
[null,"Dosavadní zkušenosti a kvalifikační předpoklady pro výkon funkce"]
[null,"Členství v orgánech jiných právnických osob"]
[null,"Souhrnná výše úvěrů poskytnutých pobočkou banky z jiného než členského státu vedoucímu této pobočky a osobám ve vedení této pobočky"]
[null,"Souhrnná výše záruk vydaných pobočkou banky z jiného než členského státu za vedoucího této pobočky a další osoby ve vedení této pobočky"]
["Údaje o vedoucím pobočky banky z jiného členského státu a dalších osobách ve vedení pobočky banky z jiného než členského státu ","Jméno a příjmení, včetně titulů",null,null,"Bod 2 písm. g)"]
[null,"Funkce a datum, od kdy osoba příslušnou funkci vykonává"]
[null,"Dosavadní zkušenosti a kvalifikační předpoklady pro výkon funkce"]
[null,"Členství v orgánech jiných právnických osob"]
[null,"Souhrnná výše úvěrů poskytnutých pobočkou banky z jiného než členského státu vedoucímu této pobočky a osobám ve vedení této pobočky"]
[null,"Souhrnná výše záruk vydaných pobočkou banky z jiného než členského státu za vedoucího této pobočky a další osoby ve vedení této pobočky"]
["Údaje o vedoucím pobočky banky z jiného členského státu a dalších osobách ve vedení pobočky banky z jiného než členského státu ","Jméno a příjmení, včetně titulů",null,null,"Bod 2 písm. g)"]
[null,"Funkce a datum, od kdy osoba příslušnou funkci vykonává"]
[null,"Dosavadní zkušenosti a kvalifikační předpoklady pro výkon funkce"]
[null,"Členství v orgánech jiných právnických osob"]
[null,"Souhrnná výše úvěrů poskytnutých pobočkou banky z jiného než členského státu vedoucímu této pobočky a osobám ve vedení této pobočky"]
[null,"Souhrnná výše záruk vydaných pobočkou banky z jiného než členského státu za vedoucího této pobočky a další osoby ve vedení této pobočky"]
["Údaje o vedoucím pobočky banky z jiného členského státu a dalších osobách ve vedení pobočky banky z jiného než členského státu ","Jméno a příjmení, včetně titulů",null,null,"Bod 2 písm. g)"]
[null,"Funkce a datum, od kdy osoba příslušnou funkci vykonává"]
[null,"Dosavadní zkušenosti a kvalifikační předpoklady pro výkon funkce"]
[null,"Členství v orgánech jiných právnických osob"]
[null,"Souhrnná výše úvěrů poskytnutých pobočkou banky z jiného než členského státu vedoucímu této pobočky a osobám ve vedení této pobočky"]
[null,"Souhrnná výše záruk vydaných pobočkou banky z jiného než členského státu za vedoucího této pobočky a další osoby ve vedení této pobočky"]
["Údaje o vedoucím pobočky banky z jiného členského státu a dalších osobách ve vedení pobočky banky z jiného než členského státu ","Jméno a příjmení, včetně titulů",null,null,"Bod 2 písm. g)"]
[null,"Funkce a datum, od kdy osoba příslušnou funkci vykonává"]
[null,"Dosavadní zkušenosti a kvalifikační předpoklady pro výkon funkce"]
[null,"Členství v orgánech jiných právnických osob"]
[null,"Souhrnná výše úvěrů poskytnutých pobočkou banky z jiného než členského státu vedoucímu této pobočky a osobám ve vedení této pobočky"]
[null,"Souhrnná výše záruk vydaných pobočkou banky z jiného než členského státu za vedoucího této pobočky a další osoby ve vedení této pobočky"]
["Údaje o vedoucím pobočky banky z jiného členského státu a dalších osobách ve vedení pobočky banky z jiného než členského státu ","Jméno a příjmení, včetně titulů",null,null,"Bod 2 písm. g)"]
[null,"Funkce a datum, od kdy osoba příslušnou funkci vykonává"]
[null,"Dosavadní zkušenosti a kvalifikační předpoklady pro výkon funkce"]
[null,"Členství v orgánech jiných právnických osob"]
[null,"Souhrnná výše úvěrů poskytnutých pobočkou banky z jiného než členského státu vedoucímu této pobočky a osobám ve vedení této pobočky"]
[null,"Souhrnná výše záruk vydaných pobočkou banky z jiného než členského státu za vedoucího této pobočky a další osoby ve vedení této pobočky"]
["Údaje o vedoucím pobočky banky z jiného členského státu a dalších osobách ve vedení pobočky banky z jiného než členského státu ","Jméno a příjmení, včetně titulů",null,null,"Bod 2 písm. g)"]
[null,"Funkce a datum, od kdy osoba příslušnou funkci vykonává"]
[null,"Dosavadní zkušenosti a kvalifikační předpoklady pro výkon funkce"]
[null,"Členství v orgánech jiných právnických osob"]
[null,"Souhrnná výše úvěrů poskytnutých pobočkou banky z jiného než členského státu vedoucímu této pobočky a osobám ve vedení této pobočky"]
[null,"Souhrnná výše záruk vydaných pobočkou banky z jiného než členského státu za vedoucího této pobočky a další osoby ve vedení této pobočky"]
["Údaje o vedoucím pobočky banky z jiného členského státu a dalších osobách ve vedení pobočky banky z jiného než členského státu ","Jméno a příjmení, včetně titulů",null,null,"Bod 2 písm. g)"]
[null,"Funkce a datum, od kdy osoba příslušnou funkci vykonává"]
[null,"Dosavadní zkušenosti a kvalifikační předpoklady pro výkon funkce"]
[null,"Členství v orgánech jiných právnických osob"]
[null,"Souhrnná výše úvěrů poskytnutých pobočkou banky z jiného než členského státu vedoucímu této pobočky a osobám ve vedení této pobočky"]
[null,"Souhrnná výše záruk vydaných pobočkou banky z jiného než členského státu za vedoucího této pobočky a další osoby ve vedení této pobočky"]
["Údaje o vedoucím pobočky banky z jiného členského státu a dalších osobách ve vedení pobočky banky z jiného než členského státu ","Jméno a příjmení, včetně titulů",null,null,"Bod 2 písm. g)"]
[null,"Funkce a datum, od kdy osoba příslušnou funkci vykonává"]
[null,"Dosavadní zkušenosti a kvalifikační předpoklady pro výkon funkce"]
[null,"Členství v orgánech jiných právnických osob"]
[null,"Souhrnná výše úvěrů poskytnutých pobočkou banky z jiného než členského státu vedoucímu této pobočky a osobám ve vedení této pobočky"]
[null,"Souhrnná výše záruk vydaných pobočkou banky z jiného než členského státu za vedoucího této pobočky a další osoby ve vedení této pobočky"]
["Údaje o vedoucím pobočky banky z jiného členského státu a dalších osobách ve vedení pobočky banky z jiného než členského státu ","Jméno a příjmení, včetně titulů",null,null,"Bod 2 písm. g)"]
[null,"Funkce a datum, od kdy osoba příslušnou funkci vykonává"]
[null,"Dosavadní zkušenosti a kvalifikační předpoklady pro výkon funkce"]
[null,"Členství v orgánech jiných právnických osob"]
[null,"Souhrnná výše úvěrů poskytnutých pobočkou banky z jiného než členského státu vedoucímu této pobočky a osobám ve vedení této pobočky"]
[null,"Souhrnná výše záruk vydaných pobočkou banky z jiného než členského státu za vedoucího této pobočky a další osoby ve vedení této pobočky"]
["Údaje o vedoucím pobočky banky z jiného členského státu a dalších osobách ve vedení pobočky banky z jiného než členského státu ","Jméno a příjmení, včetně titulů",null,null,"Bod 2 písm. g)"]
[null,"Funkce a datum, od kdy osoba příslušnou funkci vykonává"]
[null,"Dosavadní zkušenosti a kvalifikační předpoklady pro výkon funkce"]
[null,"Členství v orgánech jiných právnických osob"]
[null,"Souhrnná výše úvěrů poskytnutých pobočkou banky z jiného než členského státu vedoucímu této pobočky a osobám ve vedení této pobočky"]
[null,"Souhrnná výše záruk vydaných pobočkou banky z jiného než členského státu za vedoucího této pobočky a další osoby ve vedení této pobočky"]
["Údaje o vedoucím pobočky banky z jiného členského státu a dalších osobách ve vedení pobočky banky z jiného než členského státu ","Jméno a příjmení, včetně titulů",null,null,"Bod 2 písm. g)"]
[null,"Funkce a datum, od kdy osoba příslušnou funkci vykonává"]
[null,"Dosavadní zkušenosti a kvalifikační předpoklady pro výkon funkce"]
[null,"Členství v orgánech jiných právnických osob"]
[null,"Souhrnná výše úvěrů poskytnutých pobočkou banky z jiného než členského státu vedoucímu této pobočky a osobám ve vedení této pobočky"]
[null,"Souhrnná výše záruk vydaných pobočkou banky z jiného než členského státu za vedoucího této pobočky a další osoby ve vedení této pobočky"]
["Údaje o vedoucím pobočky banky z jiného členského státu a dalších osobách ve vedení pobočky banky z jiného než členského státu ","Jméno a příjmení, včetně titulů",null,null,"Bod 2 písm. g)"]
[null,"Funkce a datum, od kdy osoba příslušnou funkci vykonává"]
[null,"Dosavadní zkušenosti a kvalifikační předpoklady pro výkon funkce"]
[null,"Členství v orgánech jiných právnických osob"]
[null,"Souhrnná výše úvěrů poskytnutých pobočkou banky z jiného než členského státu vedoucímu této pobočky a osobám ve vedení této pobočky"]
[null,"Souhrnná výše záruk vydaných pobočkou banky z jiného než členského státu za vedoucího této pobočky a další osoby ve vedení této pobočky"]
["Údaje o vedoucím pobočky banky z jiného členského státu a dalších osobách ve vedení pobočky banky z jiného než členského státu ","Jméno a příjmení, včetně titulů",null,null,"Bod 2 písm. g)"]
[null,"Funkce a datum, od kdy osoba příslušnou funkci vykonává"]
[null,"Dosavadní zkušenosti a kvalifikační předpoklady pro výkon funkce"]
[null,"Členství v orgánech jiných právnických osob"]
[null,"Souhrnná výše úvěrů poskytnutých pobočkou banky z jiného než členského státu vedoucímu této pobočky a osobám ve vedení této pobočky"]
[null,"Souhrnná výše záruk vydaných pobočkou banky z jiného než členského státu za vedoucího této pobočky a další osoby ve vedení této pobočky"]
["Údaje o vedoucím pobočky banky z jiného členského státu a dalších osobách ve vedení pobočky banky z jiného než členského státu ","Jméno a příjmení, včetně titulů",null,null,"Bod 2 písm. g)"]
[null,"Funkce a datum, od kdy osoba příslušnou funkci vykonává"]
[null,"Dosavadní zkušenosti a kvalifikační předpoklady pro výkon funkce"]
[null,"Členství v orgánech jiných právnických osob"]
[null,"Souhrnná výše úvěrů poskytnutých pobočkou banky z jiného než členského státu vedoucímu této pobočky a osobám ve vedení této pobočky"]
[null,"Souhrnná výše záruk vydaných pobočkou banky z jiného než členského státu za vedoucího této pobočky a další osoby ve vedení této pobočky"]
["Údaje o vedoucím pobočky banky z jiného členského státu a dalších osobách ve vedení pobočky banky z jiného než členského státu ","Jméno a příjmení, včetně titulů",null,null,"Bod 2 písm. g)"]
[null,"Funkce a datum, od kdy osoba příslušnou funkci vykonává"]
[null,"Dosavadní zkušenosti a kvalifikační předpoklady pro výkon funkce"]
[null,"Členství v orgánech jiných právnických osob"]
[null,"Souhrnná výše úvěrů poskytnutých pobočkou banky z jiného než členského státu vedoucímu této pobočky a osobám ve vedení této pobočky"]
[null,"Souhrnná výše záruk vydaných pobočkou banky z jiného než členského státu za vedoucího této pobočky a další osoby ve vedení této pobočky"]
["Údaje o vedoucím pobočky banky z jiného členského státu a dalších osobách ve vedení pobočky banky z jiného než členského státu ","Jméno a příjmení, včetně titulů",null,null,"Bod 2 písm. g)"]
[null,"Funkce a datum, od kdy osoba příslušnou funkci vykonává"]
[null,"Dosavadní zkušenosti a kvalifikační předpoklady pro výkon funkce"]
[null,"Členství v orgánech jiných právnických osob"]
[null,"Souhrnná výše úvěrů poskytnutých pobočkou banky z jiného než členského státu vedoucímu této pobočky a osobám ve vedení této pobočky"]
[null,"Souhrnná výše záruk vydaných pobočkou banky z jiného než členského státu za vedoucího této pobočky a další osoby ve vedení této pobočky"]

{"sheet":"IV. Část 2a","index":23,"n_rows":31,"n_cols":4,"rows_kept":31,"hidden":true,"merged":[[2,0,2,3],[3,0,3,3],[4,0,4,3],[5,0,5,1],[6,0,26,0]]}
["IV. Část 2a"]
["Údaje o pobočce banky z jiného než členského státu II"]
[]
["Údaje o pobočce banky z jiného než členského státu "]
["Vyhláška č.163/2014 Sb., příloha 13"]
["Informace platné k datu:",null,{"$f":"Obsah!C37","v":"(dd/mm/rrrr)"}]
["číslo řádku","Bod 2 písm. c)","Bod 2 písm. d)","Bod 2 písm. e)"]
{"$rows_empty":19}
[null,"Předmět podnikání (činnosti) zapsaný v obchodním rejstříku","Přehled činností skutečně vykonávaných","Přehled činností, jejichž vykovávání nebo poskytování bylo Českou národní bankou omezeno nebo vyloučeno"]
[1]
[2]
[3]
["…"]

{"sheet":"IV. Část 2b","index":24,"n_rows":9,"n_cols":5,"rows_kept":9,"hidden":true,"merged":[[0,0,0,3],[1,0,1,3],[2,0,2,4],[3,0,4,3],[3,4,4,4],[5,0,5,2],[6,0,8,0],[6,1,6,2],[6,4,8,4],[7,1,7,2],[8,1,8,3]]}
["IV. Část 2b"]
["Údaje o pobočce banky z jiného než členského státu III"]
[]
["Údaje o pobočce banky z jiného než členského státu",{"$nulls":3},"Vyhláška č.163/2014 Sb., příloha 13"]
[]
["Informace platné k datu:",null,null,{"$f":"Obsah!C37","v":"(dd/mm/rrrr)"}]
["Organizační struktura povinné osoby ","Počet obchodních míst ",null,null,"Bod 2 písm. f)"]
[null,"Počet pracovníků (přepočtený stav)"]
[null,"Organizační struktura povinné osoby (znázorní se níže)"]

{"sheet":"IV. Část 3","index":25,"n_rows":66,"n_cols":8,"rows_kept":66,"hidden":true,"merged":[[0,0,0,1],[1,0,1,1],[2,0,2,7],[3,0,4,6],[3,7,4,7],[5,0,5,2],[6,0,7,2],[6,7,7,7],[8,0,9,1],[8,7,9,7],[10,0,11,0],[10,1,10,2],[10,7,11,7],[11,1,11,2],[12,0,16,0],[12,1,12,2],[12,7,16,7],[13,1,13,2],[14,1,14,2],[15,1,15,2],[16,1,16,2],[17,0,22,0],[17,1,17,2],[17,7,22,7],[18,1,18,2],[19,1,19,2],[20,1,20,2],[21,1,21,2],[22,1,22,2],[23,0,28,0],[23,1,23,2],[23,7,28,7],[24,1,24,2],[25,1,25,2],[26,1,26,2],[27,1,27,2],[28,1,28,2],[29,0,34,0],[29,1,29,2],[29,7,34,7],[30,1,30,2],[31,1,31,2],[32,1,32,2],[33,1,33,2],[34,1,34,2],[35,0,40,0],[35,1,35,2],[35,7,40,7],[36,1,36,2],[37,1,37,2],[38,1,38,2],[39,1,39,2],[40,1,40,2],[41,0,46,0],[41,1,41,2],[41,7,46,7],[42,1,42,2],[43,1,43,2],[44,1,44,2],[45,1,45,2],[46,1,46,2],[47,0,52,0],[47,1,47,2],[47,7,52,7],[48,1,48,2],[49,1,49,2],[50,1,50,2],[51,1,51,2],[52,1,52,2],[53,0,58,0],[53,1,53,2],[53,7,58,7],[54,1,54,2],[55,1,55,2],[56,1,56,2],[57,1,57,2],[58,1,58,2],[59,0,64,0],[59,1,59,2],[59,7,64,7],[60,1,60,2],[61,1,61,2],[62,1,62,2],[63,1,63,2],[64,1,64,2],[65,0,70,0],[65,1,65,2],[65,7,70,7],[66,1,66,2],[67,1,67,2],[68,1,68,2],[69,1,69,2],[70,1,70,2]]}
["IV. Část 3"]
["Údaje o plnění obezřetnostních pravidel pobočky banky z jiného než členského státu I"]
[]
["Údaje o plnění obezřetnostních pravidel pobočky banky z jiného než členského státu",{"$nulls":6},"Vyhláška č. 163/2014 Sb., \npříloha 13"]
[]
["Informace platné k datu:",null,null,{"$f":"Obsah!C37","v":"(dd/mm/rrrr)"}]
[{"$nulls":3},"K ultimu vykazovaného období","K ultimu 1. předcházejícího období","K ultimu 2. předcházejícího období","K ultimu 3. předcházejícího období"]
[{"$nulls":3},"(qq/rrrr)","(qq/rrrr)","(qq/rrrr)","(qq/rrrr)"]
["Souhrnná výše pohledávek pobočky banky z jiného než členského státu, z finančních činností, u nichž byla během účetního období provedena restrukturalizace (součet zůstatků účtů pohledávek k vykazovanému datu, a to pohledávek, u nichž byla během účetního období provedena restrukturalizace); pohledávky jsou uváděny bez opravných položek,restrukturalizace); pohledávky jsou uváděny bez opravných položek",null,"Pohledávky oceňované naběhlou hodnotou",{"$nulls":4},"Bod 3 \npísm. e)"]
[null,null,"Pohledávky oceňované reálnou hodnotou"]
["Kapitálové poměry","Kapitálový poměr pro kapitál tier 1",{"$nulls":5},"Bod 3 \npísm. g)"]
[null,"Kapitálový poměr pro celkový kapitál"]
["Poměrové ukazatele pobočky banky z jiného než členského státu","Rentabilita průměrných aktiv (ROAA)",{"$nulls":5},"Bod 3 \npísm. h)"]
[null,"Rentabilita průměrného kapitálu tier 1 (ROAE)"]
[null,"Aktiva na jednoho pracovníka"]
[null,"Správní náklady na jednoho pracovníka"]
[null,"Zisk nebo ztráta po zdanění na jednoho pracovníka "]
["Údaje o objemu obchodů uskutečněných v rámci poskytování investičních služeb ve vztahu k jednotlivým investičním nástrojům, pokud pobočka banky z jiného než členského státu je oprávněna poskytovat investiční služby podle zákona o podnikání na kapitálovém trhu",{"$nulls":6},"Bod 3 \npísm. i)"]
[]
[]
[]
[]
[]
["Údaje o objemu obchodů uskutečněných v rámci poskytování investičních služeb ve vztahu k jednotlivým investičním nástrojům, pokud pobočka banky z jiného než členského státu je oprávněna poskytovat investiční služby podle zákona o podnikání na kapitálovém trhu",{"$nulls":6},"Bod 3 písm. i)"]
[]
[]
[]
[]
[]
["Údaje o objemu obchodů uskutečněných v rámci poskytování investičních služeb ve vztahu k jednotlivým investičním nástrojům, pokud pobočka banky z jiného než členského státu je oprávněna poskytovat investiční služby podle zákona o podnikání na kapitálovém trhu",{"$nulls":6},"Bod 3 písm. i)"]
[]
[]
[]
[]
[]
["Údaje o objemu obchodů uskutečněných v rámci poskytování investičních služeb ve vztahu k jednotlivým investičním nástrojům, pokud pobočka banky z jiného než členského státu je oprávněna poskytovat investiční služby podle zákona o podnikání na kapitálovém trhu",{"$nulls":6},"Bod 3 písm. i)"]
[]
[]
[]
[]
[]
["Údaje o objemu obchodů uskutečněných v rámci poskytování investičních služeb ve vztahu k jednotlivým investičním nástrojům, pokud pobočka banky z jiného než členského státu je oprávněna poskytovat investiční služby podle zákona o podnikání na kapitálovém trhu",{"$nulls":6},"Bod 3 písm. i)"]
[]
[]
[]
[]
[]
["Údaje o objemu obchodů uskutečněných v rámci poskytování investičních služeb ve vztahu k jednotlivým investičním nástrojům, pokud pobočka banky z jiného než členského státu je oprávněna poskytovat investiční služby podle zákona o podnikání na kapitálovém trhu",{"$nulls":6},"Bod 3 písm. i)"]
[]
[]
[]
[]
[]
["Údaje o objemu obchodů uskutečněných v rámci poskytování investičních služeb ve vztahu k jednotlivým investičním nástrojům, pokud pobočka banky z jiného než členského státu je oprávněna poskytovat investiční služby podle zákona o podnikání na kapitálovém trhu",{"$nulls":6},"Bod 3 písm. i)"]
[]
[]
[]
[]
[]
["Údaje o objemu obchodů uskutečněných v rámci poskytování investičních služeb ve vztahu k jednotlivým investičním nástrojům, pokud pobočka banky z jiného než členského státu je oprávněna poskytovat investiční služby podle zákona o podnikání na kapitálovém trhu",{"$nulls":6},"Bod 3 písm. i)"]
[]
[]
[]
[]
[]
["Údaje o objemu obchodů uskutečněných v rámci poskytování investičních služeb ve vztahu k jednotlivým investičním nástrojům, pokud pobočka banky z jiného než členského státu je oprávněna poskytovat investiční služby podle zákona o podnikání na kapitálovém trhu",{"$nulls":6},"Bod 3 písm. i)"]

{"sheet":"IV. Část 3a","index":26,"n_rows":15,"n_cols":7,"rows_kept":15,"hidden":true,"merged":[[0,0,0,1],[1,0,1,6],[2,0,2,6],[3,0,4,3],[3,6,4,6],[5,0,5,2],[6,0,6,5],[7,0,7,6],[8,0,8,6],[9,0,9,6],[10,0,10,6],[11,0,11,6],[12,0,12,6],[13,0,13,6],[14,0,14,6]]}
["IV. Část 3a"]
["Údaje podle článku 437 odst. 1 písm. a) nařízení s výjimkou úplného sesouhlasení položek, filtrů a odpočtů na rozvahu v rámci auditované účetní závěrky pobočky banky z jiného než členského státu"]
[]
["Údaje o plnění obezřetnostních pravidel pobočky banky z jiného než členského státu",{"$nulls":5},"Vyhláška č.163/2014 Sb., příloha 13"]
[]
["Informace platné k datu:",null,null,{"$f":"Obsah!C37","v":"(dd/mm/rrrr)"}]
["Údaje podle článku 437 odst. 1 písm. a) nařízení č. 575/2013/EU s výjimkou úplného sesouhlasení položek, filtrů a odpočtů na rozvahu v rámci auditované účetní závěrky pobočky banky z jiného než členského státu (znázorní se níže)",{"$nulls":5},"Bod 3 písm. a)"]
["1) Instituce použijí metodiku popsanou v této příloze za účelem poskytnutí informací o sesouhlasení mezi rozvahovými položkami použitými k výpočtu kapitálu a regulatorním kapitálem. Položky kapitálu v auditované účetní závěrce zahrnují veškeré položky, které jsou složkami regulatorního kapitálu nebo které jsou odečteny od tohoto kapitálu, včetně vlastního kapitálu, závazků, jako jsou dluhy, nebo jiných rozvahových položek, které ovlivňují regulatorní kapitál, jako jsou nehmotná aktiva, goodwill, odložené daňové pohledávky."]
["2) Jako výchozí bod použijí instituce příslušné rozvahové položky použité k výpočtu kapitálu v jejich zveřejněných účetních závěrkách. Účetní závěrka se považuje za auditovanou účetní závěrku, je-li sesouhlasení provedeno na základě účetní závěrky na konci roku."]
["3) Pokud instituce plní požadavky stanovené v části osmé nařízení č. 575/2013/EU na konsolidovaném nebo subkonsolidovaném základě a pokud se rozsah nebo metoda konsolidace použité v rozvaze v rámci účetní závěrky liší od rozsahu nebo metody konsolidace vyžadované podle části první hlavy II kapitoly 2 nařízení č. 575/2013/EU, zpřístupní instituce rovněž rozvahu podle právních předpisů, což je rozvaha vypracována podle pravidel obezřetnostní konsolidace podle části první hlavy II kapitoly 2 nařízení č. 575/2013/EU a vztahuje se pouze na položky kapitálu. Rozvaha podle právních předpisů je s ohledem na položky kapitálu přinejmenším stejně podrobná jako rozvaha v rámci účetní závěrky a její položky jsou uvedeny vedle sebe s jednoznačným přiřazením položek kapitálu v rozvaze v rámci účetní závěrky. Instituce poskytnou kvalitativní a kvantitativní informace o rozdílech v položkách kapitálu mezi oběma rozvahami, které jsou způsobeny rozsahem a metodou konsolidace."]
["4) Instituce za druhé rozšíří položky kapitálu v rozvaze podle právních předpisů tak, aby byly všechny složky vyžadované v přechodné šabloně pro zpřístupňování informací nebo v šabloně pro zpřístupňování informací o kapitálu uvedeny zvlášť. Instituce rozšíří položky rozvahy pouze na úroveň rozčlenění, která je nezbytná pro odvození položek vyžadovaných v přechodné šabloně pro zpřístupňování informací nebo v šabloně pro zpřístupňování informací o kapitálu."]
["5) Instituce provedou za třetí přiřazení mezi položkami vyplývajícími z rozšíření rozvahy podle právních předpisů, jak je popsáno v bodě 4, a položkami uvedenými v přechodné šabloně pro zpřístupňování informací nebo v šabloně pro zpřístupňování informací o kapitálu."]
["6) Pokud instituce plní požadavky stanovené v části osmé nařízení č. 575/2013/EU na konsolidovaném nebo subkonsolidovaném základě, rozsah a metoda konsolidace použité pro rozvahu v rámci účetní závěrky jsou však totožné s rozsahem a metodou konsolidace stanovenými podle části první hlavy II kapitoly 2 nařízení č. 575/2013/EU, a instituce jednoznačně uvedou, že mezi příslušnými rozsahy a metodami konsolidace neexistují rozdíly, použijí se pouze body 4 a 5 této přílohy na základě rozvahy v rámci účetní závěrky."]
["7) Pokud instituce plní požadavky stanovené v části osmé nařízení č. 575/2013/EU na individuálním základě, bod 3 této přílohy se nepoužije a místo toho se použijí body 4 a 5 této přílohy na základě rozvahy v rámci účetní závěrky."]
["8) Informace týkající se rozvahového sesouhlasení položek kapitálu vyplývající z použití metodiky popsané v této příloze mohou být poskytnuty v neauditované podobě."]

{"sheet":"IV. Část 3b","index":27,"n_rows":41,"n_cols":7,"rows_kept":41,"hidden":true,"merged":[[0,0,0,1],[2,0,2,3],[3,0,4,2],[3,6,4,6],[5,0,5,1],[6,0,6,5],[7,0,25,0],[7,1,8,1],[9,6,25,6],[26,0,30,0],[26,6,30,6],[31,0,33,0],[31,6,33,6],[34,0,40,0],[34,6,40,6]]}
["IV. Část 3b"]
["Údaje o plnění obezřetnostních pravidel pobočky banky z jiného než členského státu podle článku 438 písm. c) až f) nařízení č. 575/2013/EU"]
[]
["Údaje o plnění obezřetnostních pravidel pobočky banky z jiného než členského státu",{"$nulls":5},"Vyhláška č.163/2014 Sb., příloha 13"]
[]
["Informace platné k datu:",null,{"$f":"Obsah!C37","v":"(dd/mm/rrrr)"}]
["Údaje podle článku 438 písm. c) až f) nařízení č. 575/2013/EU",{"$nulls":5},"Bod 3 písm. b)"]
["V případě institucí, které počítají objem rizikově vážených expozic podle části třetí hlavy II kapitoly 2, \n8 % objemu rizikově vážených expozic pro každou kategorii expozic uvedenou v článku 112 nařízení č. 575/2013/EU",null,"K ultimu vykazovaného období","K ultimu 1. předcházejícího období","K ultimu 2. předcházejícího období","K ultimu 3. předcházejícího období"]
[null,null,"(qq/rrrr)","(qq/rrrr)","(qq/rrrr)","(qq/rrrr)"]
[null,"Expozice vůči ústředním vládám nebo centrálním bankám",{"$nulls":4},"čl. 438 písm. c) nařízení č. 575/2013/EU"]
[null,"Expozice vůči regionálním vládám nebo místním orgánům"]
[null,"Expozice vůči subjektům veřejného sektoru"]
[null,"Expozice vůči mezinárodním rozvojovým bankám"]
[null,"Expozice vůči mezinárodním organizacím"]
[null,"Expozice vůči institucím"]
[null,"Expozice vůči podnikům"]
[null,"Retailové expozice"]
[null,"Expozice zajištěné nemovitostmi"]
[null,"Expozice v selhání"]
[null,"Expozice spojené s obzvláště vysokým rizikem"]
[null,"Expozice v krytých dluhopisech"]
[null,"Položky představující sekuritizované pozice"]
[null,"Expozice vůči institucím a podnikům s krátkodobým úvěrovým hodnocením"]
[null,"Expozice ve formě podílových jednotek nebo akcií v subjektech kolektivního investování"]
[null,"Akciové expozice"]
[null,"Ostatní položky"]
[" Kapitálové požadavky vypočítané podle čl. 92 odst. 3 písm. b) a c) nařízení 2013/575/EU","K pozičnímu riziku",{"$nulls":4},"čl. 438 písm. e) nařízení č. 575/2013/EU"]
[null,"Pro velké expozice přesahující limity stanovené v článcích 395 až 401 nařízení č. 575/2013/EU, pokud je instituci povoleno tyto limity překročit"]
[null,"K měnovému rizyku"]
[null,"K vypořádacímu riziku"]
[null,"Ke komoditnímu riziku"]
[" Kapitálové požadavky vypočítané podle části třetí hlavy III kapitol 2, 3 a 4 nařízení č. 575/2013/EU a zpřístupňované odděleně","Kapitálový požadavek podle hlavy III kapitoly 2 nařízení č. 575/2013/EU",{"$nulls":4},"čl. 438 písm. f) nařízení č. 575/2013/EU"]
[null,"Kapitálový požadavek podle hlavy III kapitoly 3 Nařízení 2013/575/EU"]
[null,"Kapitálový požadavek podle hlavy III kapitoly 4 nařízení č. 575/2013/EU"]
["V případě institucí, které počítají objem rizikově vážených expozic podle části třetí hlavy II kapitoly 3, 8 % objemu rizikově vážených expozic pro každou kategorii expozic uvedenou v článku 147. V případě kategorie retailových expozic se tento požadavek použije na každou kategorii expozic, které odpovídají různé korelace podle čl. 154 odst. 1 až 4","Expozice vůči ústředním vládám nebo centrálním bankám",{"$nulls":4},"čl. 438 písm. d) nařízení č. 575/2013/EU"]
[null,"Expozice vůči institucím"]
[null,"Expozice vůči podnikům"]
[null,"Retailové expozice"]
[null,"Akciové expozice"]
[null,"Položky představující sekuritizované pozice"]
[null,"Jiná aktiva nemající povahu úvěrového závazku"]

{"sheet":"IV. Část 3c","index":28,"n_rows":14,"n_cols":10,"rows_kept":14,"hidden":true,"merged":[[2,0,2,9],[3,0,5,8],[3,9,5,9],[6,1,6,2],[7,0,9,0],[7,1,7,2],[7,3,7,4],[7,5,7,6],[7,7,7,8],[7,9,13,9],[8,1,8,2],[8,3,8,4],[8,5,8,6],[8,7,8,8]]}
["IV. Část 3c"]
["Údaje o plnění obezřetnostních pravidel pobočky banky z jiného než členského státu - reálné a jmenovité hodnoty derivátů "]
[]
["Údaje o plnění obezřetnostních pravidel pobočky banky z jiného než členského státu - reálné a jmenovité hodnoty derivátů ",{"$nulls":8},"Vyhláška č.163/2014 Sb., příloha 13"]
[]
[]
["Informace platné k datu:",{"$f":"Obsah!C37","v":"(dd/mm/rrrr)"}]
["Reálné a jmenovité hodnoty derivátů (v tis. Kč)","K ultimu vykazovaného období",null,"K ultimu 1. předcházejícího období",null,"K ultimu 2. předcházejícího období",null,"K ultimu 3. předcházejícího období",null,"Bod 3 písm. f)"]
[null,"(qq/rrrr)",null,"(qq/rrrr)",null,"(qq/rrrr)",null,"(qq/rrrr)"]
[null,"Jmenovitá hodnota","Reálná hodnota","Jmenovitá hodnota","Reálná hodnota","Jmenovitá hodnota","Reálná hodnota","Jmenovitá hodnota","Reálná hodnota"]
["Zajišťovací deriváty celkem"]
["Souhrnně za deriváty k obchodování nebo spekulace celkem"]
["Souhrnně za deriváty, u nichž povinná osoba uplatňuje zajišťovací účetnictví"]
["Souhrnně za deriváty ostatní"]

{"sheet":"IV. Část 3d","index":29,"n_rows":34,"n_cols":26,"rows_kept":34,"hidden":true,"merged":[[1,0,1,6],[2,0,2,6],[3,0,5,20],[3,25,5,25],[7,0,10,0],[7,1,7,6],[7,7,7,12],[7,13,7,18],[7,19,7,24],[7,25,27,25],[8,1,8,6],[8,7,8,12],[8,13,8,18],[8,19,8,24],[9,1,10,1],[9,2,10,2],[9,3,10,3],[9,4,10,4],[9,5,10,5],[9,6,10,6],[9,7,10,7],[9,8,10,8],[9,9,10,9],[9,10,10,10],[9,11,10,11],[9,12,10,12],[9,13,10,13],[9,14,10,14],[9,15,10,15],[9,16,10,16],[9,17,10,17],[9,18,10,18],[9,19,10,19],[9,20,10,20],[9,21,10,21],[9,22,10,22],[9,23,10,23],[9,24,10,24],[28,0,31,0],[28,1,28,6],[28,7,28,12],[28,13,28,18],[28,19,28,24],[28,25,33,25],[29,1,29,6],[29,7,29,12],[29,13,29,18],[29,19,29,24],[30,1,31,1],[30,2,31,2],[30,3,31,3],[30,4,31,4],[30,5,31,5],[30,6,31,6],[30,7,31,7],[30,8,31,8],[30,9,31,9],[30,10,31,10],[30,11,31,11],[30,12,31,12],[30,13,31,13],[30,14,31,14],[30,15,31,15],[30,16,31,16],[30,17,31,17],[30,18,31,18],[30,19,31,19],[30,20,31,20],[30,21,31,21],[30,22,31,22],[30,23,31,23],[30,24,31,24]]}
["IV. Část 3d"]
["Údaje o plnění obezřetnostních pravidel pobočky banky z jiného než členského státu - informace pobočky banky z jiného než členského státu o pohledávkách"]
[]
["Údaje o plnění obezřetnostních pravidel pobočky banky z jiného než členského státu - informace pobočky banky z jiného než členského státu o pohledávkách",{"$nulls":24},"Vyhláška č. 163/2014 Sb., \npříloha 13"]
[]
[]
["Informace platné k datu:",{"$f":"Obsah!C37","v":"(dd/mm/rrrr)"}]
["Pohledávky z finančních činností bez selhání a se selháním \n(v tis. Kč)","K ultimu vykazovaného období",{"$nulls":5},"K ultimu 1. předcházejícího období",{"$nulls":5},"K ultimu 2. předcházejícího období",{"$nulls":5},"K ultimu 3. předcházejícího období",{"$nulls":5},"Bod 3 \npísm. c)"]
[null,"(qq/rrrr)",{"$nulls":5},"(qq/rrrr)",{"$nulls":5},"(qq/rrrr)",{"$nulls":5},"(qq/rrrr)"]
[null,"Hodnota před znehodnocením","Účetní hodnota (netto)","Opravné položky k jednotlivým pohledávkám","Opravné položky k port. pohled. jednotlivě bez znehodnocení","Opravné položky k portfoliu jednotlivě nevýznam. pohledávek","Kumulovaná ztrata z oceneni realnou hodnotou","Hodnota před znehodnocením","Účetní hodnota (netto)","Opravné položky k jednotlivým pohledávkám","Opravné položky k port. pohled. jednotlivě bez znehodnocení","Opravné položky k portfoliu jednotlivě nevýznam. pohledávek","Kumulovaná ztrata z oceneni realnou hodnotou","Hodnota před znehodnocením","Účetní hodnota (netto)","Opravné položky k jednotlivým pohledávkám","Opravné položky k port. pohled. jednotlivě bez znehodnocení","Opravné položky k portfoliu jednotlivě nevýznam. pohledávek","Kumulovaná ztrata z oceneni realnou hodnotou","Hodnota před znehodnocením","Účetní hodnota (netto)","Opravné položky k jednotlivým pohledávkám","Opravné položky k port. pohled. jednotlivě bez znehodnocení","Opravné položky k portfoliu jednotlivě nevýznam. pohledávek","Kumulovaná ztrata z oceneni realnou hodnotou"]
[]
["Pohledávky z finančních činností celkem"]
["   Pohledávky za úvěrovými institucemi"]
["      Pohledávky za úvěrovými institucemi bez selhání"]
["         Standardní pohledávky za úvěrovými institucemi"]
["         Sledované pohledávky za úvěrovými institucemi"]
["      Pohledávky za úvěrovými institucemi se selháním"]
["         Nestandardní pohledávky za úvěrovými institucemi"]
["         Pochybné pohledávky za úvěrovými institucemi"]
["         Ztrátové pohledávky za úvěrovými institucemi"]
["   Pohledávky za jinými osobami než úvěr.institucemi"]
["      Pohledávky za j. osobami než úvěr.institucemi bez selhání"]
["         Standardní pohledávky za jinými osobami než úvěr.institucemi"]
["         Sledované pohledávky za jin. osobami než úvěr.institucemi"]
["      Pohledávky za jin. osobami než úvěr.institucemi se selháním"]
["         Nestandardní pohledávky za jin. osobami než úvěr.institucemi"]
["         Pochybné pohledávky za jinými osobami než úvěr.institucemi"]
["         Ztrátové pohledávky za jinými osobami než úvěr.institucemi"]
["Pohledávky z finančních činností bez znehodnocení a se znehodnocením (v tis. Kč)","K ultimu vykazovaného období",{"$nulls":5},"K ultimu 1. předcházejícího období",{"$nulls":5},"K ultimu 2. předcházejícího období",{"$nulls":5},"K ultimu 3. předcházejícího období",{"$nulls":5},"Bod 3 \npísm. d)"]
[null,"(qq/rrrr)",{"$nulls":5},"(qq/rrrr)",{"$nulls":5},"(qq/rrrr)",{"$nulls":5},"(qq/rrrr)"]
[null,"Hodnota před znehodnocením","Účetní hodnota (netto)","Opravné položky k jednotlivým pohledávkám","Opravné položky k port. pohled. jednotlivě bez znehodnocení","Opravné položky k portfoliu jednotlivě nevýznam. pohledávek","Kumulovaná ztrata z oceneni realnou hodnotou","Hodnota před znehodnocením","Účetní hodnota (netto)","Opravné položky k jednotlivým pohledávkám","Opravné položky k port. pohled. jednotlivě bez znehodnocení","Opravné položky k portfoliu jednotlivě nevýznam. pohledávek","Kumulovaná ztrata z oceneni realnou hodnotou","Hodnota před znehodnocením","Účetní hodnota (netto)","Opravné položky k jednotlivým pohledávkám","Opravné položky k port. pohled. jednotlivě bez znehodnocení","Opravné položky k portfoliu jednotlivě nevýznam. pohledávek","Kumulovaná ztrata z oceneni realnou hodnotou","Hodnota před znehodnocením","Účetní hodnota (netto)","Opravné položky k jednotlivým pohledávkám","Opravné položky k port. pohled. jednotlivě bez znehodnocení","Opravné položky k portfoliu jednotlivě nevýznam. pohledávek","Kumulovaná ztrata z oceneni realnou hodnotou"]
[]
["      Pohledávky za úvěrovými institucemi \nbez znehodnocení"]
["      Pohledávky za úvěrovými institucemi \nse znehodnocením "]

{"sheet":"V. Část 1","index":30,"n_rows":34,"n_cols":5,"rows_kept":34,"merged":[[0,2,1,4],[2,0,2,4],[3,0,4,3],[3,4,4,4],[5,0,5,2],[6,0,7,3],[6,4,7,4],[26,0,26,4],[27,0,27,4],[28,0,28,4],[29,0,29,4],[30,0,30,4],[31,0,31,4],[32,0,32,4],[33,0,33,4]]}
["V. Část 1",null,"Prováděcí nařízení Komise (EU) č. 1423/2013 ze dne 20. prosince 2013, kterým se stanoví prováděcí technické normy, pokud jde o požadavky na zpřístupňování informací o kapitálu uložené institucím podle nařízení Evropského parlamentu a Rady (EU) č. 575/2013"]
["Údaje o kapitálu a kapitálových požadavcích"]
[]
["Údaje o kapitálu a kapitálových požadavcích",{"$nulls":3},"Vyhláška č.163/2014 Sb., příloha 14"]
[]
["Informace platné k datu:",null,null,"2016-12-31"]
["Údaje o kapitálu a kapitálových požadavcích podle článku 437 odst. 1 písm. a) nařízení č. 575/2013/EU.",{"$nulls":3},"Bod 1 písm. a)"]
[]
["v mil. Kč",null,"REGULATORNÍ KAPITÁL","VLASTNÍ KAPITÁL "]
["Splacený základní kapitál zapsaný v obchodním rejstříku",null,650,650]
["Nerozdělený zisk z předchozích období",null,0,0]
["Zisk běžného roku",null,0,530]
["Oceňovací rozdíly z majetku a závazků",null,209,209]
["Rezervní fondy",null,{"v":3388,"d":"3,388"},{"v":3396,"d":"3,396"}]
["(-) Úpravy hodnot podle požadavků pro obezřetné oceňování (AVA)",null,-5]
["(-) Nehmotný majetek jiný než goodwill",null,-127]
["(-) Odložené daňové závazky související s jinými nehmotnými aktivy ",null,7]
["Celkem kapitál splňující požadavky pro zařazení do kmenového kapitálu tier 1",null,{"v":4122,"d":"4,122"}]
[]
["Celkem kapitál splňující požadavky pro zařazení do vedlejšího kapitálu tier 1",null,0]
[]
["Souhrnná výše tier 2 kapitálu",null,0]
[]
["Celkem vlastní kapitál",null,null,{"v":4785,"d":"4,785"}]
["Kapitál relevantní pro výpočet limitů velkých expozic, limitů kvalifikovaných účastí a kapitálového poměru",null,{"v":4122,"d":"4,122"}]
[]
["1) Instituce použijí metodiku popsanou v této příloze za účelem poskytnutí informací o sesouhlasení mezi rozvahovými položkami použitými k výpočtu kapitálu a regulatorním kapitálem. Položky kapitálu v auditované účetní závěrce zahrnují veškeré položky, které jsou složkami regulatorního kapitálu nebo které jsou odečteny od tohoto kapitálu, včetně vlastního kapitálu, závazků, jako jsou dluhy, nebo jiných rozvahových položek, které ovlivňují regulatorní kapitál, jako jsou nehmotná aktiva, goodwill, odložené daňové pohledávky."]
["2) Jako výchozí bod použijí instituce příslušné rozvahové položky použité k výpočtu kapitálu v jejich zveřejněných účetních závěrkách. Účetní závěrka se považuje za auditovanou účetní závěrku, je-li sesouhlasení provedeno na základě účetní závěrky na konci roku."]
["3) Pokud instituce plní požadavky stanovené v části osmé nařízení č. 575/2013/EU na konsolidovaném nebo subkonsolidovaném základě a pokud se rozsah nebo metoda konsolidace použité v rozvaze v rámci účetní závěrky liší od rozsahu nebo metody konsolidace vyžadované podle části první hlavy II kapitoly 2 nařízení č. 575/2013/EU, zpřístupní instituce rovněž rozvahu podle právních předpisů, což je rozvaha vypracována podle pravidel obezřetnostní konsolidace podle části první hlavy II kapitoly 2 nařízení (EU) č. 575/2013 a vztahuje se pouze na položky kapitálu. Rozvaha podle právních předpisů je s ohledem na položky kapitálu přinejmenším stejně podrobná jako rozvaha v rámci účetní závěrky a její položky jsou uvedeny vedle sebe s jednoznačným přiřazením položek kapitálu v rozvaze v rámci účetní závěrky. Instituce poskytnou kvalitativní a kvantitativní informace o rozdílech v položkách kapitálu mezi oběma rozvahami, které jsou způsobeny rozsahem a metodou konsolidace."]
["4) Instituce za druhé rozšíří položky kapitálu v rozvaze podle právních předpisů tak, aby byly všechny složky vyžadované v přechodné šabloně pro zpřístupňování informací nebo v šabloně pro zpřístupňování informací o kapitálu uvedeny zvlášť. Instituce rozšíří položky rozvahy pouze na úroveň rozčlenění, která je nezbytná pro odvození položek vyžadovaných v přechodné šabloně pro zpřístupňování informací nebo v šabloně pro zpřístupňování informací o kapitálu."]
["5) Instituce provedou za třetí přiřazení mezi položkami vyplývajícími z rozšíření rozvahy podle právních předpisů, jak je popsáno v bodě 4, a položkami uvedenými v přechodné šabloně pro zpřístupňování informací nebo v šabloně pro zpřístupňování informací o kapitálu."]
["6) Pokud instituce plní požadavky stanovené v části osmé nařízení č. 575/2013/EU na konsolidovaném nebo subkonsolidovaném základě, rozsah a metoda konsolidace použité pro rozvahu v rámci účetní závěrky jsou však totožné s rozsahem a metodou konsolidace stanovenými podle části první hlavy II kapitoly 2 nařízení č. 575/2013/EU, a instituce jednoznačně uvedou, že mezi příslušnými rozsahy a metodami konsolidace neexistují rozdíly, použijí se pouze body 4 a 5 této přílohy na základě rozvahy v rámci účetní závěrky."]
["7) Pokud instituce plní požadavky stanovené v části osmé nařízení č. 575/2013/EU na individuálním základě, bod 3 této přílohy se nepoužije a místo toho se použijí body 4 a 5 této přílohy na základě rozvahy v rámci účetní závěrky."]
["8) Informace týkající se rozvahového sesouhlasení položek kapitálu vyplývající z použití metodiky popsané v této příloze mohou být poskytnuty v neauditované podobě."]

{"sheet":"V. Část 2","index":31,"n_rows":45,"n_cols":4,"rows_kept":45,"merged":[[2,0,2,3],[3,0,4,2],[3,3,4,3],[6,0,7,2],[6,3,7,3],[8,0,24,0],[8,3,24,3],[25,0,29,0],[25,3,29,3],[30,0,32,0],[30,3,32,3],[33,0,39,0],[33,3,44,3],[40,0,44,0]]}
["V. Část 2"]
["Údaje o kapitálu a kapitálových požadavcích"]
[]
["Údaje o kapitálu a kapitálových požadavcích",null,null,"Vyhláška č.163/2014 Sb., příloha 14"]
[]
["Informace platné k datu:",null,{"$f":"'V. Část 1'!D6","v":"2016-12-31"}]
["Uveřejňují se údaje o kapitálu a kapitálových požadavcích podle článku 438 písm. c) až f) nařízení č. 575/2013/EU",null,null,"Bod 1 písm. b)"]
[]
["V případě institucí, které počítají objem rizikově vážených expozic podle části třetí hlavy II kapitoly 2, \n8 % objemu rizikově vážených expozic pro každou kategorii expozic uvedenou v článku 112 nařízení 2013/575/EU","Expozice vůči ústředním vládám nebo centrálním bankám",{"v":242.765,"d":"243"},"čl. 438 písm. c) nařízení 575/2013 EU"]
[null,"Expozice vůči regionálním vládám nebo místním orgánům",{"v":924.765,"d":"925"}]
[null,"Expozice vůči subjektům veřejného sektoru",0]
[null,"Expozice vůči mezinárodním rozvojovým bankám",0]
[null,"Expozice vůči mezinárodním organizacím",0]
[null,"Expozice vůči institucím",{"v":188496.582,"d":"188,497"}]
[null,"Expozice vůči podnikům",{"v":70992.684,"d":"70,993"}]
[null,"Retailové expozice",{"v":1097856.352,"d":"1,097,856"}]
[null,"Expozice zajištěné nemovitostmi",{"v":350924.381,"d":"350,924"}]
[null,"Expozice v selhání",{"v":45086.551,"d":"45,087"}]
[null,"Expozice spojené s obzvláště vysokým rizikem",0]
[null,"Expozice v krytých dluhopisech",{"v":41971.699,"d":"41,972"}]
[null,"Položky představující sekuritizované pozice",0]
[null,"Expozice vůči institucím a podnikům s krátkodobým úvěrovým hodnocením",0]
[null,"Expozice ve formě podílových jednotek nebo akcií v subjektech kolektivního investování",0]
[null,"Akciové expozice",{"v":51382.01,"d":"51,382"}]
[null,"Ostatní položky",{"v":29794.444,"d":"29,794"}]
[" kapitálové požadavky vypočítané podle čl. 92 odst. 3 písm. b) a c) nařízení 2013/575/EU","K pozičnímu riziku",null,"čl. 438 písm. e) nařízení 575/2013 EU"]
[null,"Pro velké expozice přesahující limity stanovené v článcích 395 až 401, pokud je instituci povoleno tyto limity překročit"]
[null,"K měnovému rizyku"]
[null,"K vypořádacímu riziku"]
[null,"Ke komoditnímu riziku"]
[" Kapitálové požadavky vypočítané podle části třetí hlavy III kapitol 2, 3 a 4 Nařízení 2013/575/EU a zpřístupňované odděleně","Kapitálový požadavek podle hlavy III kapitoly 2 Nařízení 2013/575/EU",{"v":167722.85,"d":"167,723"},"čl. 438 písm. f) nařízení 575/2013 EU"]
[null,"Kapitálový požadavek podle hlavy III kapitoly 3 Nařízení 2013/575/EU"]
[null,"Kapitálový požadavek podle hlavy III kapitoly 4 Nařízení 2013/575/EU"]
["V případě institucí, které počítají objem rizikově vážených expozic podle části třetí hlavy II kapitoly 3, \n8 % objemu rizikově vážených expozic pro každou kategorii expozic uvedenou v článku 147. V případě kategorie retailových expozic se tento požadavek použije na každou kategorii expozic, které odpovídají různé korelace podle čl. 154 odst. 1 až 4 nařízení 2013/575/EU","Expozice vůči ústředním vládám nebo centrálním bankám",null,"čl. 438 písm. d) nařízení 575/2013 EU"]
[null,"Expozice vůči institucím"]
[null,"Expozice vůči podnikům"]
[null,"Retailové expozice"]
[null,"Akciové expozice"]
[null,"Položky představující sekuritizované pozice"]
[null,"Jiná aktiva nemající povahu úvěrového závazku"]
["V případě kategorie akciových expozic se tento požadavek použije na","akciové expozice obchodované na regulovaných trzích"]
[null,"akciové expozice neobchodované na regulovaných trzích v dostatečně diverzifikovaných portfoliích a jiné expozice"]
[null,"expozice, které v oblasti kapitálových požadavků podléhají přechodným pravidlům dohledu"]
[null,"expozice, které v oblasti kapitálových požadavků podléhají ustanovením o zachování právních účinků"]
[null,"každý z přístupů uvedených v článku 155 nařízení 2013/575/EU"]

{"sheet":"V. Část 3","index":32,"n_rows":12,"n_cols":4,"rows_kept":12,"merged":[[2,0,2,3],[3,0,4,2],[3,3,4,3],[6,0,6,1],[7,0,9,0],[7,3,9,3],[10,0,11,0],[10,3,11,3]]}
["V. Část 3"]
["Kapitálové poměry"]
[]
["Kapitálové poměry",null,null,"Vyhláška č.163/2014 Sb., příloha 14"]
[]
["Informace platné k datu:",null,{"$f":"'V. Část 2'!C6","v":"2016-12-31"}]
["v %",null,"K ultimu vykazovaného období"]
["Kapitálové poměry povinné osoby","Kapitálový poměr pro kmenový kapitál tier 1",16.12,"Bod 2 písm. a)"]
[null,"Kapitálový poměr pro kapitál tier 1",16.12]
[null,"Kapitálový poměr pro celkový kapitál",16.12]
["Kapitálové poměry pobočky banky z jiného než členského státu","Kapitálový poměr pro kapitál tier 1",null,"Bod 2 písm. b)"]
[null,"Kapitálový poměr pro celkový kapitál"]

{"sheet":"V. Část 4","index":33,"n_rows":23,"n_cols":5,"rows_kept":23,"merged":[[2,0,2,4],[3,0,4,3],[3,4,4,4],[6,0,6,2],[7,0,11,0],[7,1,7,2],[7,4,11,4],[8,1,8,2],[9,1,9,2],[10,1,10,2],[11,1,11,2],[12,0,17,0],[12,1,12,2],[12,4,17,4],[13,1,13,2],[14,1,14,2],[15,1,15,2],[16,1,16,2],[17,1,17,2],[18,0,22,0],[18,1,18,2],[18,4,22,4],[19,1,19,2],[20,1,20,2],[21,1,21,2],[22,1,22,2]]}
["V. Část 4"]
["Poměrové ukazatele"]
[]
["Poměrové ukazatele ",{"$nulls":3},"Vyhláška č.163/2014 Sb., příloha 14"]
[]
["Informace platné k datu:",null,null,{"$f":"'V. Část 3'!C6","v":"2016-12-31"}]
["v %",null,null,"K ultimu vykazovaného období"]
["Poměrové ukazatele povinné osoby, která je bankou nebo spořitelním a úvěrním družstvem ","Rentabilita průměrných aktiv (ROAA)",null,{"v":0.007605494062742938,"d":"0.76%"},"Bod 3 písm. a)"]
[null,"Rentabilita průměrného kapitálu tier 1 (ROAE)",null,{"v":0.12745270548022483,"d":"12.75%"}]
[null,"Aktiva na jednoho pracovníka (v mil. Kč)",null,250]
[null,"Správní náklady na jednoho pracovníka (v tis. Kč)",null,{"v":-1630,"d":"-1,630"}]
[null,"Zisk nebo ztráta po zdanění na jednoho pracovníka (v tis. Kč)",null,{"v":2000,"d":"2,000"}]
["Poměrové ukazatele povinné osoby, která je obchodníkem s cennými papíry ","Zadluženost I (celkový dluh bez majetku klientů/aktiva bez majetku klientů)",null,null,"Bod 3 písm. b)"]
[null,"Zadluženost II (celkový dluh bez majetku klientů/vlastní kapitál)"]
[null,"Rentabilita průměrných aktiv (ROAA, aktiva bez majetku klientů)"]
[null,"Rentabilita průměrného kapitálu tier 1(ROAE)"]
[null,"Rentabilita tržeb (zisk po zdanění/výnosy z investičních služeb)"]
[null,"Správní náklady na jednoho pracovníka"]
["Poměrové ukazatele pobočky banky z jiného než členského státu","Rentabilita průměrných aktiv (ROAA)",null,null,"Bod 3 písm. c)"]
[null,"Rentabilita průměrného kapitálu tier 1 (ROAE)"]
[null,"Aktiva na jednoho pracovníka"]
[null,"Správní náklady na jednoho pracovníka"]
[null,"Zisk nebo ztráta po zdanění na jednoho pracovníka "]

{"sheet":"Číselník 1","index":34,"n_rows":1566,"n_cols":4,"rows_kept":1566,"merged":[[0,0,0,2],[1,0,1,2],[2,0,2,3],[3,0,4,3],[1332,0,1333,0],[1332,1,1333,1],[1332,2,1333,2]]}
["Číselník 1"]
["CZ-NACE (OKEČ) číselník"]
[]
["CZ-NACE (OKEČ) číselník"]
[]
[{"$nulls":3},"SEKCE A - ZEMĚDĚLSTVÍ, LESNICTVÍ A RYBÁŘSTVÍ"]
[]
["01",null,null,"Rostlinná a živočišná výroba, myslivost a související činnosti"]
[]
[null,"01.1",null,"Pěstování plodin jiných než trvalých"]
[null,null,"01.11","Pěstování obilovin (kromě rýže), luštěnin a olejnatých semen"]
[null,null,"01.12","Pěstování rýže"]
[null,null,"01.13","Pěstování zeleniny a melounů, kořenů a hlíz"]
[null,null,"01.14","Pěstování cukrové třtiny"]
[null,null,"01.15","Pěstování tabáku"]
[null,null,"01.16","Pěstování přadných rostlin "]
[null,null,"01.19","Pěstování ostatních plodin jiných než trvalých"]
[]
[null,"01.2",null,"Pěstování trvalých plodin "]
[null,null,"01.21","Pěstování vinných hroznů"]
[null,null,"01.22","Pěstování tropického a subtropického ovoce"]
[null,null,"01.23","Pěstování citrusových plodů "]
[null,null,"01.24","Pěstování jádrového a peckového ovoce"]
[null,null,"01.25","Pěstování ostatního stromového a keřového ovoce a ořechů "]
[null,null,"01.26","Pěstování olejnatých plodů "]
[null,null,"01.27","Pěstování rostlin pro výrobu nápojů "]
[null,null,"01.28","Pěstování koření, aromatických, léčivých a farmaceutických rostlin "]
[null,null,"01.29","Pěstování ostatních trvalých plodin "]
[]
[null,"01.3",null,"Množení rostlin "]
[null,null,"01.30","Množení rostlin "]
[]
[null,"01.4",null,"Živočišná výroba"]
[null,null,"01.41","Chov mléčného skotu "]
[null,null,"01.42","Chov jiného skotu"]
[null,null,"01.43","Chov koní a jiných koňovitých"]
[null,null,"01.44","Chov velbloudů a velbloudovitých"]
[null,null,"01.45","Chov ovcí a koz"]
[null,null,"01.46","Chov prasat"]
[null,null,"01.47","Chov drůbeže"]
[null,null,"01.49","Chov ostatních zvířat"]
[null,null,"01.49.1","Chov drobných hospodářských zvířat"]
[null,null,"01.49.2","Chov kožešinových zvířat"]
[null,null,"01.49.3","Chov zvířat pro zájmový chov"]
[null,null,"01.49.9","Chov ostatních zvířat j. n."]
[]
[null,"01.5",null,"Smíšené hospodářství"]
[null,null,"01.50","Smíšené hospodářství"]
[]
[null,"01.6",null,"Podpůrné činnosti pro zemědělství a posklizňové činnosti "]
[null,null,"01.61","Podpůrné činnosti pro rostlinnou výrobu"]
[null,null,"01.62","Podpůrné činnosti pro živočišnou výrobu"]
[null,null,"01.63","Posklizňové činnosti"]
[null,null,"01.64","Zpracování osiva pro účely množení"]
[]
[null,"01.7",null,"Lov a odchyt divokých zvířat a související činnosti "]
[null,null,"01.70","Lov a odchyt divokých zvířat a související činnosti "]
[]
["02",null,null,"Lesnictví a těžba dřeva"]
[]
[null,"02.1",null,"Lesní hospodářství a jiné činnosti v oblasti lesnictví"]
[null,null,"02.10","Lesní hospodářství a jiné činnosti v oblasti lesnictví"]
[]
[null,"02.2",null,"Těžba dřeva"]
[null,null,"02.20","Těžba dřeva"]
[]
[null,"02.3",null,"Sběr a získávání volně rostoucích plodů a materiálů, kromě dřeva"]
[null,null,"02.30","Sběr a získávání volně rostoucích plodů a materiálů, kromě dřeva"]
[]
[null,"02.4",null,"Podpůrné činnosti pro lesnictví"]
[null,null,"02.40","Podpůrné činnosti pro lesnictví"]
[]
["03",null,null,"Rybolov a akvakultura "]
[]
[null,"03.1",null,"Rybolov"]
[null,null,"03.11","Mořský rybolov"]
[null,null,"03.12","Sladkovodní rybolov"]
[]
[null,"03.2",null,"Akvakultura"]
[null,null,"03.21","Mořská akvakultura"]
[null,null,"03.22","Sladkovodní akvakultura"]
[]
[]
[{"$nulls":3},"SEKCE B - TĚŽBA A DOBÝVÁNÍ"]
[]
["05",null,null,"Těžba a úprava černého a hnědého uhlí "]
[]
[null,"05.1",null,"Těžba a úprava černého uhlí"]
[null,null,"05.10","Těžba a úprava černého uhlí"]
[null,null,"05.10.1","Těžba černého uhlí"]
[null,null,"05.10.2","Úprava černého uhlí"]
[]
[null,"05.2",null,"Těžba a úprava hnědého uhlí"]
[null,null,"05.20","Těžba a úprava hnědého uhlí"]
[null,null,"05.20.1","Těžba hnědého uhlí, kromě lignitu"]
[null,null,"05.20.2  ","Úprava hnědého uhlí, kromě lignitu"]
[null,null,"05.20.3  ","Těžba lignitu"]
[null,null,"05.20.4  ","Úprava lignitu"]
[]
["06",null,null,"Těžba ropy a zemního plynu"]
[]
[null,"06.1",null,"Těžba ropy"]
[null,null,"06.10","Těžba ropy"]
[]
[null,"06.2",null,"Těžba zemního plynu"]
[null,null,"06.20","Těžba zemního plynu"]
[]
["07",null,null,"Těžba a úprava rud"]
[]
[null,"07.1",null,"Těžba a úprava železných rud"]
[null,null,"07.10","Těžba a úprava železných rud"]
[null,null,"07.10.1  ","Těžba železných rud"]
[null,null,"07.10.2  ","Úprava železných rud"]
[]
[null,"07.2",null,"Těžba a úprava neželezných rud "]
[null,null,"07.21","Těžba a úprava uranových a thoriových rud"]
[null,null,"07.21.1   ","Těžba uranových a thoriových rud"]
[null,null,"07.21.2  ","Úprava uranových a thoriových rud"]
[null,null,"07.29","Těžba a úprava ostatních neželezných rud "]
[null,null,"07.29.1   ","Těžba ostatních neželezných rud"]
[null,null,"07.29.2   ","Úprava ostatních neželezných rud"]
[]
["08",null,null,"Ostatní těžba a dobývání"]
[]
[null,"08.1",null,"Dobývání kamene, písků a jílů "]
[null,null,"08.11","Dobývání kamene pro výtvarné nebo stavební účely, vápence, sádrovce, křídy a břidlice"]
[null,null,"08.12","Provoz pískoven a štěrkopískoven; těžba jílů a kaolinu"]
[]
[null,"08.9",null,"Těžba a dobývání j. n."]
[null,null,"08.91","Těžba chemických minerálů a minerálů pro výrobu hnojiv"]
[null,null,"08.92","Těžba rašeliny "]
[null,null,"08.93","Těžba soli"]
[null,null,"08.99","Ostatní těžba a dobývání j. n."]
[]
["09",null,null,"Podpůrné činnosti při těžbě"]
[]
[null,"09.1",null,"Podpůrné činnosti při těžbě ropy a zemního plynu"]
[null,null,"09.10","Podpůrné činnosti při těžbě ropy a zemního plynu"]
[]
[null,"09.9",null,"Podpůrné činnosti při ostatní těžbě a dobývání"]
[null,null,"09.90","Podpůrné činnosti při ostatní těžbě a dobývání"]
[]
[]
[{"$nulls":3},"SEKCE C - ZPRACOVATELSKÝ PRŮMYSL"]
[]
[10,null,null,"Výroba potravinářských výrobků"]
[]
[null,"10.1",null,"Zpracování a konzervování masa a výroba masných výrobků"]
[null,null,"10.11","Zpracování a konzervování masa, kromě drůbežího"]
[null,null,"10.12","Zpracování a konzervování drůbežího masa"]
[null,null,"10.13","Výroba masných výrobků a výrobků z drůbežího masa"]
[]
[null,"10.2",null,"Zpracování a konzervování ryb, korýšů a měkkýšů"]
[null,null,"10.20","Zpracování a konzervování ryb, korýšů a měkkýšů"]
[]
[null,"10.3",null,"Zpracování a konzervování ovoce a zeleniny "]
[null,null,"10.31","Zpracování a konzervování brambor"]
[null,null,"10.32","Výroba ovocných a zeleninových šťáv"]
[null,null,"10.39","Ostatní zpracování a konzervování ovoce a zeleniny "]
[]
[null,"10.4",null,"Výroba rostlinných a živočišných olejů a tuků"]
[null,null,"10.41","Výroba olejů a tuků"]
[null,null,"10.42","Výroba margarínu a podobných jedlých tuků"]
[]
[null,"10.5",null,"Výroba mléčných výrobků "]
[null,null,"10.51","Zpracování mléka, výroba mléčných výrobků a sýrů"]
[null,null,"10.52","Výroba zmrzliny"]
[]
[null,"10.6",null,"Výroba mlýnských a škrobárenských výrobků"]
[null,null,"10.61","Výroba mlýnských výrobků"]
[null,null,"10.62","Výroba škrobárenských výrobků"]
[]
[null,"10.7",null,"Výroba pekařských, cukrářských a jiných moučných výrobků"]
[null,null,"10.71","Výroba pekařských a cukrářských výrobků, kromě trvanlivých"]
[null,null,"10.72","Výroba sucharů a sušenek; výroba trvanlivých cukrářských výrobků "]
[null,null,"10.73","Výroba makaronů, nudlí, kuskusu a podobných moučných výrobků"]
[]
[null,"10.8",null,"Výroba ostatních potravinářských výrobků"]
[null,null,"10.81","Výroba cukru"]
[null,null,"10.82","Výroba kakaa, čokolády a cukrovinek"]
[null,null,"10.83","Zpracování čaje a kávy"]
[null,null,"10.84","Výroba koření a aromatických výtažků"]
[null,null,"10.85","Výroba hotových pokrmů"]
[null,null,"10.86","Výroba homogenizovaných potravinářských přípravků a dietních potravin"]
[null,null,"10.89","Výroba ostatních potravinářských výrobků j. n."]
[]
[null,"10.9",null,"Výroba průmyslových krmiv"]
[null,null,"10.91","Výroba průmyslových krmiv pro hospodářská zvířata"]
[null,null,"10.92","Výroba průmyslových krmiv pro zvířata v zájmovém chovu"]
[]
[11,null,null,"Výroba nápojů"]
[]
[null,"11.0",null,"Výroba nápojů"]
[null,null,"11.01","Destilace, rektifikace a míchání lihovin"]
[null,null,"11.02","Výroba vína z vinných hroznů "]
[null,null,"11.03","Výroba jablečného vína a jiných ovocných vín"]
[null,null,"11.04","Výroba ostatních nedestilovaných kvašených nápojů"]
[null,null,"11.05","Výroba piva "]
[null,null,"11.06","Výroba sladu"]
[null,null,"11.07","Výroba nealkoholických nápojů; stáčení minerálních a ostatních vod do lahví"]
[]
[12,null,null,"Výroba tabákových výrobků"]
[]
[null,"12.0",null,"Výroba tabákových výrobků"]
[null,null,"12.00","Výroba tabákových výrobků"]
[]
[13,null,null,"Výroba textilií "]
[]
[null,"13.1",null,"Úprava a spřádání textilních vláken a příze"]
[null,null,"13.10","Úprava a spřádání textilních vláken a příze"]
[]
[null,"13.2",null,"Tkaní textilií "]
[null,null,"13.20","Tkaní textilií "]
[]
[null,"13.3",null,"Konečná úprava textilií"]
[null,null,"13.30","Konečná úprava textilií"]
[]
[null,"13.9",null,"Výroba ostatních textilií"]
[null,null,"13.91","Výroba pletených a háčkovaných materiálů"]
[null,null,"13.92","Výroba konfekčních textilních výrobků, kromě oděvů"]
[null,null,"13.93","Výroba koberců a kobercových předložek"]
[null,null,"13.94","Výroba lan, provazů a síťovaných výrobků"]
[null,null,"13.95","Výroba netkaných textilií a výrobků z nich, kromě oděvů"]
[null,null,"13.96","Výroba ostatních technických a průmyslových textilií"]
[null,null,"13.99","Výroba ostatních textilií j. n."]
[]
[14,null,null,"Výroba oděvů"]
[]
[null,"14.1",null,"Výroba oděvů, kromě kožešinových výrobků "]
[null,null,"14.11","Výroba kožených oděvů "]
[null,null,"14.12","Výroba pracovních oděvů"]
[null,null,"14.13","Výroba ostatních svrchních oděvů"]
[null,null,"14.14","Výroba osobního prádla"]
[null,null,"14.19","Výroba ostatních oděvů a oděvních doplňků "]
[]
[null,"14.2",null,"Výroba kožešinových výrobků"]
[null,null,"14.20","Výroba kožešinových výrobků"]
[]
[null,"14.3",null,"Výroba pletených a háčkovaných oděvů"]
[null,null,"14.31","Výroba pletených a háčkovaných punčochových výrobků"]
[null,null,"14.39","Výroba ostatních pletených a háčkovaných oděvů"]
[]
[15,null,null,"Výroba usní a souvisejících výrobků "]
[]
[null,"15.1",null,"Činění a úprava usní (vyčiněných kůží); zpracování a barvení kožešin; výroba brašnářských, sedlářských a podobných výrobků"]
[null,null,"15.11","Činění a úprava usní (vyčiněných kůží); zpracování a barvení kožešin "]
[null,null,"15.12","Výroba brašnářských, sedlářských a podobných výrobků"]
[]
[null,"15.2",null,"Výroba obuvi "]
[null,null,"15.20","Výroba obuvi "]
[null,null,"15.20.1","Výroba obuvi s usňovým svrškem"]
[null,null,"15.20.9","Výroba obuvi z ostatních materiálů"]
[]
[16,null,null,"Zpracování dřeva, výroba dřevěných, korkových, proutěných a slaměných výrobků, kromě nábytku"]
[]
[null,"16.1",null,"Výroba pilařská a impregnace dřeva"]
[null,null,"16.10","Výroba pilařská a impregnace dřeva"]
[]
[null,"16.2",null,"Výroba dřevěných, korkových, proutěných a slaměných výrobků, kromě nábytku"]
[null,null,"16.21","Výroba dýh a desek na bázi dřeva "]
[null,null,"16.22","Výroba sestavených parketových podlah"]
[null,null,"16.23","Výroba ostatních výrobků stavebního truhlářství a tesařství"]
[null,null,"16.24","Výroba dřevěných obalů"]
[null,null,"16.29","Výroba ostatních dřevěných, korkových, proutěných a slaměných výrobků, kromě nábytku"]
[null,null," "]
[17,null,null,"Výroba papíru a výrobků z papíru"]
[]
[null,"17.1",null,"Výroba buničiny, papíru a lepenky"]
[null,null,"17.11","Výroba buničiny"]
[null,null,"17.11.1","Výroba chemických buničin"]
[null,null,"17.11.2","Výroba mechanických vláknin"]
[null,null,"17.11.3","Výroba ostatních papírenských vláknin"]
[null,null,"17.12","Výroba papíru a lepenky"]
[]
[null,"17.2",null,"Výroba výrobků z papíru a lepenky"]
[null,null,"17.21","Výroba vlnitého papíru a lepenky, papírových a lepenkových obalů"]
[null,null,"17.22","Výroba domácích potřeb, hygienických a toaletních výrobků z papíru"]
[null,null,"17.23","Výroba kancelářských potřeb z papíru"]
[null,null,"17.24","Výroba tapet"]
[null,null,"17.29","Výroba ostatních výrobků z papíru a lepenky"]
[]
[18,null,null,"Tisk a rozmnožování nahraných nosičů"]
[]
[null,"18.1",null,"Tisk a činnosti související s tiskem"]
[null,null,"18.11","Tisk novin"]
[null,null,"18.12","Tisk ostatní, kromě novin"]
[null,null,"18.13","Příprava tisku a digitálních dat"]
[null,null,"18.14","Vázání a související činnosti"]
[]
[null,"18.2",null,"Rozmnožování nahraných nosičů "]
[null,null,"18.20","Rozmnožování nahraných nosičů "]
[]
[19,null,null,"Výroba koksu a rafinovaných ropných produktů "]
[]
[null,"19.1",null,"Výroba koksárenských produktů"]
[null,null,"19.10","Výroba koksárenských produktů"]
[]
[null,"19.2",null,"Výroba rafinovaných ropných produktů "]
[null,null,"19.20","Výroba rafinovaných ropných produktů "]
[]
[20,null,null,"Výroba chemických látek a chemických přípravků"]
[]
[null,"20.1",null,"Výroba základních chemických látek, hnojiv a dusíkatých sloučenin, plastů a syntetického kaučuku v primárních formách"]
[null,null,"20.11","Výroba technických plynů"]
[null,null,"20.12","Výroba barviv a pigmentů"]
[null,null,"20.13","Výroba jiných základních anorganických chemických látek"]
[null,null,"20.14","Výroba jiných základních organických chemických látek"]
[null,null,"20.14.1","Výroba bioetanolu (biolihu) pro pohon motorů a pro výrobu směsí a komponent paliv pro pohon motorů"]
[null,null,"20.14.9","Výroba ostatních základních organických chemických látek"]
[null,null,"20.15","Výroba hnojiv a dusíkatých sloučenin"]
[null,null,"20.16","Výroba plastů v primárních formách"]
[null,null,"20.17","Výroba syntetického kaučuku v primárních formách"]
[]
[null,"20.2",null,"Výroba pesticidů a jiných agrochemických přípravků"]
[null,null,"20.20","Výroba pesticidů a jiných agrochemických přípravků"]
[]
[null,"20.3",null,"Výroba nátěrových barev, laků a jiných nátěrových materiálů, tiskařských barev a tmelů"]
[null,null,"20.30","Výroba nátěrových barev, laků a jiných nátěrových materiálů, tiskařských barev a tmelů"]
[]
[null,"20.4",null,"Výroba mýdel a detergentů, čisticích a lešticích prostředků, parfémů a toaletních přípravků"]
[null,null,"20.41","Výroba mýdel a detergentů, čisticích a lešticích prostředků"]
[null,null,"20.42","Výroba parfémů a toaletních přípravků"]
[]
[null,"20.5",null,"Výroba ostatních chemických výrobků"]
[null,null,"20.51","Výroba výbušnin"]
[null,null,"20.52","Výroba klihů "]
[null,null,"20.53","Výroba vonných silic "]
[null,null,"20.59","Výroba ostatních chemických výrobků j. n."]
[null,null,"20.59.1","Výroba metylesterů a etylesterů mastných kyselin pro pohon motorů a pro výrobu směsí paliv pro pohon motorů"]
[null,null,"20.59.9","Výroba jiných chemických výrobků j. n."]
[]
[null,"20.6",null,"Výroba chemických vláken"]
[null,null,"20.60","Výroba chemických vláken"]
[]
[21,null,null,"Výroba základních farmaceutických výrobků a farmaceutických přípravků"]
[]
[null,"21.1",null,"Výroba základních farmaceutických výrobků"]
[null,null,"21.10","Výroba základních farmaceutických výrobků"]
[]
[null,"21.2",null,"Výroba farmaceutických přípravků "]
[null,null,"21.20","Výroba farmaceutických přípravků "]
[]
[22,null,null,"Výroba pryžových a plastových výrobků"]
[]
[null,"22.1",null,"Výroba pryžových výrobků"]
[null,null,"22.11","Výroba pryžových plášťů a duší; protektorování pneumatik"]
[null,null,"22.19","Výroba ostatních pryžových výrobků"]
[]
[null,"22.2",null,"Výroba plastových výrobků"]
[null,null,"22.21","Výroba plastových desek, fólií, hadic, trubek a profilů"]
[null,null,"22.22","Výroba plastových obalů"]
[null,null,"22.23","Výroba plastových výrobků pro stavebnictví"]
[null,null,"22.29","Výroba ostatních plastových výrobků"]
[]
[23,null,null,"Výroba ostatních nekovových minerálních výrobků"]
[]
[null,"23.1",null,"Výroba skla a skleněných výrobků"]
[null,null,"23.11","Výroba plochého skla"]
[null,null,"23.12","Tvarování a zpracování plochého skla"]
[null,null,"23.13","Výroba dutého skla"]
[null,null,"23.14","Výroba skleněných vláken"]
[null,null,"23.19","Výroba a zpracování ostatního skla vč. technického"]
[]
[null,"23.2",null,"Výroba žáruvzdorných výrobků"]
[null,null,"23.20","Výroba žáruvzdorných výrobků"]
[]
[null,"23.3",null,"Výroba stavebních výrobků z jílovitých materiálů "]
[null,null,"23.31","Výroba keramických obkládaček a dlaždic"]
[null,null,"23.32","Výroba pálených zdicích materiálů, tašek, dlaždic a podobných výrobků"]
[]
[null,"23.4",null,"Výroba ostatních porcelánových a keramických výrobků "]
[null,null,"23.41","Výroba keramických a porcelánových výrobků převážně pro domácnost a ozdobných předmětů"]
[null,null,"23.42","Výroba keramických sanitárních výrobků"]
[null,null,"23.43","Výroba keramických izolátorů a izolačního příslušenství"]
[null,null,"23.44","Výroba ostatních technických keramických výrobků"]
[null,null,"23.49","Výroba ostatních keramických výrobků"]
[]
[null,"23.5",null,"Výroba cementu, vápna a sádry"]
[null,null,"23.51","Výroba cementu"]
[null,null,"23.52","Výroba vápna a sádry"]
[]
[null,"23.6",null,"Výroba betonových, cementových a sádrových výrobků"]
[null,null,"23.61","Výroba betonových výrobků pro stavební účely"]
[null,null,"23.62","Výroba sádrových výrobků pro stavební účely"]
[null,null,"23.63","Výroba betonu připraveného k lití"]
[null,null,"23.64","Výroba malt "]
[null,null,"23.65","Výroba vláknitých cementů"]
[null,null,"23.69","Výroba ostatních betonových, cementových a sádrových výrobků "]
[]
[null,"23.7",null,"Řezání, tvarování a konečná úprava kamenů "]
[null,null,"23.70","Řezání, tvarování a konečná úprava kamenů "]
[]
[null,"23.9",null,"Výroba brusiv a ostatních nekovových minerálních výrobků j. n."]
[null,null,"23.91","Výroba brusiv"]
[null,null,"23.99","Výroba ostatních nekovových minerálních výrobků j. n."]
[]
[24,null,null,"Výroba základních kovů, hutní zpracování kovů; slévárenství"]
[]
[null,"24.1",null,"Výroba surového železa, oceli a feroslitin, plochých výrobků (kromě pásky za studena), tváření výrobků za tepla  "]
[null,null,"24.10","Výroba surového železa, oceli a feroslitin, plochých výrobků (kromě pásky za studena), tváření výrobků za tepla  "]
[null,null,"24.10.1","Výroba surového železa, oceli a feroslitin"]
[null,null,"24.10.2","Výroba plochých výrobků (kromě pásky za studena)"]
[null,null,"24.10.3","Tváření výrobků za tepla  "]
[]
[null,"24.2",null,"Výroba ocelových trub, trubek, dutých profilů a souvisejících potrubních tvarovek"]
[null,null,"24.20","Výroba ocelových trub, trubek, dutých profilů a souvisejících potrubních tvarovek"]
[]
[null,"24.3",null,"Výroba ostatních výrobků získaných jednostupňovým zpracováním oceli"]
[null,null,"24.31","Tažení tyčí za studena"]
[null,null,"24.32","Válcování ocelových úzkých pásů za studena"]
[null,null,"24.33","Tváření ocelových profilů za studena "]
[null,null,"24.34","Tažení ocelového drátu za studena"]
[]
[null,"24.4",null,"Výroba a hutní zpracování drahých a neželezných kovů"]
[null,null,"24.41","Výroba a hutní zpracování drahých kovů"]
[null,null,"24.42","Výroba a hutní zpracování hliníku"]
[null,null,"24.43","Výroba a hutní zpracování olova, zinku a cínu"]
[null,null,"24.44","Výroba a hutní zpracování mědi"]
[null,null,"24.45","Výroba a hutní zpracování ostatních neželezných kovů"]
[null,null,"24.46","Zpracování jaderného paliva"]
[]
[null,"24.5",null,"Slévárenství"]
[null,null,"24.51","Výroba odlitků z litiny"]
[null,null,"24.51.1","Výroba odlitků z litiny s lupínkovým grafitem"]
[null,null,"24.51.2","Výroba odlitků z litiny s kuličkovým grafitem"]
[null,null,"24.51.9","Výroba ostatních odlitků z litiny"]
[null,null,"24.52","Výroba odlitků z oceli"]
[null,null,"24.52.1","Výroba odlitků z uhlíkatých ocelí"]
[null,null,"24.52.2","Výroba odlitků z legovaných ocelí"]
[null,null,"24.53","Výroba odlitků z lehkých neželezných kovů"]
[null,null,"24.54","Výroba odlitků z ostatních neželezných kovů"]
[]
[25,null,null,"Výroba kovových konstrukcí a kovodělných výrobků, kromě strojů a zařízení"]
[]
[null,"25.1",null,"Výroba konstrukčních kovových výrobků"]
[null,null,"25.11","Výroba kovových konstrukcí a jejich dílů"]
[null,null,"25.12","Výroba kovových dveří a oken"]
[]
[null,"25.2",null,"Výroba radiátorů a kotlů k ústřednímu topení, kovových nádrží a zásobníků "]
[null,null,"25.21","Výroba radiátorů a kotlů k ústřednímu topení"]
[null,null,"25.29","Výroba kovových nádrží a zásobníků"]
[]
[null,"25.3",null,"Výroba parních kotlů, kromě kotlů pro ústřední topení"]
[null,null,"25.30","Výroba parních kotlů, kromě kotlů pro ústřední topení"]
[]
[null,"25.4",null,"Výroba zbraní a střeliva"]
[null,null,"25.40","Výroba zbraní a střeliva"]
[]
[null,"25.5",null,"Kování, lisování, ražení, válcování a protlačování kovů; prášková metalurgie"]
[null,null,"25.50","Kování, lisování, ražení, válcování a protlačování kovů; prášková metalurgie"]
[]
[null,"25.6",null,"Povrchová úprava a zušlechťování kovů; obrábění"]
[null,null,"25.61","Povrchová úprava a zušlechťování kovů"]
[null,null,"25.62","Obrábění"]
[]
[null,"25.7",null,"Výroba nožířských výrobků, nástrojů a železářských výrobků "]
[null,null,"25.71","Výroba nožířských výrobků"]
[null,null,"25.72","Výroba zámků a kování"]
[null,null,"25.73","Výroba nástrojů a nářadí"]
[]
[null,"25.9",null,"Výroba ostatních kovodělných výrobků"]
[null,null,"25.91","Výroba ocelových sudů a podobných nádob"]
[null,null,"25.92","Výroba drobných kovových obalů"]
[null,null,"25.93","Výroba drátěných výrobků, řetězů a pružin"]
[null,null,"25.94","Výroba spojovacích materiálů a spojovacích výrobků se závity"]
[null,null,"25.99","Výroba ostatních kovodělných výrobků j. n."]
[null,null," "]
[26,null,null,"Výroba počítačů, elektronických a optických přístrojů a zařízení"]
[]
[null,"26.1",null,"Výroba elektronických součástek a desek"]
[null,null,"26.11","Výroba elektronických součástek "]
[null,null,"26.12","Výroba osazených elektronických desek"]
[]
[null,"26.2",null,"Výroba počítačů a periferních zařízení"]
[null,null,"26.20","Výroba počítačů a periferních zařízení"]
[]
[null,"26.3",null,"Výroba komunikačních zařízení"]
[null,null,"26.30","Výroba komunikačních zařízení"]
[]
[null,"26.4",null,"Výroba spotřební elektroniky "]
[null,null,"26.40","Výroba spotřební elektroniky "]
[]
[null,"26.5",null,"Výroba měřicích, zkušebních a navigačních přístrojů; výroba časoměrných přístrojů"]
[null,null,"26.51","Výroba měřicích, zkušebních a navigačních přístrojů "]
[null,null,"26.52","Výroba časoměrných přístrojů"]
[]
[null,"26.6",null,"Výroba ozařovacích, elektroléčebných a elektroterapeutických přístrojů"]
[null,null,"26.60","Výroba ozařovacích, elektroléčebných a elektroterapeutických přístrojů"]
[]
[null,"26.7",null,"Výroba optických a fotografických přístrojů a zařízení"]
[null,null,"26.70","Výroba optických a fotografických přístrojů a zařízení"]
[]
[null,"26.8",null,"Výroba magnetických a optických médií"]
[null,null,"26.80","Výroba magnetických a optických médií"]
[]
[27,null,null,"Výroba elektrických zařízení"]
[]
[null,"27.1",null,"Výroba elektrických motorů, generátorů, transformátorů a elektrických rozvodných a kontrolních zařízení"]
[null,null,"27.11","Výroba elektrických motorů, generátorů a transformátorů"]
[null,null,"27.12","Výroba elektrických rozvodných a kontrolních zařízení"]
[]
[null,"27.2",null,"Výroba baterií a akumulátorů "]
[null,null,"27.20","Výroba baterií a akumulátorů "]
[]
[null,"27.3",null,"Výroba optických a elektrických kabelů, elektrických vodičů a elektroinstalačních zařízení "]
[null,null,"27.31","Výroba optických kabelů "]
[null,null,"27.32","Výroba elektrických vodičů a kabelů j. n."]
[null,null,"27.33","Výroba elektroinstalačních zařízení"]
[]
[null,"27.4",null,"Výroba elektrických osvětlovacích zařízení "]
[null,null,"27.40","Výroba elektrických osvětlovacích zařízení "]
[]
[null,"27.5",null,"Výroba spotřebičů převážně pro domácnost"]
[null,null,"27.51","Výroba elektrických spotřebičů převážně pro domácnost"]
[null,null,"27.52","Výroba neelektrických spotřebičů převážně pro domácnost"]
[]
[null,"27.9",null,"Výroba ostatních elektrických zařízení"]
[null,null,"27.90","Výroba ostatních elektrických zařízení"]
[]
[28,null,null,"Výroba strojů a zařízení j. n."]
[]
[null,"28.1",null,"Výroba strojů a zařízení pro všeobecné účely"]
[null,null,"28.11","Výroba motorů a turbín, kromě motorů pro letadla, automobily a motocykly"]
[null,null,"28.12","Výroba hydraulických a pneumatických zařízení "]
[null,null,"28.13","Výroba ostatních čerpadel a kompresorů"]
[null,null,"28.14","Výroba ostatních potrubních armatur"]
[null,null,"28.15","Výroba ložisek, ozubených kol, převodů a hnacích prvků"]
[]
[null,"28.2",null,"Výroba ostatních strojů a zařízení pro všeobecné účely"]
[null,null,"28.21","Výroba pecí a hořáků pro topeniště"]
[null,null,"28.22","Výroba zdvihacích a manipulačních zařízení"]
[null,null,"28.23","Výroba kancelářských strojů a zařízení, kromě počítačů a periferních zařízení"]
[null,null,"28.24","Výroba ručních mechanizovaných nástrojů"]
[null,null,"28.25","Výroba průmyslových chladicích a klimatizačních zařízení"]
[null,null,"28.29","Výroba ostatních strojů a zařízení pro všeobecné účely j. n."]
[]
[null,"28.3",null,"Výroba zemědělských a lesnických strojů"]
[null,null,"28.30","Výroba zemědělských a lesnických strojů"]
[]
[null,"28.4",null,"Výroba kovoobráběcích a ostatních obráběcích strojů "]
[null,null,"28.41","Výroba kovoobráběcích strojů "]
[null,null,"28.49","Výroba ostatních obráběcích strojů"]
[]
[null,"28.9",null,"Výroba ostatních strojů pro speciální účely"]
[null,null,"28.91","Výroba strojů pro metalurgii"]
[null,null,"28.92","Výroba strojů pro těžbu, dobývání a stavebnictví"]
[null,null,"28.93","Výroba strojů na výrobu potravin, nápojů a zpracování tabáku"]
[null,null,"28.94","Výroba strojů na výrobu textilu, oděvních výrobků a výrobků z usní"]
[null,null,"28.95","Výroba strojů a přístrojů na výrobu papíru a lepenky"]
[null,null,"28.96","Výroba strojů na výrobu plastů a pryže"]
[null,null,"28.99","Výroba ostatních strojů pro speciální účely j. n."]
[]
[29,null,null,"Výroba motorových vozidel (kromě motocyklů), přívěsů a návěsů"]
[]
[null,"29.1",null,"Výroba motorových vozidel a jejich motorů"]
[null,null,"29.10","Výroba motorových vozidel a jejich motorů"]
[]
[null,"29.2",null,"Výroba karoserií motorových vozidel; výroba přívěsů a návěsů"]
[null,null,"29.20","Výroba karoserií motorových vozidel; výroba přívěsů a návěsů"]
[]
[null,"29.3",null,"Výroba dílů a příslušenství pro motorová vozidla a jejich motory"]
[null,null,"29.31","Výroba elektrického a elektronického zařízení pro motorová vozidla"]
[null,null,"29.32","Výroba ostatních dílů a příslušenství pro motorová vozidla"]
[]
[30,null,null,"Výroba ostatních dopravních prostředků a zařízení"]
[]
[null,"30.1",null,"Stavba lodí a člunů"]
[null,null,"30.11","Stavba lodí a plavidel"]
[null,null,"30.12","Stavba rekreačních a sportovních člunů"]
[]
[null,"30.2",null,"Výroba železničních lokomotiv a vozového parku"]
[null,null,"30.20","Výroba železničních lokomotiv a vozového parku"]
[]
[null,"30.3",null,"Výroba letadel a jejich motorů, kosmických lodí a souvisejících zařízení"]
[null,null,"30.30","Výroba letadel a jejich motorů, kosmických lodí a souvisejících zařízení"]
[]
[null,"30.4",null,"Výroba vojenských bojových vozidel"]
[null,null,"30.40","Výroba vojenských bojových vozidel"]
[]
[null,"30.9",null,"Výroba dopravních prostředků a zařízení j. n."]
[null,null,"30.91","Výroba motocyklů"]
[null,null,"30.92","Výroba jízdních kol a vozíků pro invalidy"]
[null,null,"30.99","Výroba ostatních dopravních prostředků a zařízení j. n."]
[]
[31,null,null,"Výroba nábytku"]
[]
[null,"31.0",null,"Výroba nábytku"]
[null,null,"31.01","Výroba kancelářského nábytku a zařízení obchodů"]
[null,null,"31.02","Výroba kuchyňského nábytku"]
[null,null,"31.03","Výroba matrací"]
[null,null,"31.09","Výroba ostatního nábytku"]
[]
[32,null,null,"Ostatní zpracovatelský průmysl"]
[]
[null,"32.1",null,"Výroba klenotů, bižuterie a příbuzných výrobků"]
[null,null,"32.11","Ražení mincí"]
[null,null,"32.12","Výroba klenotů a příbuzných výrobků"]
[null,null,"32.13","Výroba bižuterie a příbuzných výrobků"]
[]
[null,"32.2",null,"Výroba hudebních nástrojů"]
[null,null,"32.20","Výroba hudebních nástrojů"]
[]
[null,"32.3",null,"Výroba sportovních potřeb"]
[null,null,"32.30","Výroba sportovních potřeb"]
[]
[null,"32.4",null,"Výroba her a hraček"]
[null,null,"32.40","Výroba her a hraček"]
[]
[null,"32.5",null,"Výroba lékařských a dentálních nástrojů a potřeb"]
[null,null,"32.50","Výroba lékařských a dentálních nástrojů a potřeb"]
[]
[null,"32.9",null,"Zpracovatelský průmysl j. n."]
[null,null,"32.91","Výroba košťat a kartáčnických výrobků"]
[null,null,"32.99","Ostatní zpracovatelský průmysl j. n. "]
[]
[33,null,null,"Opravy a instalace strojů a zařízení"]
[]
[null,"33.1",null,"Opravy kovodělných výrobků, strojů a zařízení"]
[null,null,"33.11","Opravy kovodělných výrobků"]
[null,null,"33.12","Opravy strojů"]
[null,null,"33.13","Opravy elektronických a optických přístrojů a zařízení"]
[null,null,"33.14","Opravy elektrických zařízení"]
[null,null,"33.15","Opravy a údržba lodí a člunů"]
[null,null,"33.16","Opravy a údržba letadel a kosmických lodí"]
[null,null,"33.17","Opravy a údržba ostatních dopravních prostředků a zařízení j. n. "]
[null,null,"33.17.1","Opravy a údržba kolejových vozidel"]
[null,null,"33.17.9","Opravy a údržba ostatních dopravních prostředků a zařízení j. n. kromě kolejových vozidel"]
[null,null,"33.19","Opravy ostatních zařízení"]
[]
[null,"33.2",null,"Instalace průmyslových strojů a zařízení"]
[null,null,"33.20","Instalace průmyslových strojů a zařízení"]
[]
[]
[{"$nulls":3},"SEKCE D – VÝROBA A ROZVOD ELEKTŘINY, PLYNU, TEPLA A KLIMATIZOVANÉHO VZDUCHU"]
[]
[35,null,null,"Výroba a rozvod elektřiny, plynu, tepla a klimatizovaného vzduchu"]
[]
[null," 35.1",null,"Výroba, přenos a rozvod elektřiny"]
[null,null,"35.11","Výroba elektřiny "]
[null,null,"35.12","Přenos elektřiny "]
[null,null,"35.13","Rozvod elektřiny "]
[null,null,"35.14","Obchod s elektřinou "]
[]
[null,"35.2",null,"Výroba plynu; rozvod plynných paliv prostřednictvím sítí"]
[null,null,"35.21","Výroba plynu"]
[null,null,"35.22","Rozvod plynných paliv prostřednictvím sítí"]
[null,null,"35.23","Obchod s plynem prostřednictvím sítí"]
[]
[null,"35.3",null,"Výroba a rozvod tepla a klimatizovaného vzduchu, výroba ledu "]
[null,null,"35.30","Výroba a rozvod tepla a klimatizovaného vzduchu, výroba ledu"]
[null,null,"35.30.1","Výroba tepla"]
[null,null,"35.30.2","Rozvod tepla"]
[null,null,"35.30.3","Výroba klimatizovaného vzduchu"]
[null,null,"35.30.4","Rozvod klimatizovaného vzduchu"]
[null,null,"35.30.5","Výroba chladicí vody"]
[null,null,"35.30.6","Rozvod chladicí vody"]
[null,null,"35.30.7","Výroba ledu"]
[]
[null,null," "]
[{"$nulls":3},"SEKCE E – ZÁSOBOVÁNÍ VODOU; ČINNOSTI SOUVISEJÍCÍ S ODPADNÍMI VODAMI, ODPADY A SANACEMI"]
[]
[36,null,null,"Shromažďování, úprava a rozvod vody "]
[]
[null,"36.0",null,"Shromažďování, úprava a rozvod vody "]
[null,null,"36.00","Shromažďování, úprava a rozvod vody "]
[]
[37,null,null,"Činnosti související s odpadními vodami"]
[]
[null,"37.0",null,"Činnosti související s odpadními vodami"]
[null,null,"37.00","Činnosti související s odpadními vodami"]
[]
[38,null,null,"Shromažďování, sběr a odstraňování odpadů, úprava odpadů k dalšímu využití"]
[]
[null,"38.1",null,"Shromažďování a sběr odpadů"]
[null,null,"38.11","Shromažďování a sběr odpadů, kromě nebezpečných"]
[null,null,"38.12","Shromažďování a sběr nebezpečných odpadů"]
[]
[null,"38.2",null,"Odstraňování odpadů"]
[null,null,"38.21","Odstraňování odpadů, kromě nebezpečných"]
[null,null,"38.22","Odstraňování nebezpečných odpadů"]
[]
[null,"38.3",null,"Úprava odpadů k dalšímu využití"]
[null,null,"38.31","Demontáž vraků a vyřazených strojů a zařízení pro účely recyklace"]
[null,null,"38.32","Úprava odpadů k dalšímu využití, kromě demontáže vraků, strojů a zařízení"]
[]
[39,null,null,"Sanace a jiné činnosti související s odpady"]
[]
[null,"39.0",null,"Sanace a jiné činnosti související s odpady"]
[null,null,"39.00","Sanace a jiné činnosti související s odpady"]
[]
[]
[{"$nulls":3},"SEKCE F - STAVEBNICTVÍ"]
[]
[41,null,null,"Výstavba budov"]
[]
[null,"41.1",null,"Developerská činnost "]
[null,null,"41.10","Developerská činnost"]
[]
[null,"41.2",null,"Výstavba bytových a nebytových budov"]
[null,null,"41.20","Výstavba bytových a nebytových budov"]
[null,null,"41.20.1","Výstavba bytových budov"]
[null,null,"41.20.2","Výstavba nebytových budov"]
[]
[42,null,null,"Inženýrské stavitelství"]
[]
[null,"42.1",null,"Výstavba silnic a železnic"]
[null,null,"42.11","Výstavba silnic a dálnic"]
[null,null,"42.12","Výstavba železnic a podzemních drah"]
[null,null,"42.13","Výstavba mostů a tunelů"]
[]
[null,"42.2",null,"Výstavba inženýrských sítí"]
[null,null,"42.21","Výstavba inženýrských sítí pro kapaliny a plyny"]
[null,null,"42.21.1","Výstavba inženýrských sítí pro kapaliny"]
[null,null,"42.21.2","Výstavba inženýrských sítí pro plyny"]
[null,null,"42.22","Výstavba inženýrských sítí pro elektřinu a telekomunikace"]
[]
[null,"42.9",null,"Výstavba ostatních staveb"]
[null,null,"42.91","Výstavba vodních děl"]
[null,null,"42.99","Výstavba ostatních staveb j. n."]
[]
[43,null,null,"Specializované stavební činnosti "]
[]
[null,"43.1",null,"Demolice a příprava staveniště"]
[null,null,"43.11","Demolice"]
[null,null,"43.12","Příprava staveniště"]
[null,null,"43.13","Průzkumné vrtné práce"]
[]
[null,"43.2",null,"Elektroinstalační, instalatérské a ostatní stavebně instalační práce"]
[null,null,"43.21","Elektrické instalace"]
[null,null,"43.22","Instalace vody, odpadu, plynu, topení a klimatizace"]
[null,null,"43.29","Ostatní stavební instalace"]
[]
[null,"43.3",null,"Kompletační a dokončovací práce"]
[null,null,"43.31","Omítkářské práce"]
[null,null,"43.32","Truhlářské práce"]
[null,null,"43.33","Obkládání stěn a pokládání podlahových krytin"]
[null,null,"43.34","Sklenářské, malířské a natěračské práce"]
[null,null,"43.34.1","Sklenářské práce"]
[null,null,"43.34.2","Malířské a natěračské práce"]
[null,null,"43.39","Ostatní kompletační a dokončovací práce"]
[]
[null,"43.9",null,"Ostatní specializované stavební činnosti "]
[null,null,"43.91","Pokrývačské práce"]
[null,null,"43.99","Ostatní specializované stavební činnosti j. n."]
[null,null,"43.99.1","Montáž a demontáž lešení a bednění"]
[null,null,"43.99.9","Jiné specializované stavební činnosti j. n."]
[]
[]
[{"$nulls":3},"SEKCE G - VELKOOBCHOD A MALOOBCHOD; OPRAVY A ÚDRŽBA MOTOROVÝCH VOZIDEL "]
[]
[45,null,null,"Velkoobchod, maloobchod a opravy motorových vozidel "]
[]
[null,"45.1",null,"Obchod s motorovými vozidly, kromě motocyklů"]
[null,null,"45.11","Obchod s automobily a jinými lehkými motorovými vozidly"]
[null,null,"45.19","Obchod s ostatními motorovými vozidly, kromě motocyklů"]
[]
[null,"45.2",null,"Opravy a údržba motorových vozidel, kromě motocyklů"]
[null,null,"45.20","Opravy a údržba motorových vozidel, kromě motocyklů"]
[]
[null,"45.3",null,"Obchod s díly a příslušenstvím pro motorová vozidla, kromě motocyklů"]
[null,null,"45.31","Velkoobchod s díly a příslušenstvím pro motorová vozidla, kromě motocyklů"]
[null,null,"45.32","Maloobchod s díly a příslušenstvím pro motorová vozidla, kromě motocyklů"]
[]
[null,"45.4",null,"Obchod, opravy a údržba motocyklů, jejich dílů a příslušenství"]
[null,null,"45.40","Obchod, opravy a údržba motocyklů, jejich dílů a příslušenství"]
[null,null," "]
[46,null,null,"Velkoobchod, kromě motorových vozidel "]
[]
[null,"46.1",null,"Zprostředkování velkoobchodu a velkoobchod v zastoupení "]
[null,null,"46.11","Zprostředkování velkoobchodu a velkoobchod v zastoupení se základními zemědělskými produkty, živými zvířaty, textilními surovinami a polotovary "]
[null,null,"46.12","Zprostředkování velkoobchodu a velkoobchod v zastoupení s palivy, rudami, kovy a průmyslovými chemikáliemi "]
[null,null,"46.13","Zprostředkování velkoobchodu a velkoobchod v zastoupení se dřevem a stavebními materiály"]
[null,null,"46.14","Zprostředkování velkoobchodu a velkoobchod v zastoupení se stroji, průmyslovým zařízením, loděmi a letadly"]
[null,null,"46.15","Zprostředkování velkoobchodu a velkoobchod v zastoupení s nábytkem, železářským zbožím a potřebami převážně pro domácnost"]
[null,null,"46.16","Zprostředkování velkoobchodu a velkoobchod v zastoupení s textilem, oděvy, kožešinami, obuví a koženými výrobky"]
[null,null,"46.17","Zprostředkování velkoobchodu a velkoobchod v zastoupení s potravinami, nápoji, tabákem a tabákovými výrobky"]
[null,null,"46.18","Zprostředkování specializovaného velkoobchodu a specializovaný velkoobchod v zastoupení s ostatními výrobky"]
[null,null,"46.18.1","Zprostředkování velkoobchodu a velkoobchod v zastoupení s papírenskými výrobky"]
[null,null,"46.18.9","Zprostředkování specializovaného velkoobchodu a velkoobchod v zastoupení s ostatními výrobky j. n."]
[null,null,"46.19","Zprostředkování nespecializovaného velkoobchodu a nespecializovaný velkoobchod v zastoupení"]
[]
[null,"46.2",null,"Velkoobchod se základními zemědělskými produkty a živými zvířaty"]
[null,null,"46.21","Velkoobchod s obilím, surovým tabákem, osivy a krmivy"]
[null,null,"46.22","Velkoobchod s květinami a jinými rostlinami"]
[null,null,"46.23","Velkoobchod s živými zvířaty"]
[null,null,"46.24","Velkoobchod se surovými kůžemi, kožešinami a usněmi"]
[]
[null,"46.3",null,"Velkoobchod s potravinami, nápoji a tabákovými výrobky"]
[null,null,"46.31","Velkoobchod s ovocem a zeleninou "]
[null,null,"46.32","Velkoobchod s masem a masnými výrobky"]
[null,null,"46.33","Velkoobchod s mléčnými výrobky, vejci, jedlými oleji a tuky"]
[null,null,"46.34","Velkoobchod s nápoji"]
[null,null,"46.35","Velkoobchod s tabákovými výrobky"]
[null,null,"46.36","Velkoobchod s cukrem, čokoládou a cukrovinkami"]
[null,null,"46.37","Velkoobchod s kávou, čajem, kakaem a kořením"]
[null,null,"46.38","Specializovaný velkoobchod s jinými potravinami, včetně ryb, korýšů a měkkýšů"]
[null,null,"46.39","Nespecializovaný velkoobchod s potravinami, nápoji a tabákovými výrobky"]
[]
[null,"46.4",null,"Velkoobchod s výrobky převážně pro domácnost"]
[null,null,"46.41","Velkoobchod s textilem"]
[null,null,"46.42","Velkoobchod s oděvy a obuví"]
[null,null,"46.42.1","Velkoobchod s oděvy"]
[null,null,"46.42.2","Velkoobchod s obuví"]
[null,null,"46.43","Velkoobchod s elektrospotřebiči a elektronikou "]
[null,null,"46.44","Velkoobchod s porcelánovými, keramickými a skleněnými výrobky a čisticími prostředky"]
[null,null,"46.44.1","Velkoobchod s porcelánovými, keramickými a skleněnými výrobky"]
[null,null,"46.44.2","Velkoobchod s pracími a čisticími prostředky"]
[null,null,"46.45","Velkoobchod s kosmetickými výrobky"]
[null,null,"46.46","Velkoobchod s farmaceutickými výrobky"]
[null,null,"46.47","Velkoobchod s nábytkem, koberci a svítidly"]
[null,null,"46.48","Velkoobchod s hodinami, hodinkami a klenoty"]
[null,null,"46.49","Velkoobchod s ostatními výrobky převážně pro domácnost"]
[]
[null,"46.5",null,"Velkoobchod s počítačovým a komunikačním zařízením"]
[null,null,"46.51","Velkoobchod s počítači, počítačovým periferním zařízením a softwarem"]
[null,null,"46.52","Velkoobchod s elektronickým a telekomunikačním zařízením a jeho díly"]
[]
[null,"46.6",null,"Velkoobchod s ostatními stroji, strojním zařízením a příslušenstvím"]
[null,null,"46.61","Velkoobchod se zemědělskými stroji, strojním zařízením a příslušenstvím"]
[null,null,"46.62","Velkoobchod s obráběcími stroji"]
[null,null,"46.63","Velkoobchod s těžebními a stavebními stroji a zařízením"]
[null,null,"46.64","Velkoobchod se strojním zařízením pro textilní průmysl, šicími a pletacími stroji"]
[null,null,"46.65","Velkoobchod s kancelářským nábytkem"]
[null,null,"46.66","Velkoobchod s ostatními kancelářskými stroji a zařízením"]
[null,null,"46.69","Velkoobchod s ostatními stroji a zařízením"]
[]
[null,"46.7",null,"Ostatní specializovaný velkoobchod"]
[null,null,"46.71","Velkoobchod s pevnými, kapalnými a plynnými palivy a příbuznými výrobky"]
[null,null,"46.71.1","Velkoobchod s pevnými palivy a příbuznými výrobky"]
[null,null,"46.71.2","Velkoobchod s kapalnými palivy a příbuznými výrobky"]
[null,null,"46.71.3","Velkoobchod s plynnými palivy a příbuznými výrobky"]
[null,null,"46.72","Velkoobchod s rudami, kovy a hutními výrobky"]
[null,null,"46.73","Velkoobchod se dřevem, stavebními materiály a sanitárním vybavením"]
[null,null,"46.74","Velkoobchod s železářským zbožím, instalatérskými a topenářskými potřebami"]
[null,null,"46.75","Velkoobchod s chemickými výrobky"]
[null,null,"46.76","Velkoobchod s ostatními meziprodukty"]
[null,null,"46.76.1","Velkoobchod s papírenskými meziprodukty"]
[null,null,"46.76.9","Velkoobchod s ostatními meziprodukty j. n."]
[null,null,"46.77","Velkoobchod s odpadem a šrotem"]
[]
[null,"46.9",null,"Nespecializovaný velkoobchod"]
[null,null,"46.90","Nespecializovaný velkoobchod"]
[]
[47,null,null,"Maloobchod, kromě motorových vozidel "]
[]
[null,"47.1",null,"Maloobchod v nespecializovaných prodejnách"]
[null,null,"47.11","Maloobchod s převahou potravin, nápojů a tabákových výrobků v nespecializovaných prodejnách"]
[null,null,"47.19","Ostatní maloobchod v nespecializovaných prodejnách"]
[]
[null,"47.2",null,"Maloobchod s potravinami, nápoji a tabákovými výrobky ve specializovaných prodejnách"]
[null,null,"47.21","Maloobchod s ovocem a zeleninou "]
[null,null,"47.22","Maloobchod s masem a masnými výrobky "]
[null,null,"47.23","Maloobchod s rybami, korýši a měkkýši "]
[null,null,"47.24","Maloobchod s chlebem, pečivem, cukrářskými výrobky a cukrovinkami "]
[null,null,"47.25","Maloobchod s nápoji "]
[null,null,"47.26","Maloobchod s tabákovými výrobky "]
[null,null,"47.29","Ostatní maloobchod s potravinami ve specializovaných prodejnách"]
[]
[null,"47.3",null,"Maloobchod s pohonnými hmotami ve specializovaných prodejnách"]
[null,null,"47.30","Maloobchod s pohonnými hmotami ve specializovaných prodejnách"]
[]
[null,"47.4",null,"Maloobchod s počítačovým a komunikačním zařízením ve specializovaných prodejnách"]
[null,null,"47.41","Maloobchod s počítači, počítačovým periferním zařízením a softwarem "]
[null,null,"47.42","Maloobchod s telekomunikačním zařízením "]
[null,null,"47.43","Maloobchod s audio- a videozařízením "]
[]
[null,"47.5",null,"Maloobchod s ostatními výrobky převážně pro domácnost ve specializovaných prodejnách"]
[null,null,"47.51","Maloobchod s textilem "]
[null,null,"47.52","Maloobchod s železářským zbožím, barvami, sklem a potřebami pro kutily "]
[null,null,"47.53","Maloobchod s koberci, podlahovými krytinami a nástěnnými obklady "]
[null,null,"47.54","Maloobchod s elektrospotřebiči a elektronikou "]
[null,null,"47.59","Maloobchod s nábytkem, svítidly a ostatními výrobky převážně pro domácnost ve specializovaných prodejnách"]
[]
[null,"47.6",null,"Maloobchod s výrobky pro kulturní rozhled a rekreaci ve specializovaných prodejnách"]
[null,null,"47.61","Maloobchod s knihami "]
[null,null,"47.62","Maloobchod s novinami, časopisy a papírnickým zbožím "]
[null,null,"47.63","Maloobchod s audio- a videozáznamy "]
[null,null,"47.64","Maloobchod se sportovním vybavením "]
[null,null,"47.65","Maloobchod s hrami a hračkami "]
[]
[null,"47.7",null,"Maloobchod s ostatním zbožím ve specializovaných prodejnách"]
[null,null,"47.71","Maloobchod s oděvy "]
[null,null,"47.72","Maloobchod s obuví a koženými výrobky "]
[null,null,"47.73","Maloobchod s farmaceutickými přípravky "]
[null,null,"47.74","Maloobchod se zdravotnickými a ortopedickými výrobky "]
[null,null,"47.75","Maloobchod s kosmetickými a toaletními výrobky "]
[null,null,"47.76","Maloobchod s květinami, rostlinami, osivy, hnojivy, zvířaty pro zájmový chov a krmivy pro ně "]
[null,null,"47.77","Maloobchod s hodinami, hodinkami a klenoty "]
[null,null,"47.78","Ostatní maloobchod s novým zbožím ve specializovaných prodejnách"]
[null,null,"47.78.1","Maloobchod s fotografickým a optickým zařízením a potřebami"]
[null,null,"47.78.2","Maloobchod s pevnými palivy"]
[null,null,"47.78.3","Maloobchod s kapalnými palivy (kromě pohonných hmot)"]
[null,null,"47.78.4","Maloobchod s plynnými palivy (kromě pohonných hmot)"]
[null,null,"47.78.9","Ostatní maloobchod s novým zbožím ve specializovaných prodejnách j. n."]
[null,null,"47.79","Maloobchod s použitým zbožím v prodejnách"]
[]
[null,"47.8",null,"Maloobchod ve stáncích a na trzích"]
[null,null,"47.81","Maloobchod s potravinami, nápoji a tabákovými výrobky ve stáncích a na trzích"]
[null,null,"47.82","Maloobchod s textilem, oděvy a obuví ve stáncích a na trzích "]
[null,null,"47.89","Maloobchod s ostatním zbožím ve stáncích a na trzích "]
[]
[null,"47.9",null,"Maloobchod mimo prodejny, stánky a trhy"]
[null,null,"47.91","Maloobchod prostřednictvím internetu nebo zásilkové služby "]
[null,null,"47.91.1","Maloobchod prostřednictvím internetu"]
[null,null,"47.91.2","Maloobchod prostřednictvím zásilkové služby (jiný než prostřednictvím internetu)"]
[null,null,"47.99","Ostatní maloobchod mimo prodejny, stánky a trhy"]
[]
[]
[{"$nulls":3},"SEKCE H - DOPRAVA A SKLADOVÁNÍ"]
[]
[49,null,null,"Pozemní a potrubní doprava"]
[]
[null,"49.1",null,"Železniční osobní doprava meziměstská"]
[null,null,"49.10","Železniční osobní doprava meziměstská"]
[]
[null,"49.2",null,"Železniční nákladní doprava"]
[null,null,"49.20","Železniční nákladní doprava"]
[null,null," "]
[null,"49.3",null,"Ostatní pozemní osobní doprava "]
[null,null,"49.31","Městská a příměstská pozemní osobní doprava"]
[null,null,"49.32","Taxislužba a pronájem osobních vozů s řidičem"]
[null,null,"49.39","Ostatní pozemní osobní doprava j. n."]
[null,null,"49.39.1","Meziměstská pravidelná pozemní osobní doprava"]
[null,null,"49.39.2","Osobní doprava lanovkou nebo vlekem"]
[null,null,"49.39.3","Nepravidelná pozemní osobní doprava"]
[null,null,"49.39.9","Jiná pozemní osobní doprava j. n."]
[]
[null,"49.4",null,"Silniční nákladní doprava a stěhovací služby"]
[null,null,"49.41","Silniční nákladní doprava"]
[null,null,"49.42","Stěhovací služby"]
[]
[null,"49.5",null,"Potrubní doprava"]
[null,null,"49.50","Potrubní doprava"]
[null,null,"49.50.1","Potrubní doprava ropovodem"]
[null,null,"49.50.2","Potrubní doprava plynovodem"]
[null,null,"49.50.9","Potrubní doprava ostatní"]
[]
[50,null,null,"Vodní doprava"]
[]
[null,"50.1",null,"Námořní a pobřežní osobní doprava"]
[null,null,"50.10","Námořní a pobřežní osobní doprava"]
[]
[null,"50.2",null,"Námořní a pobřežní nákladní doprava"]
[null,null,"50.20","Námořní a pobřežní nákladní doprava"]
[]
[null,"50.3",null,"Vnitrozemská vodní osobní doprava"]
[null,null,"50.30","Vnitrozemská vodní osobní doprava"]
[]
[null,"50.4",null,"Vnitrozemská vodní nákladní doprava"]
[null,null,"50.40","Vnitrozemská vodní nákladní doprava"]
[]
[51,null,null,"Letecká doprava"]
[]
[null,"51.1",null,"Letecká osobní doprava"]
[null,null,"51.10","Letecká osobní doprava"]
[null,null,"51.10.1","Vnitrostátní pravidelná letecká osobní doprava"]
[null,null,"51.10.2","Vnitrostátní nepravidelná letecká osobní doprava"]
[null,null,"51.10.3","Mezinárodní pravidelná letecká osobní doprava"]
[null,null,"51.10.4","Mezinárodní nepravidelná letecká osobní doprava"]
[null,null,"51.10.9","Ostatní letecká osobní doprava"]
[]
[null,"51.2",null,"Letecká nákladní doprava a kosmická doprava"]
[null,null,"51.21","Letecká nákladní doprava"]
[null,null,"51.22","Kosmická doprava"]
[]
[52,null,null,"Skladování a vedlejší činnosti v dopravě"]
[]
[null,"52.1",null,"Skladování"]
[null,null,"52.10","Skladování"]
[]
[null,"52.2",null,"Vedlejší činnosti v dopravě"]
[null,null,"52.21","Činnosti související s pozemní dopravou "]
[null,null,"52.22","Činnosti související s vodní dopravou "]
[null,null,"52.23","Činnosti související s leteckou dopravou "]
[null,null,"52.24","Manipulace s nákladem"]
[null,null,"52.29","Ostatní vedlejší činnosti v dopravě"]
[]
[53,null,null,"Poštovní a kurýrní činnosti"]
[]
[null,"53.1",null,"Základní poštovní služby poskytované na základě poštovní licence"]
[null,null,"53.10","Základní poštovní služby poskytované na základě poštovní licence"]
[]
[null,"53.2",null,"Ostatní poštovní a kurýrní činnosti"]
[null,null,"53.20","Ostatní poštovní a kurýrní činnosti"]
[]
[]
[{"$nulls":3},"SEKCE I - UBYTOVÁNÍ, STRAVOVÁNÍ A POHOSTINSTVÍ "]
[]
[55,null,null,"Ubytování"]
[]
[null,"55.1",null,"Ubytování v hotelích a podobných ubytovacích zařízeních"]
[null,null,"55.10","Ubytování v hotelích a podobných ubytovacích zařízeních"]
[null,null,"55.10.1","Hotely"]
[null,null,"55.10.2","Motely, botely"]
[null,null,"55.10.9","Ostatní podobná ubytovací zařízení"]
[]
[null,"55.2",null,"Rekreační a ostatní krátkodobé ubytování"]
[null,null,"55.20","Rekreační a ostatní krátkodobé ubytování"]
[]
[null,"55.3",null,"Kempy a tábořiště "]
[null,null,"55.30","Kempy a tábořiště "]
[]
[null,"55.9",null,"Ostatní ubytování"]
[null,null,"55.90","Ostatní ubytování"]
[null,null,"55.90.1","Ubytování v zařízených pronájmech "]
[null,null,"55.90.2","Ubytování ve vysokoškolských kolejích, domovech mládeže"]
[null,null,"55.90.9","Ostatní ubytování j. n. "]
[]
[56,null,null,"Stravování a pohostinství"]
[]
[null,"56.1",null,"Stravování v restauracích, u stánků a v mobilních zařízeních"]
[null,null,"56.10","Stravování v restauracích, u stánků a v mobilních zařízeních"]
[]
[null,"56.2",null,"Poskytování cateringových a ostatních stravovacích služeb"]
[null,null,"56.21","Poskytování cateringových služeb"]
[null,null,"56.29","Poskytování ostatních stravovacích služeb"]
[null,null,"56.29.1","Stravování v závodních kuchyních"]
[null,null,"56.29.2","Stravování ve školních zařízeních, menzách"]
[null,null,"56.29.9","Poskytování jiných stravovacích služeb j. n."]
[]
[null,"56.3",null,"Pohostinství"]
[null,null,"56.30","Pohostinství"]
[]
[]
[{"$nulls":3},"SEKCE J - INFORMAČNÍ A KOMUNIKAČNÍ ČINNOSTI"]
[]
[58,null,null,"Vydavatelské činnosti"]
[]
[null,"58.1",null,"Vydávání knih, periodických publikací a ostatní vydavatelské činnosti"]
[null,null,"58.11","Vydávání knih"]
[null,null,"58.12","Vydávání adresářů a jiných seznamů "]
[null,null,"58.13","Vydávání novin"]
[null,null,"58.14","Vydávání časopisů a ostatních periodických publikací"]
[null,null,"58.19","Ostatní vydavatelské činnosti"]
[]
[null,"58.2",null,"Vydávání softwaru"]
[null,null,"58.21","Vydávání počítačových her"]
[null,null,"58.29","Ostatní vydávání softwaru"]
[]
[59,null,null,"Činnosti v oblasti filmů, videozáznamů a televizních programů, pořizování zvukových nahrávek a hudební vydavatelské činnosti"]
[]
[null,"59.1",null,"Činnosti v oblasti filmů, videozáznamů a televizních programů "]
[null,null,"59.11","Produkce filmů, videozáznamů a televizních programů"]
[null,null,"59.12","Postprodukce filmů, videozáznamů a televizních programů"]
[null,null,"59.13","Distribuce filmů, videozáznamů a televizních programů"]
[null,null,"59.14","Promítání filmů "]
[]
[null,"59.2",null,"Pořizování zvukových nahrávek a hudební vydavatelské činnosti"]
[null,null,"59.20","Pořizování zvukových nahrávek a hudební vydavatelské činnosti"]
[]
[60,null,null,"Tvorba programů a vysílání"]
[]
[null,"60.1",null,"Rozhlasové vysílání"]
[null,null,"60.10","Rozhlasové vysílání"]
[]
[null,"60.2",null,"Tvorba televizních programů a televizní vysílání"]
[null,null,"60.20","Tvorba televizních programů a televizní vysílání"]
[]
[]
[61,null,null,"Telekomunikační činnosti"]
[]
[null,"61.1",null,"Činnosti související s pevnou telekomunikační sítí"]
[null,null,"61.10","Činnosti související s pevnou telekomunikační sítí"]
[null,null,"61.10.1","Poskytování hlasových služeb přes pevnou telekomunikační síť"]
[null,null,"61.10.2","Pronájem pevné telekomunikační sítě"]
[null,null,"61.10.3","Přenos dat přes pevnou telekomunikační síť"]
[null,null,"61.10.4","Poskytování přístupu k internetu přes pevnou telekomunikační síť"]
[null,null,"61.10.9","Ostatní činnosti související s pevnou telekomunikační sítí"]
[]
[null,"61.2",null,"Činnosti související s bezdrátovou telekomunikační sítí"]
[null,null,"61.20","Činnosti související s bezdrátovou telekomunikační sítí"]
[null,null,"61.20.1","Poskytování hlasových služeb přes bezdrátovou telekomunikační síť"]
[null,null,"61.20.2","Pronájem bezdrátové telekomunikační sítě"]
[null,null,"61.20.3","Přenos dat přes bezdrátovou telekomunikační síť"]
[null,null,"61.20.4","Poskytování přístupu k internetu přes bezdrátovou telekomunikační síť"]
[null,null,"61.20.9","Ostatní činnosti související s bezdrátovou telekomunikační sítí"]
[]
[null,"61.3",null,"Činnosti související se satelitní telekomunikační sítí"]
[null,null,"61.30","Činnosti související se satelitní telekomunikační sítí"]
[]
[null,"61.9",null,"Ostatní telekomunikační činnosti"]
[null,null,"61.90","Ostatní telekomunikační činnosti"]
[]
[]
[62,null,null,"Činnosti v oblasti informačních technologií"]
[]
[null,"62.0",null,"Činnosti v oblasti informačních technologií"]
[null,null,"62.01","Programování"]
[null,null,"62.02","Poradenství v oblasti informačních technologií"]
[null,null,"62.03","Správa počítačového vybavení"]
[null,null,"62.09","Ostatní činnosti v oblasti informačních technologií"]
[]
[]
[63,null,null,"Informační činnosti"]
[]
[null,"63.1",null,"Činnosti související se zpracováním dat a hostingem; činnosti související s webovými portály"]
[null,null,"63.11","Činnosti související se zpracováním dat a hostingem"]
[null,null,"63.12","Činnosti související s webovými portály"]
[]
[null,"63.9",null,"Ostatní informační činnosti "]
[null,null,"63.91","Činnosti zpravodajských tiskových kanceláří a agentur"]
[null,null,"63.99","Ostatní informační činnosti j. n."]
[]
[]
[{"$nulls":3},"SEKCE K - PENĚŽNICTVÍ A POJIŠŤOVNICTVÍ"]
[]
[64,null,null,"Finanční zprostředkování, kromě pojišťovnictví a penzijního financování"]
[]
[null,"64.1",null,"Peněžní zprostředkování"]
[null,null,"64.11","Centrální bankovnictví"]
[null,null,"64.19","Ostatní peněžní zprostředkování"]
[]
[null,"64.2",null,"Činnosti holdingových společností"]
[null,null,"64.20","Činnosti holdingových společností"]
[]
[null,"64.3",null,"Činnosti trustů, fondů a podobných finančních subjektů"]
[null,null,"64.30","Činnosti trustů, fondů a podobných finančních subjektů"]
[]
[null,"64.9",null,"Ostatní finanční zprostředkování"]
[null,null,"64.91","Finanční leasing"]
[null,null,"64.92","Ostatní poskytování úvěrů"]
[null,null,"64.92.1","Poskytování úvěrů společnostmi, které nepřijímají vklady"]
[null,null,"64.92.2","Poskytování obchodních úvěrů"]
[null,null,"64.92.3","Činnosti zastaváren"]
[null,null,"64.92.9","Ostatní poskytování úvěrů j. n."]
[null,null,"64.99","Ostatní finanční zprostředkování j. n."]
[null,null,"64.99.1","Faktoringové činnosti"]
[null,null,"64.99.2","Obchodování s cennými papíry na vlastní účet"]
[null,null,"64.99.9","Jiné finanční zprostředkování j. n."]
[]
[65,null,null,"Pojištění, zajištění a penzijní financování, kromě povinného sociálního zabezpečení"]
[]
[null,"65.1",null,"Pojištění"]
[null,null,"65.11","Životní pojištění"]
[null,null,"65.12","Neživotní pojištění"]
[]
[null,"65.2",null,"Zajištění"]
[null,null,"65.20","Zajištění"]
[]
[null,"65.3",null,"Penzijní financování"]
[null,null,"65.30","Penzijní financování"]
[]
[66,null,null,"Ostatní finanční činnosti"]
[]
[null,"66.1",null,"Pomocné činnosti související s finančním zprostředkováním, kromě pojišťovnictví a penzijního financování"]
[null,null,"66.11","Řízení a správa finančních trhů"]
[null,null,"66.12","Obchodování s cennými papíry a komoditami na burzách"]
[null,null,"66.19","Ostatní pomocné činnosti související s finančním zprostředkováním"]
[]
[null,"66.2",null,"Pomocné činnosti související s pojišťovnictvím a penzijním financováním"]
[null,null,"66.21","Vyhodnocování rizik a škod"]
[null,null,"66.22","Činnosti zástupců pojišťovny a makléřů"]
[null,null,"66.29","Ostatní pomocné činnosti související s pojišťovnictvím a penzijním financováním"]
[]
[null,"66.3",null,"Správa fondů"]
[null,null,"66.30","Správa fondů"]
[]
[]
[{"$nulls":3},"SEKCE L - ČINNOSTI V OBLASTI NEMOVITOSTÍ"]
[]
[68,null,null,"Činnosti v oblasti nemovitostí"]
[]
[null,"68.1",null,"Nákup a následný prodej vlastních nemovitostí"]
[null,null,"68.10","Nákup a následný prodej vlastních nemovitostí"]
[]
[null,"68.2",null,"Pronájem a správa vlastních nebo pronajatých nemovitostí"]
[null,null,"68.20","Pronájem a správa vlastních nebo pronajatých nemovitostí"]
[null,null,"68.20.1","Pronájem vlastních nebo pronajatých nemovitostí s bytovými prostory"]
[null,null,"68.20.2","Pronájem vlastních nebo pronajatých nemovitostí s nebytovými prostory"]
[null,null,"68.20.3","Správa vlastních nebo pronajatých nemovitostí s bytovými prostory "]
[null,null,"68.20.4 ","Správa vlastních nebo pronajatých nemovitostí s nebytovými prostory"]
[]
[null,"68.3",null,"Činnosti v oblasti nemovitostí na základě smlouvy nebo dohody"]
[null,null,"68.31","Zprostředkovatelské činnosti realitních agentur"]
[null,null,"68.32","Správa nemovitostí na základě smlouvy"]
[]
[]
[]
[{"$nulls":3},"SEKCE M - PROFESNÍ, VĚDECKÉ A TECHNICKÉ ČINNOSTI"]
[]
[69,null,null,"Právní a účetnické činnosti"]
[]
[null,"69.1",null,"Právní činnosti"]
[null,null,"69.10","Právní činnosti"]
[]
[null,"69.2",null,"Účetnické a auditorské činnosti; daňové poradenství"]
[null,null,"69.20","Účetnické a auditorské činnosti; daňové poradenství"]
[]
[70,null,null,"Činnosti vedení podniků; poradenství v oblasti řízení"]
[]
[null,"70.1",null,"Činnosti vedení podniků"]
[null,null,"70.10","Činnosti vedení podniků"]
[]
[null,"70.2",null,"Poradenství v oblasti řízení"]
[null,null,"70.21","Poradenství v oblasti vztahů s veřejností a komunikace"]
[null,null,"70.22","Ostatní poradenství v oblasti podnikání a řízení"]
[]
[71,null,null,"Architektonické a inženýrské činnosti; technické zkoušky a analýzy"]
[]
[null,"71.1",null,"Architektonické a inženýrské činnosti a související technické poradenství"]
[null,null,"71.11","Architektonické činnosti"]
[null,null,"71.12","Inženýrské činnosti a související technické poradenství"]
[null,null,"71.12.1","Geologický průzkum"]
[null,null,"71.12.2","Zeměměřické a kartografické činnosti"]
[null,null,"71.12.3","Hydrometeorologické a meteorologické činnosti"]
[null,null,"71.12.9","Ostatní inženýrské činnosti a související technické poradenství j. n."]
[]
[null,"71.2",null,"Technické zkoušky a analýzy"]
[null,null,"71.20","Technické zkoušky a analýzy"]
[null,null,"71.20.1  ","Zkoušky a analýzy vyhrazených technických zařízení"]
[null,null,"71.20.9   ","Ostatní technické zkoušky a analýzy"]
[]
[72,null,null,"Výzkum a vývoj"]
[]
[null,"72.1",null,"Výzkum a vývoj v oblasti přírodních a technických věd"]
[null,null,"72.11","Výzkum a vývoj v oblasti biotechnologie"]
[null,null,"72.19","Ostatní výzkum a vývoj v oblasti přírodních a technických věd"]
[null,null,"72.19.1 ","Výzkum a vývoj v oblasti lékařských věd "]
[null,null,"72.19.2","Výzkum a vývoj v oblasti technických věd"]
[null,null,"72.19.9","Výzkum a vývoj v oblasti jiných přírodních věd"]
[]
[null,"72.2",null,"Výzkum a vývoj v oblasti společenských a humanitních věd"]
[null,null,"72.20","Výzkum a vývoj v oblasti společenských a humanitních věd"]
[]
[73,null,null,"Reklama a průzkum trhu"]
[]
[null,"73.1",null,"Reklamní činnosti"]
[null,null,"73.11","Činnosti reklamních agentur"]
[null,null,"73.12","Zastupování médií při prodeji reklamního času a prostoru"]
[]
[null,"73.2",null,"Průzkum trhu a veřejného mínění"]
[null,null,"73.20","Průzkum trhu a veřejného mínění"]
[]
[74,null,null,"Ostatní profesní, vědecké a technické činnosti"]
[]
[null,"74.1",null,"Specializované návrhářské činnosti "]
[null,null,"74.10","Specializované návrhářské činnosti "]
[]
[null,"74.2",null,"Fotografické činnosti"]
[null,null,"74.20","Fotografické činnosti"]
[]
[null,"74.3",null,"Překladatelské a tlumočnické činnosti"]
[null,null,"74.30","Překladatelské a tlumočnické činnosti"]
[]
[null,"74.9",null,"Ostatní profesní, vědecké a technické činnosti j. n."]
[null,null,"74.90","Ostatní profesní, vědecké a technické činnosti j. n."]
[null,null,"74.90.1","Poradenství v oblasti bezpečnosti a ochrany zdraví při práci"]
[null,null,"74.90.2","Poradenství v oblasti požární ochrany"]
[null,null,"74.90.9","Jiné profesní, vědecké a technické činnosti j. n."]
[]
[75,null,null,"Veterinární činnosti"]
[]
[null,"75.0",null,"Veterinární činnosti"]
[null,null,"75.00","Veterinární činnosti"]
[]
[]
[{"$nulls":3},"SEKCE N - ADMINISTRATIVNÍ A PODPŮRNÉ ČINNOSTI"]
[]
[77,null,null,"Činnosti v oblasti pronájmu a operativního leasingu"]
[]
[null," 77.1",null,"Pronájem a leasing motorových vozidel, kromě motocyklů"]
[null,null,"77.11","Pronájem a leasing automobilů a jiných lehkých motorových vozidel, kromě motocyklů"]
[null,null,"77.12","Pronájem a leasing nákladních automobilů"]
[]
[null,"77.2",null,"Pronájem a leasing výrobků pro osobní potřebu a převážně pro domácnost"]
[null,null,"77.21","Pronájem a leasing rekreačních a sportovních potřeb"]
[null,null,"77.22","Pronájem videokazet a disků"]
[null,null,"77.29","Pronájem a leasing ostatních výrobků pro osobní potřebu a převážně pro domácnost"]
[]
[null,"77.3",null,"Pronájem a leasing ostatních strojů, zařízení a výrobků "]
[null,null,"77.31","Pronájem a leasing zemědělských strojů a zařízení"]
[null,null,"77.32","Pronájem a leasing stavebních strojů a zařízení "]
[null,null,"77.33","Pronájem a leasing kancelářských strojů a zařízení, včetně počítačů"]
[null,null,"77.34","Pronájem a leasing vodních dopravních prostředků"]
[null,null,"77.35","Pronájem a leasing leteckých dopravních prostředků"]
[null,null,"77.39","Pronájem a leasing ostatních strojů, zařízení a výrobků j. n."]
[]
[null,"77.4",null,"Leasing duševního vlastnictví a podobných produktů, kromě děl chráněných autorským právem"]
[null,null,"77.40","Leasing duševního vlastnictví a podobných produktů, kromě děl chráněných autorským právem"]
[]
[78,null,null,"Činnosti související se zaměstnáním"]
[]
[null,"78.1",null,"Činnosti agentur zprostředkujících zaměstnání"]
[null,null,"78.10","Činnosti agentur zprostředkujících zaměstnání"]
[]
[null,"78.2",null,"Činnosti agentur zprostředkujících práci na přechodnou dobu"]
[null,null,"78.20","Činnosti agentur zprostředkujících práci na přechodnou dobu"]
[]
[null,"78.3",null,"Ostatní poskytování lidských zdrojů "]
[null,null,"78.30","Ostatní poskytování lidských zdrojů"]
[]
[79,null,null,"Činnosti cestovních agentur, kanceláří a jiné rezervační a související činnosti"]
[]
[null,"79.1",null,"Činnosti cestovních agentur a cestovních kanceláří"]
[null,null,"79.11","Činnosti cestovních agentur "]
[null,null,"79.12","Činnosti cestovních kanceláří"]
[]
[null,"79.9",null,"Ostatní rezervační a související činnosti"]
[null,null,"79.90","Ostatní rezervační a související činnosti"]
[null,null,"79.90.1","Průvodcovské činnosti"]
[null,null,"79.90.9","Ostatní rezervační a související činnosti j. n."]
[]
[80,null,null,"Bezpečnostní a pátrací činnosti"]
[]
[null,"80.1",null,"Činnosti soukromých bezpečnostních agentur"]
[null,null,"80.10","Činnosti soukromých bezpečnostních agentur"]
[]
[null,"80.2",null,"Činnosti související s provozem bezpečnostních systémů"]
[null,null,"80.20","Činnosti související s provozem bezpečnostních systémů"]
[]
[null,"80.3",null,"Pátrací činnosti"]
[null,null,"80.30","Pátrací činnosti "]
[]
[81,null,null,"Činnosti související se stavbami a úpravou krajiny "]
[]
[null,"81.1",null,"Kombinované pomocné činnosti "]
[null,null,"81.10","Kombinované pomocné činnosti "]
[]
[null,"81.2",null,"Úklidové činnosti"]
[null,null,"81.21","Všeobecný úklid budov"]
[null,null,"81.22","Specializované čištění a úklid budov a průmyslových zařízení"]
[null,null,"81.29","Ostatní úklidové činnosti"]
[]
[null,"81.3",null,"Činnosti související s úpravou krajiny "]
[null,null,"81.30","Činnosti související s úpravou krajiny"]
[]
[82,null,null,"Administrativní, kancelářské a jiné podpůrné činnosti pro podnikání"]
[]
[null,"82.1",null,"Administrativní a kancelářské činnosti"]
[null,null,"82.11","Univerzální administrativní činnosti "]
[null,null,"82.19","Kopírování, příprava dokumentů a ostatní specializované kancelářské podpůrné činnosti "]
[]
[null,"82.2",null,"Činnosti zprostředkovatelských středisek"]
[{"$nulls":3},"po telefonu"]
[null,null,"82.20","Činnosti zprostředkovatelských středisek po telefonu"]
[]
[null,"82.3",null,"Pořádání konferencí a hospodářských výstav"]
[null,null,"82.30","Pořádání konferencí a hospodářských výstav"]
[]
[null,"82.9",null,"Podpůrné činnosti pro podnikání j. n."]
[null,null,"82.91","Inkasní činnosti, ověřování solventnosti zákazníka"]
[null,null,"82.92","Balicí činnosti"]
[null,null,"82.99","Ostatní podpůrné činnosti pro podnikání j. n."]
[]
[]
[{"$nulls":3},"SEKCE O - VEŘEJNÁ SPRÁVA A OBRANA; POVINNÉ SOCIÁLNÍ ZABEZPEČENÍ"]
[]
[84,null,null,"Veřejná správa a obrana; povinné sociální zabezpečení"]
[]
[null,"84.1",null,"Veřejná správa a hospodářská a sociální politika"]
[null,null,"84.11","Všeobecné činnosti veřejné správy"]
[null,null,"84.12","Regulace činností souvisejících s poskytováním zdravotní péče, vzděláváním, kulturou a sociální péčí, kromě sociálního zabezpečení"]
[null,null,"84.13","Regulace a podpora podnikatelského prostředí"]
[]
[null,"84.2",null,"Činnosti pro společnost jako celek"]
[null,null,"84.21","Činnosti v oblasti zahraničních věcí"]
[null,null,"84.21.1","Pomoc cizím zemím při katastrofách nebo v nouzových situacích přímo nebo prostřednictvím mezinárodních organizací"]
[null,null,"84.21.2","Rozvíjení vzájemného přátelství a porozumění mezi národy"]
[null,null,"84.21.9","Ostatní činnosti v oblasti zahraničních věcí"]
[null,null,"84.22","Činnosti v oblasti obrany"]
[null,null,"84.23","Činnosti v oblasti spravedlnosti a soudnictví"]
[null,null,"84.24","Činnosti v oblasti veřejného pořádku a bezpečnosti "]
[null,null,"84.25","Činnosti v oblasti protipožární ochrany"]
[]
[null," 84.3",null,"Činnosti v oblasti povinného sociálního zabezpečení"]
[null,null,"84.30","Činnosti v oblasti povinného sociálního zabezpečení"]
[]
[]
[{"$nulls":3},"SEKCE P – VZDĚLÁVÁNÍ"]
[]
[85,null,null,"Vzdělávání"]
[]
[null,"85.1",null,"Předškolní vzdělávání"]
[null,null,"85.10","Předškolní vzdělávání"]
[]
[null,"85.2",null,"Primární vzdělávání"]
[null,null,"85.20","Primární vzdělávání"]
[]
[null,"85.3",null,"Sekundární vzdělávání"]
[null,null,"85.31","Sekundární všeobecné vzdělávání"]
[null,null,"85.31.1","Základní vzdělávání na druhém stupni základních škol"]
[null,null,"85.31.2","Střední všeobecné vzdělávání"]
[null,null,"85.32","Sekundární odborné vzdělávání"]
[null,null,"85.32.1","Střední odborné vzdělávání na učilištích"]
[null,null,"85.32.2","Střední odborné vzdělávání na středních odborných školách"]
[]
[null,"85.4",null,"Postsekundární vzdělávání"]
[null,null,"85.41","Postsekundární nikoli terciární vzdělávání"]
[null,null,"85.42","Terciární vzdělávání"]
[]
[null,"85.5",null,"Ostatní vzdělávání"]
[null,null,"85.51","Sportovní a rekreační vzdělávání"]
[null,null,"85.52","Umělecké vzdělávání"]
[null,null,"85.53","Činnosti autoškol a jiných škol řízení"]
[null,null,"85.53.1","Činnosti autoškol"]
[null,null,"85.53.2","Činnosti leteckých škol"]
[null,null,"85.53.9","Činnosti ostatních škol řízení"]
[null,null,"85.59","Ostatní vzdělávání j. n."]
[null,null,"85.59.1","Vzdělávání v jazykových školách"]
[null,null,"85.59.2","Environmentální vzdělávání"]
[null,null,"85.59.3","Inovační vzdělávání"]
[null,null,"85.59.9","Jiné vzdělávání j. n."]
[]
[null,"85.6",null,"Podpůrné činnosti ve vzdělávání"]
[null,null,"85.60","Podpůrné činnosti ve vzdělávání"]
[]
[]
[{"$nulls":3},"SEKCE Q - ZDRAVOTNÍ A SOCIÁLNÍ PÉČE"]
[]
[86,null,null,"Zdravotní péče"]
[]
[null,"86.1",null,"Ústavní zdravotní péče"]
[null,null,"86.10","Ústavní zdravotní péče"]
[]
[null,"86.2",null,"Ambulantní a zubní zdravotní péče"]
[null,null,"86.21","Všeobecná ambulantní zdravotní péče"]
[null,null,"86.22","Specializovaná ambulantní zdravotní péče"]
[null,null,"86.23","Zubní péče"]
[]
[null,"86.9",null,"Ostatní činnosti související se zdravotní péčí"]
[null,null,"86.90","Ostatní činnosti související se zdravotní péčí"]
[null,null,"86.90.1","Činnosti související s ochranou veřejného zdraví"]
[null,null,"86.90.9","Ostatní činnosti související se zdravotní péčí j. n."]
[]
[87,null,null,"Pobytové služby sociální péče"]
[]
[null,"87.1",null,"Sociální péče ve zdravotnických zařízeních ústavní péče"]
[null,null,"87.10","Sociální péče ve zdravotnických zařízeních ústavní péče"]
[]
[null,"87.2",null,"Sociální péče v zařízeních pro osoby s chronickým duševním onemocněním a osoby závislé na návykových látkách"]
[null,null,"87.20","Sociální péče v zařízeních pro osoby s chronickým duševním onemocněním a osoby závislé na návykových látkách"]
[null,null,"87.20.1","Sociální péče v zařízeních pro osoby s chronickým duševním onemocněním"]
[null,null,"87.20.2","Sociální péče v zařízeních pro osoby závislé na návykových látkách"]
[]
[null,"87.3",null,"Sociální péče v domovech pro seniory a osoby se zdravotním postižením"]
[null,null,"87.30","Sociální péče v domovech pro seniory a osoby se zdravotním postižením"]
[null,null,"87.30.1","Sociální péče v domovech pro seniory"]
[null,null,"87.30.2","Sociální péče v domovech pro osoby se zdravotním postižením"]
[]
[null,"87.9",null,"Ostatní pobytové služby sociální péče"]
[null,null,"87.90","Ostatní pobytové služby sociální péče"]
[]
[88,null,null,"Ambulantní nebo terénní sociální služby"]
[]
[null,"88.1",null,"Ambulantní nebo terénní sociální služby pro seniory a osoby se zdravotním postižením"]
[null,null,"88.10","Ambulantní nebo terénní sociální služby pro seniory a osoby se zdravotním postižením"]
[null,null,"88.10.1","Ambulantní nebo terénní sociální služby pro seniory"]
[null,null,"88.10.2","Ambulantní nebo terénní sociální služby pro osoby se zdravotním postižením"]
[]
[null,"88.9",null,"Ostatní ambulantní nebo terénní sociální služby"]
[null,null,"88.91","Sociální služby poskytované dětem"]
[null,null,"88.99","Ostatní ambulantní nebo terénní sociální služby j. n."]
[null,null,"88.99.1","Sociální služby pro uprchlíky, oběti katastrof"]
[null,null,"88.99.2","Sociální prevence"]
[null,null,"88.99.3","Sociální rehabilitace"]
[null,null,"88.99.9","Jiné ambulantní nebo terénní sociální služby j. n."]
[]
[]
[{"$nulls":3},"SEKCE R - KULTURNÍ, ZÁBAVNÍ A REKREAČNÍ ČINNOSTI"]
[]
[90,null,null,"Tvůrčí, umělecké a zábavní činnosti"]
[]
[null,"90.0",null,"Tvůrčí, umělecké a zábavní činnosti"]
[null,null,"90.01","Scénická umění"]
[null,null,"90.02","Podpůrné činnosti pro scénická umění"]
[null,null,"90.03","Umělecká tvorba"]
[null,null,"90.04","Provozování kulturních zařízení"]
[]
[91,null,null,"Činnosti knihoven, archivů, muzeí a jiných kulturních zařízení"]
[]
[null,"91.0",null,"Činnosti knihoven, archivů, muzeí a jiných kulturních zařízení"]
[null,null,"91.01","Činnosti knihoven a archivů"]
[null,null,"91.02","Činnosti muzeí"]
[null,null,"91.03","Provozování kulturních památek, historických staveb a obdobných turistických zajímavostí"]
[null,null,"91.04","Činnosti botanických a zoologických zahrad, přírodních rezervací a národních parků"]
[null,null,"91.04.1","Činnosti botanických a zoologických zahrad"]
[null,null,"91.04.2","Činnosti přírodních rezervací a národních parků"]
[]
[92,null,null,"Činnosti heren, kasin a sázkových kanceláří"]
[]
[null,"92.0",null,"Činnosti heren, kasin a sázkových kanceláří"]
[null,null,"92.00","Činnosti heren, kasin a sázkových kanceláří"]
[]
[93,null,null,"Sportovní, zábavní a rekreační činnosti "]
[]
[null,"93.1",null,"Sportovní činnosti"]
[null,null,"93.11","Provozování sportovních zařízení"]
[null,null,"93.12","Činnosti sportovních klubů"]
[null,null,"93.13","Činnosti fitcenter"]
[null,null,"93.19","Ostatní sportovní činnosti"]
[]
[null,"93.2",null,"Ostatní zábavní a rekreační činnosti"]
[null,null,"93.21","Činnosti lunaparků a zábavních parků"]
[null,null,"93.29","Ostatní zábavní a rekreační činnosti j. n."]
[]
[]
[{"$nulls":3},"SEKCE S - OSTATNÍ ČINNOSTI"]
[]
[94,null,null,"Činnosti organizací sdružujících osoby za účelem prosazování společných zájmů"]
[]
[null,"94.1",null,"Činnosti podnikatelských, zaměstnavatelských a profesních organizací"]
[null,null,"94.11","Činnosti podnikatelských a zaměstnavatelských organizací"]
[null,null,"94.12","Činnosti profesních organizací"]
[]
[null,"94.2",null,"Činnosti odborových svazů"]
[null,null,"94.20","Činnosti odborových svazů"]
[]
[null,"94.9",null,"Činnosti ostatních organizací sdružujících osoby za účelem prosazování společných zájmů"]
[null,null,"94.91","Činnosti náboženských organizací"]
[null,null,"94.92","Činnosti politických stran a organizací"]
[null,null,"94.99","Činnosti ostatních organizací sdružujících osoby za účelem prosazování společných zájmů j. n."]
[null,null,"94.99.1","Činnosti organizací dětí a mládeže "]
[null,null,"94.99.2","Činnosti organizací na podporu kulturní činnosti"]
[null,null,"94.99.3","Činnosti organizací na podporu rekreační a zájmové činnosti"]
[null,null,"94.99.4","Činnosti spotřebitelských organizací"]
[null,null,"94.99.5","Činnosti environmentálních a ekologických hnutí"]
[null,null,"94.99.6","Činnosti organizací na ochranu a zlepšení postavení etnických, menšinových a jiných speciálních skupin"]
[null,null,"94.99.7","Činnosti občanských iniciativ, protestních hnutí"]
[null,null,"94.99.9","Činnosti ostatních organizací j. n."]
[]
[95,null,null,"Opravy počítačů a výrobků pro osobní potřebu a převážně pro domácnost"]
[]
[null,"95.1",null,"Opravy počítačů a komunikačních zařízení"]
[null,null,"95.11","Opravy počítačů a periferních zařízení"]
[null,null,"95.12","Opravy komunikačních zařízení"]
[]
[null,"95.2",null,"Opravy výrobků pro osobní potřebu a převážně pro domácnost"]
[null,null,"95.21","Opravy spotřební elektroniky "]
[null,null,"95.22","Opravy přístrojů a zařízení převážně pro domácnost, dům a zahradu"]
[null,null,"95.23","Opravy obuvi a kožených výrobků"]
[null,null,"95.24","Opravy nábytku a bytového zařízení"]
[null,null,"95.25","Opravy hodin, hodinek a klenotnických výrobků"]
[null,null,"95.29","Opravy ostatních výrobků pro osobní potřebu a převážně pro domácnost"]
[]
[96,null,null,"Poskytování ostatních osobních služeb"]
[]
[null,"96.0",null,"Poskytování ostatních osobních služeb"]
[null,null,"96.01","Praní a chemické čištění textilních a kožešinových výrobků"]
[null,null,"96.02","Kadeřnické, kosmetické a podobné činnosti "]
[null,null,"96.03","Pohřební a související činnosti "]
[null,null,"96.04","Činnosti pro osobní a fyzickou pohodu"]
[null,null,"96.09","Poskytování ostatních osobních služeb j. n."]
[]
[]
[{"$nulls":3},"SEKCE T - ČINNOSTI DOMÁCNOSTÍ JAKO ZAMĚSTNAVATELŮ; ČINNOSTI DOMÁCNOSTÍ PRODUKUJÍCÍCH BLÍŽE NEURČENÉ VÝROBKY A SLUŽBY PRO VLASTNÍ POTŘEBU"]
[]
[97,null,null,"Činnosti domácností jako zaměstnavatelů domácího personálu "]
[]
[null,"97.0",null,"Činnosti domácností jako zaměstnavatelů domácího personálu "]
[null,null,"97.00","Činnosti domácností jako zaměstnavatelů domácího personálu "]
[]
[98,null,null,"Činnosti domácností produkujících blíže neurčené výrobky a služby pro vlastní potřebu"]
[]
[null," 98.1",null,"Činnosti domácností produkujících blíže neurčené výrobky pro vlastní potřebu"]
[null,null,"98.10","Činnosti domácností produkujících blíže neurčené výrobky pro vlastní potřebu"]
[]
[null,"98.2",null,"Činnosti domácností poskytujících blíže neurčené služby pro vlastní potřebu"]
[null,null,"98.20","Činnosti domácností poskytujících blíže neurčené služby pro vlastní potřebu"]
[]
[]
[{"$nulls":3},"SEKCE U - ČINNOSTI EXTERITORIÁLNÍCH ORGANIZACÍ A ORGÁNŮ"]
[]
[99,null,null,"Činnosti exteritoriálních organizací a orgánů"]
[]
[null,"99.0",null,"Činnosti exteritoriálních organizací a orgánů"]
[null,null,"99.00","Činnosti exteritoriálních organizací a orgánů"]

{"sheet":"Číselník 2","index":35,"n_rows":252,"n_cols":2,"rows_kept":252,"merged":[[0,0,0,2]]}
["Číselník 2"]
["Název","Kód"]
["AD","Andorrské knížectví"]
["AE","Spojené arabské emiráty"]
["AF","Afghánistán"]
["AG","Antigua a Barbuda"]
["AI","Anguilla"]
["AL","Albánská republika"]
["AM","Arménská republika"]
["AO","Angolská republika"]
["AQ","Antarktida"]
["AR","Argentinská republika"]
["AS","Americká Samoa"]
["AT","Rakouská republika"]
["AU","Austrálie"]
["AW","Aruba"]
["AX","Alandské ostrovy"]
["AZ","Azerbajdžánská republika"]
["BA","Bosna a Hercegovina"]
["BB","Barbados"]
["BD","Bangladéšská lidová republika"]
["BE","Belgické království"]
["BF","Burkina Faso"]
["BG","Bulharská republika"]
["BH","Bahrajnské království"]
["BI","Burundská republika"]
["BJ","Beninská republika"]
["BL","Svatý Bartoloměj"]
["BM","Bermudy (brit.)"]
["BN","Brunej Darussalam"]
["BO","Bolivijská republika"]
["BQ","Bonaire,Svatý Eustach a Saba"]
["BR","Brazilská federativní republika"]
["BS","Bahamské společenství"]
["BT","Bhútánské království"]
["BV","Bouvetův ostrov"]
["BW","Botswanská republika"]
["BY","Běloruská republika"]
["BZ","Belize"]
["CA","Kanada"]
["CC","Kokosové ostrovy"]
["CD","Konžská demokratická republika"]
["CF","Středoafrická republika"]
["CG","Konžská republika"]
["CH","Švýcarská konfederace"]
["CI","Republika Pobřeží slonoviny"]
["CK","Cookovy ostrovy"]
["CL","Chilská republika"]
["CM","Kamerunská republika"]
["CN","Čínská lidová republika"]
["CO","Kolumbijská republika"]
["CR","Kostarická republika"]
["CU","Kubánská republika"]
["CV","Kapverdská republika"]
["CW","Curaçao"]
["CX","Vánoční ostrov"]
["CY","Kyperská republika"]
["CZ","Česká republika"]
["DE","Spolková republika Německo"]
["DJ","Džibutská republika"]
["DK","Dánské království"]
["DM","Dominické společenství"]
["DO","Dominikánská republika"]
["DZ","Alžírská lidová demokratická republika"]
["EC","Ekvádorská republika"]
["EE","Estonská republika"]
["EG","Egyptská arabská republika"]
["EH","Západní Sahara"]
["ER","Eritrea"]
["ES","Španělské království"]
["ET","Etiopská federativní demokratická republika"]
["FI","Finská republika"]
["FJ","Republika Fidžijské ostrovy"]
["FK","Falklandy (Malvíny)"]
["FM","Federativní státy Mikronésie"]
["FO","Faerské ostrovy"]
["FR","Francouzská republika"]
["GA","Gabonská republika"]
["GB","Spojené království Velké Británie a Severního Irska"]
["GD","Grenada"]
["GE","Gruzie"]
["GF","Francouzská Guyana"]
["GG","Guernsey, C.I."]
["GH","Ghanská republika"]
["GI","Gibraltar (brit.)"]
["GL","Grónsko"]
["GM","Gambijská republika"]
["GN","Guinejská republika"]
["GP","Guadeloupe"]
["GQ","Republika Rovníková Guinea"]
["GR","Řecká republika"]
["GS","Jižní Georgie a Jižní Sandwichovy ostrovy"]
["GT","Guatemalská republika"]
["GU","Guam"]
["GW","Republika Guinea - Bissau"]
["GY","Guayanská republika"]
["HK","Zvláštní administr. oblast Čínské lidové republiky Hongkong"]
["HM","Heardův ostrov a McDonaldovy ostrovy"]
["HN","Honduraská republika"]
["HR","Chorvatská republika"]
["HT","Haitská republika"]
["HU","Maďarská republika"]
["ID","Indonéská republika"]
["IE","Irsko"]
["IL","Izraelský stát"]
["IM","Ostrov Man"]
["IN","Indická republika"]
["IO","Britské indickooceánské území"]
["IQ","Irácká republika"]
["IR","Íránská islámská republika"]
["IS","Islandská republika"]
["IT","Italská republika"]
["JE","Jersey, C.I."]
["JM","Jamajka"]
["JO","Jordánské hášimovské království"]
["JP","Japonsko"]
["KE","Keňská republika"]
["KG","Republika Kyrgyzstán"]
["KH","Kambodžské království"]
["KI","Republika Kiribati"]
["KM","Komorský svaz"]
["KN","Svatý Kryštof a Nevis"]
["KP","Korejská lidově demokratická republika"]
["KR","Korejská republika"]
["KW","Kuvajtský stát"]
["KY","Kajmanské ostrovy (brit.)"]
["KZ","Kazašská republika"]
["LA","Laoská lidově demokratická republika"]
["LB","Libanonská republika"]
["LC","Svatá Lucie"]
["LI","Lichtenštejnské knížectví"]
["LK","Srílanská demokratická socialistická republika"]
["LR","Liberijská republika"]
["LS","Lesothské království"]
["LT","Litevská republika"]
["LU","Lucemburské velkovévodství"]
["LV","Lotyšská republika"]
["LY","Libyjská arabská lidová socialistická džamahírije"]
["MA","Marocké království"]
["MC","Monacké knížectví"]
["MD","Moldavská republika"]
["ME","Republika Černá Hora"]
["MF","Svatý Martin"]
["MG","Madagaskarská republika"]
["MH","Republika Marshallovy ostrovy"]
["MK","Bývalá jugoslávská republika Makedonie"]
["ML","Malijská republika"]
["MM","Myanmarský svaz"]
["MN","Mongolsko"]
["MO","Zvláštní adminstr. oblast Čínské lidové republiky, Macao"]
["MP","Společenství Severních Marian"]
["MQ","Martinik"]
["MR","Mauritánská islámská republika"]
["MS","Montserrat (brit.)"]
["MT","Maltská republika"]
["MU","Mauricijská republika"]
["MV","Maledivská republika"]
["MW","Malawská republika"]
["MX","Spojené státy mexické"]
["MY","Malajsie"]
["MZ","Mosambická republika"]
["NA","Namibijská republika"]
["NC","Nová Kaledonie"]
["NE","Nigerská republika"]
["NF","Norfolk"]
["NG","Nigerijská federativní republika"]
["NI","Nikaragujská republika"]
["NL","Nizozemské království"]
["NO","Norské království"]
["NP","Nepálské království"]
["NR","Nauruská republika"]
["NU","Niue"]
["NZ","Nový Zéland"]
["OM","Sultanát Omán"]
["PA","Panamská republika"]
["PE","Peruánská republika"]
["PF","Francouzská Polynésie"]
["PG","Papua Nová Guinea"]
["PH","Filipínská republika"]
["PK","Pákistánská islámská republika"]
["PL","Polská republika"]
["PM","Saint Pierre a Miquelon"]
["PN","Pitcairn"]
["PR","Portoriko"]
["PS","Stát Palestina"]
["PT","Portugalská republika"]
["PW","Palauská republika"]
["PY","Paraguayská republika"]
["QA","Stát Katar"]
["RE","Réunion"]
["RO","Rumunsko"]
["RS","Republika Srbsko"]
["RU","Ruská federace"]
["RW","Rwandská republika"]
["SA","Saúdskoarabské království"]
["SB","Šalamounovy ostrovy"]
["SC","Seychelská republika"]
["SD","Súdánská republika"]
["SE","Švédské království"]
["SG","Singapurská republika"]
["SH","Svatá Helena"]
["SI","Slovinská republika"]
["SJ","Svalbard a ostrov Jan Mayen"]
["SK","Slovenská republika"]
["SL","Republika Sierra Leone"]
["SM","Sanmarinská republika"]
["SN","Senegalská republika"]
["SO","Somálská republika"]
["SR","Surinamská republika"]
["SS","Jižní Súdán"]
["ST","Demokratická republika Svatý Tomáš a Princovův ostrov"]
["SV","Salvadorská republika"]
["SX","Svatý Martin (nizozemská část)"]
["SY","Syrská arabská republika"]
["SZ","Svazijské království"]
["TC","Turks a Caicos (brit.)"]
["TD","Čadská republika"]
["TF","Francouzská jižní území"]
["TG","Tožská republika"]
["TH","Thajské království"]
["TJ","Republika Tadžikistán"]
["TK","Tokelau"]
["TL","Timor - Leste"]
["TM","Turkmenistán"]
["TN","Tuniská republika"]
["TO","Království Tonga"]
["TR","Turecká republika"]
["TT","Republika Trinidad a Tobago"]
["TV","Tuvalu"]
["TW","Tchaj-wan, čínská provincie"]
["TZ","Sjednocená republika Tanzanie"]
["UA","Ukrajina"]
["UG","Ugandská republika"]
["UM","Menší odlehlé ostrovy USA"]
["US","Spojené státy americké"]
["UY","Uruguayská východní republika"]
["UZ","Republika Uzbekistán"]
["VA","Svatý stolec (Vatikánský městký stát)"]
["VC","Svatý Vincenc a Grenadiny"]
["VE","Bolívarovská republika Venezuela"]
["VG","Britské Panenské ostrovy"]
["VI","Americké Panenské ostrovy"]
["VN","Vietnamská socialistická republika"]
["VU","Vanuatská republika"]
["WF","Wallis a Futuna"]
["WS","Nezávislý stát Západní Samoa"]
["XK","Kosovská republika"]
["YE","Jemenská republika"]
["YT","Mayotte"]
["ZA","Jihoafrická republika"]
["ZM","Zambijská republika"]
["ZW","Republika Zimbabwe"]

{"sheet":"List1","index":36,"n_rows":0,"n_cols":0,"rows_kept":0}

{"sheet":"úvěry a vklady","index":37,"n_rows":25,"n_cols":7,"rows_kept":25,"merged":[[0,0,1,6],[2,0,2,2],[2,3,2,6],[3,0,4,2],[5,0,5,2],[6,0,6,2],[7,0,7,2],[8,0,8,2],[9,0,9,2],[10,0,10,2],[11,0,11,2],[13,0,14,6],[15,0,15,2],[15,3,15,6],[16,0,17,2],[18,0,18,2],[19,0,19,2],[20,0,20,2],[21,0,21,2],[22,0,22,2],[23,0,23,2],[24,0,24,2]]}
["Úvěry a pohledávky podle sektorů"]
[]
[{"$f":"Obsah!A8","v":"Informace platné k datu"},null,null,{"$f":"Obsah!C8","v":"2017-03-31"}]
["(v tis.Kč)",null,null,"K ultimu vykazovaného období","K ultimu 1. předcházejícího období","K ultimu 2. předcházejícího období","K ultimu 3. předcházejícího období"]
[{"$nulls":3},"2017-03-31","2016-12-31","2016-09-30","2016-06-30"]
["Úvěry a pohledávky celkem",null,null,{"$f":"SUM(D7:D12)","v":{"v":41513368.455,"d":"41,513,368"}},{"v":40901814.884,"d":"40,901,815"},{"v":39113150.327999994,"d":"39,113,150"},{"v":41673546.070999995,"d":"41,673,546"}]
["   Centrální banky (rezidenti a nerezidenti) ",null,null,{"v":2779919.325,"d":"2,779,919"},{"v":2409919.438,"d":"2,409,919"},{"v":831426.518,"d":"831,427"},{"v":3800693.993,"d":"3,800,694"}]
["   Vládní instituce (rezid. a nerezid.) a ostat. mez. instituce ",null,null,{"v":24310.787,"d":"24,311"},{"v":24860.331,"d":"24,860"},{"v":25401.846,"d":"25,402"},{"v":25938.939,"d":"25,939"}]
["   Úvěrové instituce (rezid. a nerezidenti) a mez. rozv. banky ",null,null,{"v":5167.079,"d":"5,167"},{"v":8421.587,"d":"8,422"},{"v":9364.877,"d":"9,365"},{"v":7505.897,"d":"7,506"}]
["   Ostatní finační instituce bez  nez. ist. sloužící domácnostem (rezidenti a nerezidenti)",null,null,{"v":12877.169999999998,"d":"12,877"},{"v":22115.81,"d":"22,116"},{"v":19817.102,"d":"19,817"},{"v":15529.293,"d":"15,529"}]
["   Nefinanční podniky (rezidenti a nerezidenti) ",null,null,{"v":4196896.893,"d":"4,196,897"},{"v":4121334.425,"d":"4,121,334"},{"v":4258324.943,"d":"4,258,325"},{"v":4119622.203,"d":"4,119,622"}]
["   Domácnosti, SVJ a neziskové instituce sloužící domácnostem (Rez. + Ner.)",null,null,{"v":34494197.201,"d":"34,494,197"},{"v":34315163.293000005,"d":"34,315,163"},{"v":33968815.041999996,"d":"33,968,815"},{"v":33704255.746,"d":"33,704,256"}]
[]
["Vklady podle protistran"]
[]
[{"$f":"Obsah!A8","v":"Informace platné k datu"},null,null,{"$f":"Obsah!C8","v":"2017-03-31"}]
["(v tis.Kč)",null,null,"K ultimu vykazovaného období","K ultimu 1. předcházejícího období","K ultimu 2. předcházejícího období","K ultimu 3. předcházejícího období"]
[{"$nulls":3},{"$f":"D5","v":"2017-03-31"},{"$f":"E5","v":"2016-12-31"},{"$f":"F5","v":"2016-09-30"},{"$f":"G5","v":"2016-06-30"}]
["Vklady celkem",null,null,{"v":60973571.309999995,"d":"60,973,571"},{"v":60071693.687,"d":"60,071,694"},{"v":58513556.485999994,"d":"58,513,556"},{"v":58507763.959,"d":"58,507,764"}]
["   Vklady centrálních bank ",null,null,0,0,0,0]
["   Vklady vládních institucí ",null,null,{"v":237078.159,"d":"237,078"},{"v":235826.758,"d":"235,827"},{"v":229223.745,"d":"229,224"},{"v":228208.751,"d":"228,209"}]
["   Vklady úvěrových institucí ",null,null,0,0,0,0]
["   Vklady ostatních finančních institucí ",null,null,{"v":28.146,"d":"28"},{"v":26.307,"d":"26"},{"v":24.475,"d":"24"},{"v":22.652,"d":"23"}]
["   Vklady nefinančních podniků ",null,null,{"v":166040.44,"d":"166,040"},{"v":161715.499,"d":"161,715"},{"v":166379.312,"d":"166,379"},{"v":165399.066,"d":"165,399"}]
["   Vklady domácností ",null,null,{"v":60570424.565,"d":"60,570,425"},{"v":59674125.122999996,"d":"59,674,125"},{"v":58117928.953999996,"d":"58,117,929"},{"v":58114133.49,"d":"58,114,133"}]